Organisation Name,Organisation Code,Unique Ref No,Effective Date,Directorate  where expenditure incurred,Supplier name ,Payment Date,Net Amount,Purpose of Spend,Procurement Classification (Higher Level),Procurement Classification (Lower Level),Capital/Revenue
Walsall Council,http://opendatacommunities.org/id/metropolitan-district-council/walsall,WC77-1,28/02/2017,Economy & Environment,11KBW,17/02/2017,"6,197.20",73014-LEGAL FEES-PRIV CONTRACTOR FEES,CEMETERIES CENTRAL ADMINISTRATION,Third Party Payments,Revenue
Walsall Council,http://opendatacommunities.org/id/metropolitan-district-council/walsall,WC77-2,28/02/2017,Change and Governance,1444 (BROWNHILLS) AIR TRAINING CORPS,01/02/2017,"1,201.74",62515-MISCELLANEOUS SUPPLIES,AREA 1 - BROWNHILLS,Supplies & Services,Revenue
Walsall Council,http://opendatacommunities.org/id/metropolitan-district-council/walsall,WC77-3,28/02/2017,Childrens,1KBW (1 KINGS BENCH WALK),07/02/2017,800.00,73014-LEGAL FEES-PRIV CONTRACTOR FEES,GENERAL MANAGEMENT SUPPORT (INC LEGAL),Third Party Payments,Revenue
Walsall Council,http://opendatacommunities.org/id/metropolitan-district-council/walsall,WC77-4,28/02/2017,Adult Social Care,1ST CARE LIMITED T/A STUBBY LEAS NURSING HOME,02/02/2017,"1,537.14",73373-RESIDENTIAL & NURSING CARE PLACEMENTS,OP COMMISSIONING,Third Party Payments,Revenue
Walsall Council,http://opendatacommunities.org/id/metropolitan-district-council/walsall,WC77-5,28/02/2017,Childrens,247 CARS (WILLENHALL) LIMITED,01/02/2017,540.00,52001-HIRE OF VEHICLES,CHILDRENS TAXI BUDGET,Transport,Revenue
Walsall Council,http://opendatacommunities.org/id/metropolitan-district-council/walsall,WC77-6,28/02/2017,Childrens,247 CARS (WILLENHALL) LIMITED,01/02/2017,540.00,52001-HIRE OF VEHICLES,CHILDRENS TAXI BUDGET,Transport,Revenue
Walsall Council,http://opendatacommunities.org/id/metropolitan-district-council/walsall,WC77-7,28/02/2017,Childrens,247 CARS (WILLENHALL) LIMITED,21/02/2017,"4,844.40",52000-WITH DRIVER-HIRE OF VEHICLES,SCHOOL TRANSPORT,Transport,Revenue
Walsall Council,http://opendatacommunities.org/id/metropolitan-district-council/walsall,WC77-8,28/02/2017,Economy & Environment,2TOTANGO LIMITED,03/02/2017,5.00,60512-LOOSE TOOLS & CONSUMABLES,NAG - NEW ART GALLERY SHOP STOCK,Supplies & Services,Revenue
Walsall Council,http://opendatacommunities.org/id/metropolitan-district-council/walsall,WC77-9,28/02/2017,Economy & Environment,2TOTANGO LIMITED,03/02/2017,302.94,60529-SHOP STOCK-MATERIALS,NAG - NEW ART GALLERY SHOP STOCK,Supplies & Services,Revenue
Walsall Council,http://opendatacommunities.org/id/metropolitan-district-council/walsall,WC77-10,28/02/2017,Childrens,39 ESSEX STREET LLP PFA,01/02/2017,"1,087.60",73014-LEGAL FEES-PRIV CONTRACTOR FEES,PERFORMANCE & OUTCOMES TEAM (C&YP),Third Party Payments,Revenue
Walsall Council,http://opendatacommunities.org/id/metropolitan-district-council/walsall,WC77-11,28/02/2017,Childrens,39 ESSEX STREET LLP PFA,01/02/2017,"1,197.00",73014-LEGAL FEES-PRIV CONTRACTOR FEES,PERFORMANCE & OUTCOMES TEAM (C&YP),Third Party Payments,Revenue
Walsall Council,http://opendatacommunities.org/id/metropolitan-district-council/walsall,WC77-12,28/02/2017,Economy & Environment,3GS (UK) LIMITED,01/02/2017,"4,256.00",73025-PROFESSIONAL SERVICES-PRIV CONTRACTOR & OTHER AGENCIES,ENVIRONMENT ENFORCEMENT,Third Party Payments,Revenue
Walsall Council,http://opendatacommunities.org/id/metropolitan-district-council/walsall,WC77-13,28/02/2017,Economy & Environment,3GS (UK) LIMITED,17/02/2017,"5,287.20",73025-PROFESSIONAL SERVICES-PRIV CONTRACTOR & OTHER AGENCIES,ENVIRONMENT ENFORCEMENT,Third Party Payments,Revenue
Walsall Council,http://opendatacommunities.org/id/metropolitan-district-council/walsall,WC77-14,28/02/2017,Adult Social Care,5 CARE SERVICES LTD,01/02/2017,"1,963.00",34305-AGENCY STAFF-EMPLOYEES,COMMUNITY INTERMEDIATE CARE,Employees,Revenue
Walsall Council,http://opendatacommunities.org/id/metropolitan-district-council/walsall,WC77-15,28/02/2017,Economy & Environment,A & P CHAMBERS LTD,13/02/2017,"25,876.00",01006-SITE WORKS MAIN CONTRACTORS,CFR 632 WALSALL ARBORETUM RESTORATION PROGRAMME,Capital,Capital
Walsall Council,http://opendatacommunities.org/id/metropolitan-district-council/walsall,WC77-16,28/02/2017,Change and Governance,A D T FIRE AND SECURITY PLC,03/02/2017,234.89,63224-SECURITY ALARMS-NEW/REP & MAINT-PAYMENT TO CONTRACTOR,CENTRALISED MAINTENANCE,Premises,Revenue
Walsall Council,http://opendatacommunities.org/id/metropolitan-district-council/walsall,WC77-17,28/02/2017,Childrens,A D T FIRE AND SECURITY PLC,09/02/2017,436.00,"40000-REPAIRS,ALTERATIONS & MAINTENANCE-PREM","43A HILTON ROAD, WILLENHALL",Premises,Revenue
Walsall Council,http://opendatacommunities.org/id/metropolitan-district-council/walsall,WC77-18,28/02/2017,Change and Governance,A D T FIRE AND SECURITY PLC,01/02/2017,"1,088.74",01006-SITE WORKS MAIN CONTRACTORS,CFR 804 FIRE SAFETY WORKS,Capital,Capital
Walsall Council,http://opendatacommunities.org/id/metropolitan-district-council/walsall,WC77-19,28/02/2017,Economy & Environment,A F BLAKEMORE & SON LTD,13/02/2017,210.68,61018-DRINKS-PROVISIONS,WALSALL GALA CENTRE,Supplies & Services,Revenue
Walsall Council,http://opendatacommunities.org/id/metropolitan-district-council/walsall,WC77-20,28/02/2017,Economy & Environment,A F BLAKEMORE & SON LTD,20/02/2017,251.08,61008-CONFECTIONERY/SNACKS-PROVISIONS,OAK PARK,Supplies & Services,Revenue
Walsall Council,http://opendatacommunities.org/id/metropolitan-district-council/walsall,WC77-21,28/02/2017,Economy & Environment,A F BLAKEMORE & SON LTD,20/02/2017,258.27,61008-CONFECTIONERY/SNACKS-PROVISIONS,OAK PARK,Supplies & Services,Revenue
Walsall Council,http://opendatacommunities.org/id/metropolitan-district-council/walsall,WC77-22,28/02/2017,Economy & Environment,A F BLAKEMORE & SON LTD,13/02/2017,263.62,61009-BEVERAGES-PROVISIONS,DARLASTON LEISURE CENTRE,Supplies & Services,Revenue
Walsall Council,http://opendatacommunities.org/id/metropolitan-district-council/walsall,WC77-23,28/02/2017,Economy & Environment,A F BLAKEMORE & SON LTD,17/02/2017,267.01,61002-DRY FOODS-PROVISIONS,BLOXWICH LEISURE CENTRE,Supplies & Services,Revenue
Walsall Council,http://opendatacommunities.org/id/metropolitan-district-council/walsall,WC77-24,28/02/2017,Adult Social Care,A F BLAKEMORE & SON LTD,17/02/2017,276.87,61016-FOOD AND BEVERAGES-PROVISIONS,REABLEMENT TEAM - HOLLY BANK,Supplies & Services,Revenue
Walsall Council,http://opendatacommunities.org/id/metropolitan-district-council/walsall,WC77-25,28/02/2017,Economy & Environment,A F BLAKEMORE & SON LTD,09/02/2017,276.94,61008-CONFECTIONERY/SNACKS-PROVISIONS,BLOXWICH LEISURE CENTRE,Supplies & Services,Revenue
Walsall Council,http://opendatacommunities.org/id/metropolitan-district-council/walsall,WC77-26,28/02/2017,Economy & Environment,A F BLAKEMORE & SON LTD,08/02/2017,305.78,61008-CONFECTIONERY/SNACKS-PROVISIONS,BLOXWICH LEISURE CENTRE,Supplies & Services,Revenue
Walsall Council,http://opendatacommunities.org/id/metropolitan-district-council/walsall,WC77-27,28/02/2017,Economy & Environment,A F BLAKEMORE & SON LTD,13/02/2017,308.26,61002-DRY FOODS-PROVISIONS,DARLASTON LEISURE CENTRE,Supplies & Services,Revenue
Walsall Council,http://opendatacommunities.org/id/metropolitan-district-council/walsall,WC77-28,28/02/2017,Adult Social Care,A F BLAKEMORE & SON LTD,10/02/2017,369.50,61016-FOOD AND BEVERAGES-PROVISIONS,REABLEMENT TEAM - HOLLY BANK,Supplies & Services,Revenue
Walsall Council,http://opendatacommunities.org/id/metropolitan-district-council/walsall,WC77-29,28/02/2017,Adult Social Care,A F BLAKEMORE & SON LTD,09/02/2017,408.53,61016-FOOD AND BEVERAGES-PROVISIONS,GOSCOTE,Supplies & Services,Revenue
Walsall Council,http://opendatacommunities.org/id/metropolitan-district-council/walsall,WC77-30,28/02/2017,Economy & Environment,A F BLAKEMORE & SON LTD,02/02/2017,686.48,61008-CONFECTIONERY/SNACKS-PROVISIONS,OAK PARK,Supplies & Services,Revenue
Walsall Council,http://opendatacommunities.org/id/metropolitan-district-council/walsall,WC77-31,28/02/2017,Adult Social Care,A F BLAKEMORE & SON LTD,10/02/2017,715.83,61016-FOOD AND BEVERAGES-PROVISIONS,REABLEMENT TEAM - HOLLY BANK,Supplies & Services,Revenue
Walsall Council,http://opendatacommunities.org/id/metropolitan-district-council/walsall,WC77-32,28/02/2017,Economy & Environment,A F BLAKEMORE & SON LTD,23/02/2017,883.75,61008-CONFECTIONERY/SNACKS-PROVISIONS,OAK PARK,Supplies & Services,Revenue
Walsall Council,http://opendatacommunities.org/id/metropolitan-district-council/walsall,WC77-33,28/02/2017,Economy & Environment,A F BLAKEMORE & SON LTD,13/02/2017,969.92,61008-CONFECTIONERY/SNACKS-PROVISIONS,BLOXWICH LEISURE CENTRE,Supplies & Services,Revenue
Walsall Council,http://opendatacommunities.org/id/metropolitan-district-council/walsall,WC77-34,28/02/2017,Change and Governance,A F BLAKEMORE & SON LTD,07/02/2017,995.03,61016-FOOD AND BEVERAGES-PROVISIONS,WALSALL TOWN HALL,Supplies & Services,Revenue
Walsall Council,http://opendatacommunities.org/id/metropolitan-district-council/walsall,WC77-35,28/02/2017,Childrens,REDACTED,13/02/2017,340.16,74006-HOLIDAY/CHRISTMAS ALLOWANCE-FOSTER CARERS-OTH AGENCY PROVISION,INTERNAL FOSTER CARE PROVISION,Third Party Payments,Revenue
Walsall Council,http://opendatacommunities.org/id/metropolitan-district-council/walsall,WC77-36,28/02/2017,Economy & Environment,A KARIMS CHUCKERY PHARMACY,24/02/2017,44.25,63000-PROFESSIONAL FEES AND SERVICES,SEXUAL HEALTH,Supplies & Services,Revenue
Walsall Council,http://opendatacommunities.org/id/metropolitan-district-council/walsall,WC77-37,28/02/2017,Economy & Environment,A KARIMS CHUCKERY PHARMACY,24/02/2017,300.00,71007-CONTRIBUTION TO PCT,PUBLIC HEALTH BUSINESS SUPPORT,Third Party Payments,Revenue
Walsall Council,http://opendatacommunities.org/id/metropolitan-district-council/walsall,WC77-38,28/02/2017,Economy & Environment,A KARIMS CHUCKERY PHARMACY,24/02/2017,"1,890.51",71007-CONTRIBUTION TO PCT,PUBLIC HEALTH BUSINESS SUPPORT,Third Party Payments,Revenue
Walsall Council,http://opendatacommunities.org/id/metropolitan-district-council/walsall,WC77-39,28/02/2017,Childrens,REDACTED,06/02/2017,378.00,76422-DIRECT PAYMENTS TO SOCIAL SERVICES CLIENTS,FAMILY SUPPORT - DIRECT PAYMENTS,Transfer Payments,Revenue
Walsall Council,http://opendatacommunities.org/id/metropolitan-district-council/walsall,WC77-40,28/02/2017,Adult Social Care,ABBEY COURT NURSING & RESIDEN,07/02/2017,"1,613.52",73373-RESIDENTIAL & NURSING CARE PLACEMENTS,OP COMMISSIONING,Third Party Payments,Revenue
Walsall Council,http://opendatacommunities.org/id/metropolitan-district-council/walsall,WC77-41,28/02/2017,Adult Social Care,ABBEY COURT NURSING & RESIDEN,07/02/2017,"1,613.52",73373-RESIDENTIAL & NURSING CARE PLACEMENTS,OP COMMISSIONING,Third Party Payments,Revenue
Walsall Council,http://opendatacommunities.org/id/metropolitan-district-council/walsall,WC77-42,28/02/2017,Adult Social Care,ABBEY COURT NURSING & RESIDEN,07/02/2017,"1,697.08",73373-RESIDENTIAL & NURSING CARE PLACEMENTS,MH COMMISSIONING,Third Party Payments,Revenue
Walsall Council,http://opendatacommunities.org/id/metropolitan-district-council/walsall,WC77-43,28/02/2017,Adult Social Care,ABBEY COURT NURSING & RESIDEN,07/02/2017,"1,937.08",73373-RESIDENTIAL & NURSING CARE PLACEMENTS,OP COMMISSIONING,Third Party Payments,Revenue
Walsall Council,http://opendatacommunities.org/id/metropolitan-district-council/walsall,WC77-44,28/02/2017,Adult Social Care,ABBEY COURT NURSING & RESIDEN,07/02/2017,"2,006.26",73373-RESIDENTIAL & NURSING CARE PLACEMENTS,OP COMMISSIONING,Third Party Payments,Revenue
Walsall Council,http://opendatacommunities.org/id/metropolitan-district-council/walsall,WC77-45,28/02/2017,Adult Social Care,ABBEY HEALTHCARE HOMES LTD,21/02/2017,737.38,73373-RESIDENTIAL & NURSING CARE PLACEMENTS,PD COMMISSIONING,Third Party Payments,Revenue
Walsall Council,http://opendatacommunities.org/id/metropolitan-district-council/walsall,WC77-46,28/02/2017,Adult Social Care,ABBEY HEALTHCARE HOMES LTD,21/02/2017,"1,556.70",73373-RESIDENTIAL & NURSING CARE PLACEMENTS,PD COMMISSIONING,Third Party Payments,Revenue
Walsall Council,http://opendatacommunities.org/id/metropolitan-district-council/walsall,WC77-47,28/02/2017,Adult Social Care,ABBEY HEALTHCARE HOMES LTD,14/02/2017,"1,699.16",73373-RESIDENTIAL & NURSING CARE PLACEMENTS,PD COMMISSIONING,Third Party Payments,Revenue
Walsall Council,http://opendatacommunities.org/id/metropolitan-district-council/walsall,WC77-48,28/02/2017,Adult Social Care,ABBEY HEALTHCARE HOMES LTD,21/02/2017,"2,294.08",73373-RESIDENTIAL & NURSING CARE PLACEMENTS,PD COMMISSIONING,Third Party Payments,Revenue
Walsall Council,http://opendatacommunities.org/id/metropolitan-district-council/walsall,WC77-49,28/02/2017,Adult Social Care,ABBEY HEALTHCARE HOMES LTD,21/02/2017,"2,294.08",73373-RESIDENTIAL & NURSING CARE PLACEMENTS,PD COMMISSIONING,Third Party Payments,Revenue
Walsall Council,http://opendatacommunities.org/id/metropolitan-district-council/walsall,WC77-50,28/02/2017,Adult Social Care,ABBEY HEALTHCARE HOMES LTD,21/02/2017,"2,294.08",73373-RESIDENTIAL & NURSING CARE PLACEMENTS,PD COMMISSIONING,Third Party Payments,Revenue
Walsall Council,http://opendatacommunities.org/id/metropolitan-district-council/walsall,WC77-51,28/02/2017,Childrens,ABC CHILDRENS HOME,03/02/2017,"15,500.00",74036-EXTERNAL RESIDENTIAL CARE-OTH AGENCY PROVISION,INDEPENDENT RESIDENTIAL HOMES,Third Party Payments,Revenue
Walsall Council,http://opendatacommunities.org/id/metropolitan-district-council/walsall,WC77-52,28/02/2017,Childrens,ABC DAY NURSERY (WILLENHALL) LIMITED,15/02/2017,300.00,63000-PROFESSIONAL FEES AND SERVICES,SAFEGUARDING & FAMILY SUPPORT,Supplies & Services,Revenue
Walsall Council,http://opendatacommunities.org/id/metropolitan-district-council/walsall,WC77-53,28/02/2017,Childrens,ABC DAY NURSERY (WILLENHALL) LIMITED,06/02/2017,"1,467.00",66505-OTHER-GRANTS TO OTHER ORGS,EARLY YEARS - 2 YR OLDS,Third Party Payments,Revenue
Walsall Council,http://opendatacommunities.org/id/metropolitan-district-council/walsall,WC77-54,28/02/2017,Childrens,ABC FOSTERING,08/02/2017,"1,386.62",74037-INDEPENDENT FOSTER CARE-OTH AGENCY PROVISION,EXTERNAL FOSTER CARE PROVISION,Third Party Payments,Revenue
Walsall Council,http://opendatacommunities.org/id/metropolitan-district-council/walsall,WC77-55,28/02/2017,Childrens,ABC FOSTERING,08/02/2017,"2,917.54",74037-INDEPENDENT FOSTER CARE-OTH AGENCY PROVISION,EXTERNAL FOSTER CARE PROVISION,Third Party Payments,Revenue
Walsall Council,http://opendatacommunities.org/id/metropolitan-district-council/walsall,WC77-56,28/02/2017,Childrens,ABC FOSTERING,08/02/2017,"2,917.54",74037-INDEPENDENT FOSTER CARE-OTH AGENCY PROVISION,EXTERNAL FOSTER CARE PROVISION,Third Party Payments,Revenue
Walsall Council,http://opendatacommunities.org/id/metropolitan-district-council/walsall,WC77-57,28/02/2017,Childrens,ABC FOSTERING,13/02/2017,"3,108.86",74037-INDEPENDENT FOSTER CARE-OTH AGENCY PROVISION,EXTERNAL FOSTER CARE PROVISION,Third Party Payments,Revenue
Walsall Council,http://opendatacommunities.org/id/metropolitan-district-council/walsall,WC77-58,28/02/2017,Childrens,ABC FOSTERING,13/02/2017,"3,306.55",74037-INDEPENDENT FOSTER CARE-OTH AGENCY PROVISION,EXTERNAL FOSTER CARE PROVISION,Third Party Payments,Revenue
Walsall Council,http://opendatacommunities.org/id/metropolitan-district-council/walsall,WC77-59,28/02/2017,Adult Social Care,REDACTED,06/02/2017,"1,557.68",76422-DIRECT PAYMENTS TO SOCIAL SERVICES CLIENTS,LD COMMISSIONING,Transfer Payments,Revenue
Walsall Council,http://opendatacommunities.org/id/metropolitan-district-council/walsall,WC77-60,28/02/2017,Adult Social Care,REDACTED,06/02/2017,"2,357.99",76422-DIRECT PAYMENTS TO SOCIAL SERVICES CLIENTS,LD COMMISSIONING,Transfer Payments,Revenue
Walsall Council,http://opendatacommunities.org/id/metropolitan-district-council/walsall,WC77-61,28/02/2017,Childrens,ACCORD HOUSING ASSOCIATION LTD#135,21/02/2017,370.72,43000-RENTS,SAFEGUARDING & FAMILY SUPPORT,Premises,Revenue
Walsall Council,http://opendatacommunities.org/id/metropolitan-district-council/walsall,WC77-62,28/02/2017,Childrens,ACCORD HOUSING ASSOCIATION LTD#135,21/02/2017,370.72,43000-RENTS,SAFEGUARDING & FAMILY SUPPORT,Premises,Revenue
Walsall Council,http://opendatacommunities.org/id/metropolitan-district-council/walsall,WC77-63,28/02/2017,Childrens,ACCORD HOUSING ASSOCIATION LTD#135,21/02/2017,463.40,43000-RENTS,SAFEGUARDING & FAMILY SUPPORT,Premises,Revenue
Walsall Council,http://opendatacommunities.org/id/metropolitan-district-council/walsall,WC77-64,28/02/2017,Adult Social Care,ACCORD HOUSING ASSOCIATION LTD#135,02/02/2017,578.25,73374-SUPPORTED & OTHER ACCOMMODATION,LD COMMISSIONING,Third Party Payments,Revenue
Walsall Council,http://opendatacommunities.org/id/metropolitan-district-council/walsall,WC77-65,28/02/2017,Adult Social Care,ACCORD HOUSING ASSOCIATION LTD#135,02/02/2017,690.00,73374-SUPPORTED & OTHER ACCOMMODATION,LD COMMISSIONING,Third Party Payments,Revenue
Walsall Council,http://opendatacommunities.org/id/metropolitan-district-council/walsall,WC77-66,28/02/2017,Adult Social Care,ACCORD HOUSING ASSOCIATION LTD#135,14/02/2017,"4,744.90",73373-RESIDENTIAL & NURSING CARE PLACEMENTS,LD COMMISSIONING,Third Party Payments,Revenue
Walsall Council,http://opendatacommunities.org/id/metropolitan-district-council/walsall,WC77-67,28/02/2017,Adult Social Care,ACCORD HOUSING ASSOCIATION LTD#135,14/02/2017,"4,744.90",73373-RESIDENTIAL & NURSING CARE PLACEMENTS,LD COMMISSIONING,Third Party Payments,Revenue
Walsall Council,http://opendatacommunities.org/id/metropolitan-district-council/walsall,WC77-68,28/02/2017,Adult Social Care,ACCORD HOUSING ASSOCIATION LTD#135,14/02/2017,"4,744.90",73373-RESIDENTIAL & NURSING CARE PLACEMENTS,LD COMMISSIONING,Third Party Payments,Revenue
Walsall Council,http://opendatacommunities.org/id/metropolitan-district-council/walsall,WC77-69,28/02/2017,Adult Social Care,ACCORD HOUSING ASSOCIATION LTD#135,14/02/2017,"4,744.90",73373-RESIDENTIAL & NURSING CARE PLACEMENTS,LD COMMISSIONING,Third Party Payments,Revenue
Walsall Council,http://opendatacommunities.org/id/metropolitan-district-council/walsall,WC77-70,28/02/2017,Adult Social Care,ACCORD HOUSING ASSOCIATION LTD#135,14/02/2017,"6,622.35",73373-RESIDENTIAL & NURSING CARE PLACEMENTS,LD COMMISSIONING,Third Party Payments,Revenue
Walsall Council,http://opendatacommunities.org/id/metropolitan-district-council/walsall,WC77-71,28/02/2017,Adult Social Care,ACCORD HOUSING ASSOCIATION LTD#135,14/02/2017,"6,622.35",73373-RESIDENTIAL & NURSING CARE PLACEMENTS,LD COMMISSIONING,Third Party Payments,Revenue
Walsall Council,http://opendatacommunities.org/id/metropolitan-district-council/walsall,WC77-72,28/02/2017,Adult Social Care,ACCORD HOUSING ASSOCIATION LTD#135,14/02/2017,"6,622.35",73373-RESIDENTIAL & NURSING CARE PLACEMENTS,LD COMMISSIONING,Third Party Payments,Revenue
Walsall Council,http://opendatacommunities.org/id/metropolitan-district-council/walsall,WC77-73,28/02/2017,Adult Social Care,ACE CARE AGENCY,03/02/2017,384.50,73372-DOMICILIARY CARE,OP COMMISSIONING,Third Party Payments,Revenue
Walsall Council,http://opendatacommunities.org/id/metropolitan-district-council/walsall,WC77-74,28/02/2017,Adult Social Care,ACE CARE AGENCY,03/02/2017,489.31,73372-DOMICILIARY CARE,OP COMMISSIONING,Third Party Payments,Revenue
Walsall Council,http://opendatacommunities.org/id/metropolitan-district-council/walsall,WC77-75,28/02/2017,Adult Social Care,ACE CARE AGENCY,03/02/2017,526.11,73372-DOMICILIARY CARE,MH COMMISSIONING,Third Party Payments,Revenue
Walsall Council,http://opendatacommunities.org/id/metropolitan-district-council/walsall,WC77-76,28/02/2017,Adult Social Care,ACE CARE AGENCY,03/02/2017,569.67,73372-DOMICILIARY CARE,OP COMMISSIONING,Third Party Payments,Revenue
Walsall Council,http://opendatacommunities.org/id/metropolitan-district-council/walsall,WC77-77,28/02/2017,Adult Social Care,ACE CARE AGENCY,03/02/2017,721.50,73372-DOMICILIARY CARE,OP COMMISSIONING,Third Party Payments,Revenue
Walsall Council,http://opendatacommunities.org/id/metropolitan-district-council/walsall,WC77-78,28/02/2017,Adult Social Care,ACE CARE AGENCY,03/02/2017,812.50,73372-DOMICILIARY CARE,OP COMMISSIONING,Third Party Payments,Revenue
Walsall Council,http://opendatacommunities.org/id/metropolitan-district-council/walsall,WC77-79,28/02/2017,Change and Governance,ACE PA HIRE,02/02/2017,300.00,83900-CIVIC EVENTS-OTHER DEMOCRACY COSTS,MAYORS SECRETARIAT,Supplies & Services,Revenue
Walsall Council,http://opendatacommunities.org/id/metropolitan-district-council/walsall,WC77-80,28/02/2017,Change and Governance,ACE PA HIRE,02/02/2017,600.00,83900-CIVIC EVENTS-OTHER DEMOCRACY COSTS,MAYORS SECRETARIAT,Supplies & Services,Revenue
Walsall Council,http://opendatacommunities.org/id/metropolitan-district-council/walsall,WC77-81,28/02/2017,Childrens,ACE RADIO CARS,06/02/2017,"1,952.40",52000-WITH DRIVER-HIRE OF VEHICLES,SCHOOL TRANSPORT,Transport,Revenue
Walsall Council,http://opendatacommunities.org/id/metropolitan-district-council/walsall,WC77-82,28/02/2017,Adult Social Care,ACEPAY LTD (COTTAGE NUR HOME),28/02/2017,"2,274.80",73373-RESIDENTIAL & NURSING CARE PLACEMENTS,OP COMMISSIONING,Third Party Payments,Revenue
Walsall Council,http://opendatacommunities.org/id/metropolitan-district-council/walsall,WC77-83,28/02/2017,Adult Social Care,ACEPAY LTD (COTTAGE NUR HOME),28/02/2017,"2,274.80",73373-RESIDENTIAL & NURSING CARE PLACEMENTS,OP COMMISSIONING,Third Party Payments,Revenue
Walsall Council,http://opendatacommunities.org/id/metropolitan-district-council/walsall,WC77-84,28/02/2017,Adult Social Care,ACEPAY LTD (COTTAGE NUR HOME),28/02/2017,"2,274.80",73373-RESIDENTIAL & NURSING CARE PLACEMENTS,OP COMMISSIONING,Third Party Payments,Revenue
Walsall Council,http://opendatacommunities.org/id/metropolitan-district-council/walsall,WC77-85,28/02/2017,Adult Social Care,ACEPAY LTD (COTTAGE NUR HOME),28/02/2017,"2,320.80",73373-RESIDENTIAL & NURSING CARE PLACEMENTS,OP COMMISSIONING,Third Party Payments,Revenue
Walsall Council,http://opendatacommunities.org/id/metropolitan-district-council/walsall,WC77-86,28/02/2017,Adult Social Care,ACEPAY LTD (COTTAGE NUR HOME),28/02/2017,"2,320.80",73373-RESIDENTIAL & NURSING CARE PLACEMENTS,OP COMMISSIONING,Third Party Payments,Revenue
Walsall Council,http://opendatacommunities.org/id/metropolitan-district-council/walsall,WC77-87,28/02/2017,Adult Social Care,ACEPAY LTD (COTTAGE NUR HOME),28/02/2017,"4,224.63",73373-RESIDENTIAL & NURSING CARE PLACEMENTS,OP COMMISSIONING,Third Party Payments,Revenue
Walsall Council,http://opendatacommunities.org/id/metropolitan-district-council/walsall,WC77-88,28/02/2017,Adult Social Care,ACORN CARE LTD,28/02/2017,"13,705.72",73373-RESIDENTIAL & NURSING CARE PLACEMENTS,LD COMMISSIONING,Third Party Payments,Revenue
Walsall Council,http://opendatacommunities.org/id/metropolitan-district-council/walsall,WC77-89,28/02/2017,Adult Social Care,ACORN REST HOME,14/02/2017,"1,620.00",73373-RESIDENTIAL & NURSING CARE PLACEMENTS,OP COMMISSIONING,Third Party Payments,Revenue
Walsall Council,http://opendatacommunities.org/id/metropolitan-district-council/walsall,WC77-90,28/02/2017,Childrens,ACORNS CHILDRENS HOSPICE TRUST,06/02/2017,750.00,63000-PROFESSIONAL FEES AND SERVICES,DIRECTLY COMMISSIONED NURSING SERVICES,Supplies & Services,Revenue
Walsall Council,http://opendatacommunities.org/id/metropolitan-district-council/walsall,WC77-91,28/02/2017,Adult Social Care,ACTON BANKS LTD,16/02/2017,676.14,34305-AGENCY STAFF-EMPLOYEES,GOSCOTE,Employees,Revenue
Walsall Council,http://opendatacommunities.org/id/metropolitan-district-council/walsall,WC77-92,28/02/2017,Adult Social Care,ACTON BANKS LTD,02/02/2017,736.31,34305-AGENCY STAFF-EMPLOYEES,GOSCOTE,Employees,Revenue
Walsall Council,http://opendatacommunities.org/id/metropolitan-district-council/walsall,WC77-93,28/02/2017,Adult Social Care,ACTON BANKS LTD,07/02/2017,842.31,34305-AGENCY STAFF-EMPLOYEES,GOSCOTE,Employees,Revenue
Walsall Council,http://opendatacommunities.org/id/metropolitan-district-council/walsall,WC77-94,28/02/2017,Adult Social Care,ACTON BANKS LTD,15/02/2017,918.39,34305-AGENCY STAFF-EMPLOYEES,REABLEMENT TEAM - HOLLY BANK,Employees,Revenue
Walsall Council,http://opendatacommunities.org/id/metropolitan-district-council/walsall,WC77-95,28/02/2017,Adult Social Care,ACTON BANKS LTD,15/02/2017,"2,809.32",34305-AGENCY STAFF-EMPLOYEES,REABLEMENT TEAM - HOLLY BANK,Employees,Revenue
Walsall Council,http://opendatacommunities.org/id/metropolitan-district-council/walsall,WC77-96,28/02/2017,Adult Social Care,ACTON BANKS LTD,15/02/2017,"3,919.04",34305-AGENCY STAFF-EMPLOYEES,REABLEMENT TEAM - HOLLY BANK,Employees,Revenue
Walsall Council,http://opendatacommunities.org/id/metropolitan-district-council/walsall,WC77-97,28/02/2017,Adult Social Care,ACTON BANKS LTD,20/02/2017,"4,752.47",34305-AGENCY STAFF-EMPLOYEES,REABLEMENT TEAM - HOLLY BANK,Employees,Revenue
Walsall Council,http://opendatacommunities.org/id/metropolitan-district-council/walsall,WC77-98,28/02/2017,Economy & Environment,REDACTED,08/02/2017,422.91,63239-EXTERNAL WORKS-PAYMENT TO CONTRACTOR,NAG - TEMPORARY EXHIBITIONS,Third Party Payments,Revenue
Walsall Council,http://opendatacommunities.org/id/metropolitan-district-council/walsall,WC77-99,28/02/2017,Adult Social Care,REDACTED,06/02/2017,486.00,76422-DIRECT PAYMENTS TO SOCIAL SERVICES CLIENTS,LD COMMISSIONING,Transfer Payments,Revenue
Walsall Council,http://opendatacommunities.org/id/metropolitan-district-council/walsall,WC77-100,28/02/2017,Adult Social Care,REDACTED,06/02/2017,964.00,76422-DIRECT PAYMENTS TO SOCIAL SERVICES CLIENTS,OP COMMISSIONING,Transfer Payments,Revenue
Walsall Council,http://opendatacommunities.org/id/metropolitan-district-council/walsall,WC77-101,28/02/2017,Childrens,REDACTED,13/02/2017,694.24,74006-HOLIDAY/CHRISTMAS ALLOWANCE-FOSTER CARERS-OTH AGENCY PROVISION,INTERNAL FOSTER CARE PROVISION,Third Party Payments,Revenue
Walsall Council,http://opendatacommunities.org/id/metropolitan-district-council/walsall,WC77-102,28/02/2017,Economy & Environment,ADS ELECTRICAL & HIGHWAY SERVICES LTD,01/02/2017,348.00,63000-PROFESSIONAL FEES AND SERVICES,FOREST ARTS CENTRE,Supplies & Services,Revenue
Walsall Council,http://opendatacommunities.org/id/metropolitan-district-council/walsall,WC77-103,28/02/2017,Adult Social Care,ADVANCE HEALTH CARE (UK) LTD,15/02/2017,"1,031.63",73025-PROFESSIONAL SERVICES-PRIV CONTRACTOR & OTHER AGENCIES,COMMUNITY INTERMEDIATE CARE,Third Party Payments,Revenue
Walsall Council,http://opendatacommunities.org/id/metropolitan-district-council/walsall,WC77-104,28/02/2017,Adult Social Care,ADVANCE HEALTH CARE (UK) LTD,09/02/2017,"1,637.50",73025-PROFESSIONAL SERVICES-PRIV CONTRACTOR & OTHER AGENCIES,COMMUNITY INTERMEDIATE CARE,Third Party Payments,Revenue
Walsall Council,http://opendatacommunities.org/id/metropolitan-district-council/walsall,WC77-105,28/02/2017,Adult Social Care,ADVANCE HEALTH CARE (UK) LTD,09/02/2017,"1,801.26",73025-PROFESSIONAL SERVICES-PRIV CONTRACTOR & OTHER AGENCIES,COMMUNITY INTERMEDIATE CARE,Third Party Payments,Revenue
Walsall Council,http://opendatacommunities.org/id/metropolitan-district-council/walsall,WC77-106,28/02/2017,Adult Social Care,ADVANCE HEALTH CARE (UK) LTD,09/02/2017,"5,240.00",73025-PROFESSIONAL SERVICES-PRIV CONTRACTOR & OTHER AGENCIES,COMMUNITY INTERMEDIATE CARE,Third Party Payments,Revenue
Walsall Council,http://opendatacommunities.org/id/metropolitan-district-council/walsall,WC77-107,28/02/2017,Adult Social Care,ADVANCE HEALTH CARE (UK) LTD,09/02/2017,"5,240.00",73025-PROFESSIONAL SERVICES-PRIV CONTRACTOR & OTHER AGENCIES,COMMUNITY INTERMEDIATE CARE,Third Party Payments,Revenue
Walsall Council,http://opendatacommunities.org/id/metropolitan-district-council/walsall,WC77-108,28/02/2017,Adult Social Care,ADVANCE HEALTH CARE (UK) LTD,15/02/2017,"5,246.75",73025-PROFESSIONAL SERVICES-PRIV CONTRACTOR & OTHER AGENCIES,COMMUNITY INTERMEDIATE CARE,Third Party Payments,Revenue
Walsall Council,http://opendatacommunities.org/id/metropolitan-district-council/walsall,WC77-109,28/02/2017,Adult Social Care,ADVANCE HEALTH CARE (UK) LTD,09/02/2017,"5,491.18",73025-PROFESSIONAL SERVICES-PRIV CONTRACTOR & OTHER AGENCIES,COMMUNITY INTERMEDIATE CARE,Third Party Payments,Revenue
Walsall Council,http://opendatacommunities.org/id/metropolitan-district-council/walsall,WC77-110,28/02/2017,Economy & Environment,ADVANCE PHARMA LTD T/A PLECK PHARMACY,24/02/2017,292.07,71007-CONTRIBUTION TO PCT,PUBLIC HEALTH BUSINESS SUPPORT,Third Party Payments,Revenue
Walsall Council,http://opendatacommunities.org/id/metropolitan-district-council/walsall,WC77-111,28/02/2017,Change and Governance,ADVANCED DIGITAL IMAGING,10/02/2017,296.00,62008-OUTWORK-PRINT ROOM,PRINTING SERVICES,Supplies & Services,Revenue
Walsall Council,http://opendatacommunities.org/id/metropolitan-district-council/walsall,WC77-112,28/02/2017,Adult Social Care,ADVANCED HEALTH AND CARE,20/02/2017,220.92,53003-OTHER-TRAVEL ALLOWANCES,COMMUNITY INTERMEDIATE CARE,Transport,Revenue
Walsall Council,http://opendatacommunities.org/id/metropolitan-district-council/walsall,WC77-113,28/02/2017,Adult Social Care,ADVANCED HEALTH AND CARE,08/02/2017,840.00,73025-PROFESSIONAL SERVICES-PRIV CONTRACTOR & OTHER AGENCIES,COMMUNITY INTERMEDIATE CARE,Third Party Payments,Revenue
Walsall Council,http://opendatacommunities.org/id/metropolitan-district-council/walsall,WC77-114,28/02/2017,Childrens,ADVENTURELAND DAY NURSERY,06/02/2017,"1,540.35",66505-OTHER-GRANTS TO OTHER ORGS,EARLY YEARS - 2 YR OLDS,Third Party Payments,Revenue
Walsall Council,http://opendatacommunities.org/id/metropolitan-district-council/walsall,WC77-115,28/02/2017,Adult Social Care,ADVOCACY MATTERS LIMITED,01/02/2017,"22,560.75",70000-SOCIAL SERVICES-FEES TO VOLUNTARY BODIES,OLDER PEOPLES CONTRACTS/SLA,Third Party Payments,Revenue
Walsall Council,http://opendatacommunities.org/id/metropolitan-district-council/walsall,WC77-116,28/02/2017,Economy & Environment,AEBI SCHMIDT UK LIMITED,22/02/2017,249.83,60500-GENERAL MATERIALS,FLEET,Supplies & Services,Revenue
Walsall Council,http://opendatacommunities.org/id/metropolitan-district-council/walsall,WC77-117,28/02/2017,Change and Governance,AFGHAN COMMUNITY & WELFARE CENTRE,07/02/2017,"1,500.00",62515-MISCELLANEOUS SUPPLIES,PVE (CARRY FORWARD),Supplies & Services,Revenue
Walsall Council,http://opendatacommunities.org/id/metropolitan-district-council/walsall,WC77-118,28/02/2017,Childrens,AFTER ADOPTION,27/02/2017,"18,000.00",73025-PROFESSIONAL SERVICES-PRIV CONTRACTOR & OTHER AGENCIES,ADOPTION TEAM,Third Party Payments,Revenue
Walsall Council,http://opendatacommunities.org/id/metropolitan-district-council/walsall,WC77-119,28/02/2017,Adult Social Care,AGE UK WALSALL,01/02/2017,"6,320.00",76423-DIRECT PAYMENTS SUPPORT,DIRECT PAYMENT SUPPORT ORGANISATIONS,Transfer Payments,Revenue
Walsall Council,http://opendatacommunities.org/id/metropolitan-district-council/walsall,WC77-120,28/02/2017,Economy & Environment,AGROVISTA UK LTD,21/02/2017,547.50,60500-GENERAL MATERIALS,GROUNDS,Supplies & Services,Revenue
Walsall Council,http://opendatacommunities.org/id/metropolitan-district-council/walsall,WC77-121,28/02/2017,Adult Social Care,REDACTED,06/02/2017,"1,882.00",76422-DIRECT PAYMENTS TO SOCIAL SERVICES CLIENTS,LD COMMISSIONING,Transfer Payments,Revenue
Walsall Council,http://opendatacommunities.org/id/metropolitan-district-council/walsall,WC77-122,28/02/2017,Adult Social Care,REDACTED,06/02/2017,914.20,76422-DIRECT PAYMENTS TO SOCIAL SERVICES CLIENTS,OP COMMISSIONING,Transfer Payments,Revenue
Walsall Council,http://opendatacommunities.org/id/metropolitan-district-council/walsall,WC77-123,28/02/2017,Childrens,AJK TRAVEL,02/02/2017,"18,541.04",52000-WITH DRIVER-HIRE OF VEHICLES,SCHOOL TRANSPORT,Transport,Revenue
Walsall Council,http://opendatacommunities.org/id/metropolitan-district-council/walsall,WC77-124,28/02/2017,Childrens,ALAN CRITCHLEY ASSOCIATES,28/02/2017,"3,900.00",63102-CONSULTANTS FEES - CORPORATE,SAFEGUARDING BOARD,Supplies & Services,Revenue
Walsall Council,http://opendatacommunities.org/id/metropolitan-district-council/walsall,WC77-125,28/02/2017,Childrens,ALBERT PRITCHARD INFANT AND WOOD GREEN JUNIOR FEDERATED SCHOOLS,10/02/2017,522.00,77300-ISB-FORMULA ALLOCATION,OUT OF BOROUGH SCHOOLS,Transfer Payments,Revenue
Walsall Council,http://opendatacommunities.org/id/metropolitan-district-council/walsall,WC77-126,28/02/2017,Childrens,ALBRIGHTON CARE LTD,03/02/2017,"11,049.29",74036-EXTERNAL RESIDENTIAL CARE-OTH AGENCY PROVISION,INDEPENDENT RESIDENTIAL HOMES,Third Party Payments,Revenue
Walsall Council,http://opendatacommunities.org/id/metropolitan-district-council/walsall,WC77-127,28/02/2017,Adult Social Care,ALDERGROVE MANOR LTD,21/02/2017,"1,839.68",73373-RESIDENTIAL & NURSING CARE PLACEMENTS,MH COMMISSIONING,Third Party Payments,Revenue
Walsall Council,http://opendatacommunities.org/id/metropolitan-district-council/walsall,WC77-128,28/02/2017,Childrens,ALDRIDGE SCHOOL A SCIENCE COLLEGE.,10/02/2017,990.00,77300-ISB-FORMULA ALLOCATION,ALDRIDGE SCHOOL SCIENCE COLLEGE (ACADEMY),Transfer Payments,Revenue
Walsall Council,http://opendatacommunities.org/id/metropolitan-district-council/walsall,WC77-129,28/02/2017,Childrens,ALDRIDGE SCHOOL A SCIENCE COLLEGE.,01/02/2017,"5,204.99",66502-TOP UP FUNDING -GRANTS TO SCHOOLS,ALDRIDGE SCHOOL SCIENCE COLLEGE (ACADEMY),Third Party Payments,Revenue
Walsall Council,http://opendatacommunities.org/id/metropolitan-district-council/walsall,WC77-130,28/02/2017,Adult Social Care,REDACTED,06/02/2017,"1,204.00",76422-DIRECT PAYMENTS TO SOCIAL SERVICES CLIENTS,PD COMMISSIONING,Transfer Payments,Revenue
Walsall Council,http://opendatacommunities.org/id/metropolitan-district-council/walsall,WC77-131,28/02/2017,Adult Social Care,ALEXANDRA HOUSE CARE SERVICES LTD T/A STONEBRIDGE NURSING HOME,02/02/2017,"7,117.44",73373-RESIDENTIAL & NURSING CARE PLACEMENTS,OP COMMISSIONING,Third Party Payments,Revenue
Walsall Council,http://opendatacommunities.org/id/metropolitan-district-council/walsall,WC77-132,28/02/2017,Childrens,REDACTED,06/02/2017,582.66,76422-DIRECT PAYMENTS TO SOCIAL SERVICES CLIENTS,FAMILY SUPPORT - DIRECT PAYMENTS,Transfer Payments,Revenue
Walsall Council,http://opendatacommunities.org/id/metropolitan-district-council/walsall,WC77-133,28/02/2017,Childrens,ALFORD PRIMARY SCHOOL,10/02/2017,"1,228.00",77300-ISB-FORMULA ALLOCATION,OUT OF BOROUGH SCHOOLS,Transfer Payments,Revenue
Walsall Council,http://opendatacommunities.org/id/metropolitan-district-council/walsall,WC77-134,28/02/2017,Adult Social Care,REDACTED,06/02/2017,898.00,76422-DIRECT PAYMENTS TO SOCIAL SERVICES CLIENTS,PD COMMISSIONING,Transfer Payments,Revenue
Walsall Council,http://opendatacommunities.org/id/metropolitan-district-council/walsall,WC77-135,28/02/2017,Adult Social Care,REDACTED,06/02/2017,612.00,76422-DIRECT PAYMENTS TO SOCIAL SERVICES CLIENTS,OP COMMISSIONING,Transfer Payments,Revenue
Walsall Council,http://opendatacommunities.org/id/metropolitan-district-council/walsall,WC77-136,28/02/2017,Adult Social Care,REDACTED,16/02/2017,"1,627.05",73374-SUPPORTED & OTHER ACCOMMODATION,LD COMMISSIONING,Third Party Payments,Revenue
Walsall Council,http://opendatacommunities.org/id/metropolitan-district-council/walsall,WC77-137,28/02/2017,Childrens,REDACTED,13/02/2017,571.44,74006-HOLIDAY/CHRISTMAS ALLOWANCE-FOSTER CARERS-OTH AGENCY PROVISION,INTERNAL FOSTER CARE PROVISION,Third Party Payments,Revenue
Walsall Council,http://opendatacommunities.org/id/metropolitan-district-council/walsall,WC77-138,28/02/2017,Childrens,REDACTED,13/02/2017,552.96,74006-HOLIDAY/CHRISTMAS ALLOWANCE-FOSTER CARERS-OTH AGENCY PROVISION,INTERNAL FOSTER CARE PROVISION,Third Party Payments,Revenue
Walsall Council,http://opendatacommunities.org/id/metropolitan-district-council/walsall,WC77-139,28/02/2017,Change and Governance,ALL ASPECTS PROPERTY MAINTENANCE LIMITED,27/02/2017,"2,100.00",01046-OTHER GRANTS,CFR 908 FUEL POVERTY FUND,Capital,Capital
Walsall Council,http://opendatacommunities.org/id/metropolitan-district-council/walsall,WC77-140,28/02/2017,Childrens,ALL SAINTS NATIONAL ACADEMY #1,09/02/2017,"2,656.16",66502-TOP UP FUNDING -GRANTS TO SCHOOLS,ACADEMIES,Third Party Payments,Revenue
Walsall Council,http://opendatacommunities.org/id/metropolitan-district-council/walsall,WC77-141,28/02/2017,Adult Social Care,ALMA COURT,07/02/2017,"2,268.00",73374-SUPPORTED & OTHER ACCOMMODATION,MH COMMISSIONING,Third Party Payments,Revenue
Walsall Council,http://opendatacommunities.org/id/metropolitan-district-council/walsall,WC77-142,28/02/2017,Adult Social Care,ALMA COURT,07/02/2017,"2,430.00",73374-SUPPORTED & OTHER ACCOMMODATION,MH COMMISSIONING,Third Party Payments,Revenue
Walsall Council,http://opendatacommunities.org/id/metropolitan-district-council/walsall,WC77-143,28/02/2017,Adult Social Care,ALMA COURT,07/02/2017,"2,430.00",73374-SUPPORTED & OTHER ACCOMMODATION,MH COMMISSIONING,Third Party Payments,Revenue
Walsall Council,http://opendatacommunities.org/id/metropolitan-district-council/walsall,WC77-144,28/02/2017,Adult Social Care,ALMA COURT,07/02/2017,"2,511.00",73374-SUPPORTED & OTHER ACCOMMODATION,LD COMMISSIONING,Third Party Payments,Revenue
Walsall Council,http://opendatacommunities.org/id/metropolitan-district-council/walsall,WC77-145,28/02/2017,Adult Social Care,ALMA COURT,17/02/2017,"2,520.00",73374-SUPPORTED & OTHER ACCOMMODATION,OP COMMISSIONING,Third Party Payments,Revenue
Walsall Council,http://opendatacommunities.org/id/metropolitan-district-council/walsall,WC77-146,28/02/2017,Adult Social Care,ALMA COURT,22/02/2017,"2,567.51",73374-SUPPORTED & OTHER ACCOMMODATION,MH COMMISSIONING,Third Party Payments,Revenue
Walsall Council,http://opendatacommunities.org/id/metropolitan-district-council/walsall,WC77-147,28/02/2017,Adult Social Care,ALMA COURT,08/02/2017,"2,790.00",73374-SUPPORTED & OTHER ACCOMMODATION,OP COMMISSIONING,Third Party Payments,Revenue
Walsall Council,http://opendatacommunities.org/id/metropolitan-district-council/walsall,WC77-148,28/02/2017,Adult Social Care,ALMA COURT,07/02/2017,"5,705.56",73373-RESIDENTIAL & NURSING CARE PLACEMENTS,MH COMMISSIONING,Third Party Payments,Revenue
Walsall Council,http://opendatacommunities.org/id/metropolitan-district-council/walsall,WC77-149,28/02/2017,Childrens,ALPHA HAIR DESIGN ACADEMY,07/02/2017,"1,100.00",60500-GENERAL MATERIALS,PUPIL REFERAL UNIT EXCLUSIONS,Supplies & Services,Revenue
Walsall Council,http://opendatacommunities.org/id/metropolitan-district-council/walsall,WC77-150,28/02/2017,Childrens,ALPHA HAIR DESIGN ACADEMY,07/02/2017,"1,650.00",60500-GENERAL MATERIALS,PUPIL REFERAL UNIT EXCLUSIONS,Supplies & Services,Revenue
Walsall Council,http://opendatacommunities.org/id/metropolitan-district-council/walsall,WC77-151,28/02/2017,Childrens,ALPHA HAIR DESIGN ACADEMY,07/02/2017,"2,200.00",60500-GENERAL MATERIALS,PUPIL REFERAL UNIT EXCLUSIONS,Supplies & Services,Revenue
Walsall Council,http://opendatacommunities.org/id/metropolitan-district-council/walsall,WC77-152,28/02/2017,Childrens,ALPHA HAIR DESIGN ACADEMY,07/02/2017,"2,200.00",60500-GENERAL MATERIALS,PUPIL REFERAL UNIT EXCLUSIONS,Supplies & Services,Revenue
Walsall Council,http://opendatacommunities.org/id/metropolitan-district-council/walsall,WC77-153,28/02/2017,Adult Social Care,ALPHA HEALTH CARE LTD,14/02/2017,"-1,710.85",73373-RESIDENTIAL & NURSING CARE PLACEMENTS,MH COMMISSIONING,Third Party Payments,Revenue
Walsall Council,http://opendatacommunities.org/id/metropolitan-district-council/walsall,WC77-154,28/02/2017,Adult Social Care,ALPHA HEALTH CARE LTD,14/02/2017,"-1,690.44",73373-RESIDENTIAL & NURSING CARE PLACEMENTS,OP COMMISSIONING,Third Party Payments,Revenue
Walsall Council,http://opendatacommunities.org/id/metropolitan-district-council/walsall,WC77-155,28/02/2017,Adult Social Care,ALPHA HEALTH CARE LTD,14/02/2017,"-1,178.43",73373-RESIDENTIAL & NURSING CARE PLACEMENTS,OP COMMISSIONING,Third Party Payments,Revenue
Walsall Council,http://opendatacommunities.org/id/metropolitan-district-council/walsall,WC77-156,28/02/2017,Adult Social Care,ALPHA HEALTH CARE LTD,02/02/2017,316.07,73373-RESIDENTIAL & NURSING CARE PLACEMENTS,OP COMMISSIONING,Third Party Payments,Revenue
Walsall Council,http://opendatacommunities.org/id/metropolitan-district-council/walsall,WC77-157,28/02/2017,Adult Social Care,ALPHA HEALTH CARE LTD,14/02/2017,"1,620.00",73373-RESIDENTIAL & NURSING CARE PLACEMENTS,OP COMMISSIONING,Third Party Payments,Revenue
Walsall Council,http://opendatacommunities.org/id/metropolitan-district-council/walsall,WC77-158,28/02/2017,Adult Social Care,ALPHA HEALTH CARE LTD,14/02/2017,"1,620.00",73373-RESIDENTIAL & NURSING CARE PLACEMENTS,OP COMMISSIONING,Third Party Payments,Revenue
Walsall Council,http://opendatacommunities.org/id/metropolitan-district-council/walsall,WC77-159,28/02/2017,Adult Social Care,ALPHA HEALTH CARE LTD,14/02/2017,"1,620.00",73373-RESIDENTIAL & NURSING CARE PLACEMENTS,OP COMMISSIONING,Third Party Payments,Revenue
Walsall Council,http://opendatacommunities.org/id/metropolitan-district-council/walsall,WC77-160,28/02/2017,Adult Social Care,ALPHA HEALTH CARE LTD,14/02/2017,"1,649.80",73373-RESIDENTIAL & NURSING CARE PLACEMENTS,OP COMMISSIONING,Third Party Payments,Revenue
Walsall Council,http://opendatacommunities.org/id/metropolitan-district-council/walsall,WC77-161,28/02/2017,Adult Social Care,ALPHA HEALTH CARE LTD,14/02/2017,"1,649.80",73373-RESIDENTIAL & NURSING CARE PLACEMENTS,OP COMMISSIONING,Third Party Payments,Revenue
Walsall Council,http://opendatacommunities.org/id/metropolitan-district-council/walsall,WC77-162,28/02/2017,Adult Social Care,ALPHA HEALTH CARE LTD,14/02/2017,"1,649.80",73373-RESIDENTIAL & NURSING CARE PLACEMENTS,OP COMMISSIONING,Third Party Payments,Revenue
Walsall Council,http://opendatacommunities.org/id/metropolitan-district-council/walsall,WC77-163,28/02/2017,Adult Social Care,ALPHA HEALTH CARE LTD,14/02/2017,"1,649.80",73373-RESIDENTIAL & NURSING CARE PLACEMENTS,OP COMMISSIONING,Third Party Payments,Revenue
Walsall Council,http://opendatacommunities.org/id/metropolitan-district-council/walsall,WC77-164,28/02/2017,Adult Social Care,ALPHA HEALTH CARE LTD,14/02/2017,"1,649.80",73373-RESIDENTIAL & NURSING CARE PLACEMENTS,OP COMMISSIONING,Third Party Payments,Revenue
Walsall Council,http://opendatacommunities.org/id/metropolitan-district-council/walsall,WC77-165,28/02/2017,Adult Social Care,ALPHA HEALTH CARE LTD,14/02/2017,"1,649.80",73373-RESIDENTIAL & NURSING CARE PLACEMENTS,MH COMMISSIONING,Third Party Payments,Revenue
Walsall Council,http://opendatacommunities.org/id/metropolitan-district-council/walsall,WC77-166,28/02/2017,Adult Social Care,ALPHA HEALTH CARE LTD,14/02/2017,"1,649.80",73373-RESIDENTIAL & NURSING CARE PLACEMENTS,OP COMMISSIONING,Third Party Payments,Revenue
Walsall Council,http://opendatacommunities.org/id/metropolitan-district-council/walsall,WC77-167,28/02/2017,Adult Social Care,ALPHA HEALTH CARE LTD,14/02/2017,"1,649.80",73373-RESIDENTIAL & NURSING CARE PLACEMENTS,OP COMMISSIONING,Third Party Payments,Revenue
Walsall Council,http://opendatacommunities.org/id/metropolitan-district-council/walsall,WC77-168,28/02/2017,Adult Social Care,ALPHA HEALTH CARE LTD,14/02/2017,"1,649.80",73373-RESIDENTIAL & NURSING CARE PLACEMENTS,OP COMMISSIONING,Third Party Payments,Revenue
Walsall Council,http://opendatacommunities.org/id/metropolitan-district-council/walsall,WC77-169,28/02/2017,Adult Social Care,ALPHA HEALTH CARE LTD,14/02/2017,"1,649.80",73373-RESIDENTIAL & NURSING CARE PLACEMENTS,OP COMMISSIONING,Third Party Payments,Revenue
Walsall Council,http://opendatacommunities.org/id/metropolitan-district-council/walsall,WC77-170,28/02/2017,Adult Social Care,ALPHA HEALTH CARE LTD,14/02/2017,"1,649.80",73373-RESIDENTIAL & NURSING CARE PLACEMENTS,MH COMMISSIONING,Third Party Payments,Revenue
Walsall Council,http://opendatacommunities.org/id/metropolitan-district-council/walsall,WC77-171,28/02/2017,Adult Social Care,ALPHA HEALTH CARE LTD,14/02/2017,"1,753.04",73373-RESIDENTIAL & NURSING CARE PLACEMENTS,OP COMMISSIONING,Third Party Payments,Revenue
Walsall Council,http://opendatacommunities.org/id/metropolitan-district-council/walsall,WC77-172,28/02/2017,Adult Social Care,ALPHA HEALTH CARE LTD,14/02/2017,"1,800.00",73373-RESIDENTIAL & NURSING CARE PLACEMENTS,OP COMMISSIONING,Third Party Payments,Revenue
Walsall Council,http://opendatacommunities.org/id/metropolitan-district-council/walsall,WC77-173,28/02/2017,Adult Social Care,ALPHA HEALTH CARE LTD,14/02/2017,"1,800.00",73373-RESIDENTIAL & NURSING CARE PLACEMENTS,OP COMMISSIONING,Third Party Payments,Revenue
Walsall Council,http://opendatacommunities.org/id/metropolitan-district-council/walsall,WC77-174,28/02/2017,Adult Social Care,ALPHA HEALTH CARE LTD,14/02/2017,"1,800.00",73373-RESIDENTIAL & NURSING CARE PLACEMENTS,OP COMMISSIONING,Third Party Payments,Revenue
Walsall Council,http://opendatacommunities.org/id/metropolitan-district-council/walsall,WC77-175,28/02/2017,Adult Social Care,ALPHA HEALTH CARE LTD,14/02/2017,"2,095.00",73373-RESIDENTIAL & NURSING CARE PLACEMENTS,OP COMMISSIONING,Third Party Payments,Revenue
Walsall Council,http://opendatacommunities.org/id/metropolitan-district-council/walsall,WC77-176,28/02/2017,Adult Social Care,ALPHA HEALTH CARE LTD,14/02/2017,"2,175.00",73373-RESIDENTIAL & NURSING CARE PLACEMENTS,MH COMMISSIONING,Third Party Payments,Revenue
Walsall Council,http://opendatacommunities.org/id/metropolitan-district-council/walsall,WC77-177,28/02/2017,Adult Social Care,ALPHA HEALTH CARE LTD,14/02/2017,"2,326.00",73373-RESIDENTIAL & NURSING CARE PLACEMENTS,MH COMMISSIONING,Third Party Payments,Revenue
Walsall Council,http://opendatacommunities.org/id/metropolitan-district-council/walsall,WC77-178,28/02/2017,Adult Social Care,ALPHA HEALTH CARE LTD,14/02/2017,"2,860.00",73373-RESIDENTIAL & NURSING CARE PLACEMENTS,MH COMMISSIONING,Third Party Payments,Revenue
Walsall Council,http://opendatacommunities.org/id/metropolitan-district-council/walsall,WC77-179,28/02/2017,Adult Social Care,ALPHA HEALTH CARE LTD,14/02/2017,"2,864.28",73373-RESIDENTIAL & NURSING CARE PLACEMENTS,MH COMMISSIONING,Third Party Payments,Revenue
Walsall Council,http://opendatacommunities.org/id/metropolitan-district-council/walsall,WC77-180,28/02/2017,Adult Social Care,ALPHA HEALTH CARE LTD,14/02/2017,"5,800.00",73373-RESIDENTIAL & NURSING CARE PLACEMENTS,MH COMMISSIONING,Third Party Payments,Revenue
Walsall Council,http://opendatacommunities.org/id/metropolitan-district-council/walsall,WC77-181,28/02/2017,Adult Social Care,ALPHA HEALTH CARE LTD,14/02/2017,"5,800.00",73373-RESIDENTIAL & NURSING CARE PLACEMENTS,MH COMMISSIONING,Third Party Payments,Revenue
Walsall Council,http://opendatacommunities.org/id/metropolitan-district-council/walsall,WC77-182,28/02/2017,Childrens,ALUMWELLIES NURSERY,06/02/2017,806.85,66505-OTHER-GRANTS TO OTHER ORGS,EARLY YEARS - 2 YR OLDS,Third Party Payments,Revenue
Walsall Council,http://opendatacommunities.org/id/metropolitan-district-council/walsall,WC77-183,28/02/2017,Childrens,ALUMWELLIES NURSERY,14/02/2017,"1,440.00",63120-CRECHE FACILITIES-SERVICES-FEES,BUDDY COSTS 0-5,Supplies & Services,Revenue
Walsall Council,http://opendatacommunities.org/id/metropolitan-district-council/walsall,WC77-184,28/02/2017,Childrens,ALUMWELLIES NURSERY,14/02/2017,"2,880.00",63120-CRECHE FACILITIES-SERVICES-FEES,BUDDY COSTS 0-5,Supplies & Services,Revenue
Walsall Council,http://opendatacommunities.org/id/metropolitan-district-council/walsall,WC77-185,28/02/2017,Childrens,AMAH NURSERIES LIMITED T/A BANANA MOON WALSALL,06/02/2017,"1,100.25",66505-OTHER-GRANTS TO OTHER ORGS,EARLY YEARS - 2 YR OLDS,Third Party Payments,Revenue
Walsall Council,http://opendatacommunities.org/id/metropolitan-district-council/walsall,WC77-186,28/02/2017,Childrens,REDACTED,13/02/2017,808.04,74006-HOLIDAY/CHRISTMAS ALLOWANCE-FOSTER CARERS-OTH AGENCY PROVISION,INTERNAL FOSTER CARE PROVISION,Third Party Payments,Revenue
Walsall Council,http://opendatacommunities.org/id/metropolitan-district-council/walsall,WC77-187,28/02/2017,Childrens,REDACTED,27/02/2017,540.20,62515-MISCELLANEOUS SUPPLIES,INTERNAL FOSTER CARE PROVISION,Supplies & Services,Revenue
Walsall Council,http://opendatacommunities.org/id/metropolitan-district-council/walsall,WC77-188,28/02/2017,Childrens,REDACTED,01/02/2017,650.92,74006-HOLIDAY/CHRISTMAS ALLOWANCE-FOSTER CARERS-OTH AGENCY PROVISION,INTERNAL FOSTER CARE PROVISION,Third Party Payments,Revenue
Walsall Council,http://opendatacommunities.org/id/metropolitan-district-council/walsall,WC77-189,28/02/2017,Childrens,REDACTED,06/02/2017,336.92,76422-DIRECT PAYMENTS TO SOCIAL SERVICES CLIENTS,FAMILY SUPPORT - DIRECT PAYMENTS,Transfer Payments,Revenue
Walsall Council,http://opendatacommunities.org/id/metropolitan-district-council/walsall,WC77-190,28/02/2017,Change and Governance,AMEY LG LIMITED,01/02/2017,255.24,60008-MAINTENANCE-FURNITURE & EQUIPMENT,AREA PARTNERSHIPS,Supplies & Services,Revenue
Walsall Council,http://opendatacommunities.org/id/metropolitan-district-council/walsall,WC77-191,28/02/2017,Economy & Environment,AMEY LG LIMITED,15/02/2017,326.68,01009-SITE WORKS - OTHER CONTRACTORS,CFR 1057 CALDMORE ROAD ONE WAY SCHEME,Capital,Capital
Walsall Council,http://opendatacommunities.org/id/metropolitan-district-council/walsall,WC77-192,28/02/2017,Economy & Environment,AMEY LG LIMITED,02/02/2017,344.07,60500-GENERAL MATERIALS,GREEN SPACE MANAGEMENT,Supplies & Services,Revenue
Walsall Council,http://opendatacommunities.org/id/metropolitan-district-council/walsall,WC77-193,28/02/2017,Economy & Environment,AMEY LG LIMITED,02/02/2017,462.12,73025-PROFESSIONAL SERVICES-PRIV CONTRACTOR & OTHER AGENCIES,TRAFFIC MANAGEMENT,Third Party Payments,Revenue
Walsall Council,http://opendatacommunities.org/id/metropolitan-district-council/walsall,WC77-194,28/02/2017,Economy & Environment,AMEY LG LIMITED,06/02/2017,920.52,73002-SECURITY-PRIV CONTRACTOR FEES,TRAFFIC CONTROL,Third Party Payments,Revenue
Walsall Council,http://opendatacommunities.org/id/metropolitan-district-council/walsall,WC77-195,28/02/2017,Economy & Environment,AMEY LG LIMITED,01/02/2017,"8,574.78",01006-SITE WORKS MAIN CONTRACTORS,CFR 1147 MEASURES TO ENCOURAGE WALKING-UPGRADE ZEBRA CROSSING PROGRAMME,Capital,Capital
Walsall Council,http://opendatacommunities.org/id/metropolitan-district-council/walsall,WC77-196,28/02/2017,Economy & Environment,AMEY LG LIMITED,01/02/2017,"11,195.66",73025-PROFESSIONAL SERVICES-PRIV CONTRACTOR & OTHER AGENCIES,TRAFFIC MANAGEMENT,Third Party Payments,Revenue
Walsall Council,http://opendatacommunities.org/id/metropolitan-district-council/walsall,WC77-197,28/02/2017,Childrens,AMG NURSING CARE SERVICES,17/02/2017,370.24,63000-PROFESSIONAL FEES AND SERVICES,DIRECTLY COMMISSIONED NURSING SERVICES,Supplies & Services,Revenue
Walsall Council,http://opendatacommunities.org/id/metropolitan-district-council/walsall,WC77-198,28/02/2017,Childrens,AMG NURSING CARE SERVICES,21/02/2017,370.24,63000-PROFESSIONAL FEES AND SERVICES,DIRECTLY COMMISSIONED NURSING SERVICES,Supplies & Services,Revenue
Walsall Council,http://opendatacommunities.org/id/metropolitan-district-council/walsall,WC77-199,28/02/2017,Childrens,AMG NURSING CARE SERVICES,02/02/2017,477.36,63000-PROFESSIONAL FEES AND SERVICES,DIRECTLY COMMISSIONED NURSING SERVICES,Supplies & Services,Revenue
Walsall Council,http://opendatacommunities.org/id/metropolitan-district-council/walsall,WC77-200,28/02/2017,Childrens,AMG NURSING CARE SERVICES,17/02/2017,"1,088.88",63000-PROFESSIONAL FEES AND SERVICES,DIRECTLY COMMISSIONED NURSING SERVICES,Supplies & Services,Revenue
Walsall Council,http://opendatacommunities.org/id/metropolitan-district-council/walsall,WC77-201,28/02/2017,Childrens,AMG NURSING CARE SERVICES,01/02/2017,"1,110.72",63000-PROFESSIONAL FEES AND SERVICES,DIRECTLY COMMISSIONED NURSING SERVICES,Supplies & Services,Revenue
Walsall Council,http://opendatacommunities.org/id/metropolitan-district-council/walsall,WC77-202,28/02/2017,Childrens,AMG NURSING CARE SERVICES,17/02/2017,"2,228.76",63000-PROFESSIONAL FEES AND SERVICES,DIRECTLY COMMISSIONED NURSING SERVICES,Supplies & Services,Revenue
Walsall Council,http://opendatacommunities.org/id/metropolitan-district-council/walsall,WC77-203,28/02/2017,Childrens,AMG NURSING CARE SERVICES,02/02/2017,"2,274.48",63000-PROFESSIONAL FEES AND SERVICES,DIRECTLY COMMISSIONED NURSING SERVICES,Supplies & Services,Revenue
Walsall Council,http://opendatacommunities.org/id/metropolitan-district-council/walsall,WC77-204,28/02/2017,Childrens,AMG NURSING CARE SERVICES,06/02/2017,"2,274.48",63000-PROFESSIONAL FEES AND SERVICES,DIRECTLY COMMISSIONED NURSING SERVICES,Supplies & Services,Revenue
Walsall Council,http://opendatacommunities.org/id/metropolitan-district-council/walsall,WC77-205,28/02/2017,Childrens,AMG NURSING CARE SERVICES,01/02/2017,"2,685.92",63000-PROFESSIONAL FEES AND SERVICES,DIRECTLY COMMISSIONED NURSING SERVICES,Supplies & Services,Revenue
Walsall Council,http://opendatacommunities.org/id/metropolitan-district-council/walsall,WC77-206,28/02/2017,Adult Social Care,AMG NURSING CARE SERVICES,01/02/2017,"10,058.14",73374-SUPPORTED & OTHER ACCOMMODATION,OP COMMISSIONING,Third Party Payments,Revenue
Walsall Council,http://opendatacommunities.org/id/metropolitan-district-council/walsall,WC77-207,28/02/2017,Adult Social Care,AMG NURSING CARE SERVICES,23/02/2017,"10,687.77",73374-SUPPORTED & OTHER ACCOMMODATION,OP COMMISSIONING,Third Party Payments,Revenue
Walsall Council,http://opendatacommunities.org/id/metropolitan-district-council/walsall,WC77-208,28/02/2017,Adult Social Care,REDACTED,06/02/2017,"1,133.44",76422-DIRECT PAYMENTS TO SOCIAL SERVICES CLIENTS,OP COMMISSIONING,Transfer Payments,Revenue
Walsall Council,http://opendatacommunities.org/id/metropolitan-district-council/walsall,WC77-209,28/02/2017,Childrens,REDACTED,13/02/2017,925.92,74006-HOLIDAY/CHRISTMAS ALLOWANCE-FOSTER CARERS-OTH AGENCY PROVISION,INTERNAL FOSTER CARE PROVISION,Third Party Payments,Revenue
Walsall Council,http://opendatacommunities.org/id/metropolitan-district-council/walsall,WC77-210,28/02/2017,Childrens,REDACTED,13/02/2017,425.08,74006-HOLIDAY/CHRISTMAS ALLOWANCE-FOSTER CARERS-OTH AGENCY PROVISION,INTERNAL FOSTER CARE PROVISION,Third Party Payments,Revenue
Walsall Council,http://opendatacommunities.org/id/metropolitan-district-council/walsall,WC77-211,28/02/2017,Adult Social Care,REDACTED,06/02/2017,576.00,76422-DIRECT PAYMENTS TO SOCIAL SERVICES CLIENTS,OP COMMISSIONING,Transfer Payments,Revenue
Walsall Council,http://opendatacommunities.org/id/metropolitan-district-council/walsall,WC77-212,28/02/2017,Adult Social Care,REDACTED,06/02/2017,756.00,76422-DIRECT PAYMENTS TO SOCIAL SERVICES CLIENTS,OP COMMISSIONING,Transfer Payments,Revenue
Walsall Council,http://opendatacommunities.org/id/metropolitan-district-council/walsall,WC77-213,28/02/2017,Adult Social Care,ANCHOR,21/02/2017,642.86,73373-RESIDENTIAL & NURSING CARE PLACEMENTS,OP COMMISSIONING,Third Party Payments,Revenue
Walsall Council,http://opendatacommunities.org/id/metropolitan-district-council/walsall,WC77-214,28/02/2017,Adult Social Care,ANCHOR,14/02/2017,"1,620.00",73373-RESIDENTIAL & NURSING CARE PLACEMENTS,OP COMMISSIONING,Third Party Payments,Revenue
Walsall Council,http://opendatacommunities.org/id/metropolitan-district-council/walsall,WC77-215,28/02/2017,Adult Social Care,ANCHOR,14/02/2017,"1,620.00",73373-RESIDENTIAL & NURSING CARE PLACEMENTS,OP COMMISSIONING,Third Party Payments,Revenue
Walsall Council,http://opendatacommunities.org/id/metropolitan-district-council/walsall,WC77-216,28/02/2017,Adult Social Care,ANCHOR,14/02/2017,"1,800.00",73373-RESIDENTIAL & NURSING CARE PLACEMENTS,OP COMMISSIONING,Third Party Payments,Revenue
Walsall Council,http://opendatacommunities.org/id/metropolitan-district-council/walsall,WC77-217,28/02/2017,Adult Social Care,ANCHOR,14/02/2017,"1,800.00",73373-RESIDENTIAL & NURSING CARE PLACEMENTS,MH COMMISSIONING,Third Party Payments,Revenue
Walsall Council,http://opendatacommunities.org/id/metropolitan-district-council/walsall,WC77-218,28/02/2017,Adult Social Care,ANCHOR,14/02/2017,"1,800.00",73373-RESIDENTIAL & NURSING CARE PLACEMENTS,OP COMMISSIONING,Third Party Payments,Revenue
Walsall Council,http://opendatacommunities.org/id/metropolitan-district-council/walsall,WC77-219,28/02/2017,Adult Social Care,ANCHOR,14/02/2017,"1,800.00",73373-RESIDENTIAL & NURSING CARE PLACEMENTS,OP COMMISSIONING,Third Party Payments,Revenue
Walsall Council,http://opendatacommunities.org/id/metropolitan-district-council/walsall,WC77-220,28/02/2017,Adult Social Care,ANCHOR,14/02/2017,"1,800.00",73373-RESIDENTIAL & NURSING CARE PLACEMENTS,OP COMMISSIONING,Third Party Payments,Revenue
Walsall Council,http://opendatacommunities.org/id/metropolitan-district-council/walsall,WC77-221,28/02/2017,Adult Social Care,ANCHOR,14/02/2017,"1,800.00",73373-RESIDENTIAL & NURSING CARE PLACEMENTS,OP COMMISSIONING,Third Party Payments,Revenue
Walsall Council,http://opendatacommunities.org/id/metropolitan-district-council/walsall,WC77-222,28/02/2017,Adult Social Care,ANCHOR,14/02/2017,"1,800.00",73373-RESIDENTIAL & NURSING CARE PLACEMENTS,OP COMMISSIONING,Third Party Payments,Revenue
Walsall Council,http://opendatacommunities.org/id/metropolitan-district-council/walsall,WC77-223,28/02/2017,Adult Social Care,ANCHOR,14/02/2017,"1,800.00",73373-RESIDENTIAL & NURSING CARE PLACEMENTS,OP COMMISSIONING,Third Party Payments,Revenue
Walsall Council,http://opendatacommunities.org/id/metropolitan-district-council/walsall,WC77-224,28/02/2017,Adult Social Care,ANCHOR,14/02/2017,"1,800.00",73373-RESIDENTIAL & NURSING CARE PLACEMENTS,OP COMMISSIONING,Third Party Payments,Revenue
Walsall Council,http://opendatacommunities.org/id/metropolitan-district-council/walsall,WC77-225,28/02/2017,Adult Social Care,ANCHOR,14/02/2017,"1,800.00",73373-RESIDENTIAL & NURSING CARE PLACEMENTS,OP COMMISSIONING,Third Party Payments,Revenue
Walsall Council,http://opendatacommunities.org/id/metropolitan-district-council/walsall,WC77-226,28/02/2017,Adult Social Care,ANCHOR,14/02/2017,"1,800.00",73373-RESIDENTIAL & NURSING CARE PLACEMENTS,OP COMMISSIONING,Third Party Payments,Revenue
Walsall Council,http://opendatacommunities.org/id/metropolitan-district-council/walsall,WC77-227,28/02/2017,Adult Social Care,ANCHOR,14/02/2017,"1,800.00",73373-RESIDENTIAL & NURSING CARE PLACEMENTS,OP COMMISSIONING,Third Party Payments,Revenue
Walsall Council,http://opendatacommunities.org/id/metropolitan-district-council/walsall,WC77-228,28/02/2017,Adult Social Care,ANCHOR,14/02/2017,"1,800.00",73373-RESIDENTIAL & NURSING CARE PLACEMENTS,OP COMMISSIONING,Third Party Payments,Revenue
Walsall Council,http://opendatacommunities.org/id/metropolitan-district-council/walsall,WC77-229,28/02/2017,Adult Social Care,ANCHOR,14/02/2017,"1,800.00",73373-RESIDENTIAL & NURSING CARE PLACEMENTS,OP COMMISSIONING,Third Party Payments,Revenue
Walsall Council,http://opendatacommunities.org/id/metropolitan-district-council/walsall,WC77-230,28/02/2017,Adult Social Care,ANCHOR,14/02/2017,"1,800.00",73373-RESIDENTIAL & NURSING CARE PLACEMENTS,MH COMMISSIONING,Third Party Payments,Revenue
Walsall Council,http://opendatacommunities.org/id/metropolitan-district-council/walsall,WC77-231,28/02/2017,Adult Social Care,ANCHOR,14/02/2017,"1,800.00",73373-RESIDENTIAL & NURSING CARE PLACEMENTS,OP COMMISSIONING,Third Party Payments,Revenue
Walsall Council,http://opendatacommunities.org/id/metropolitan-district-council/walsall,WC77-232,28/02/2017,Adult Social Care,ANCHOR,14/02/2017,"1,800.00",73373-RESIDENTIAL & NURSING CARE PLACEMENTS,OP COMMISSIONING,Third Party Payments,Revenue
Walsall Council,http://opendatacommunities.org/id/metropolitan-district-council/walsall,WC77-233,28/02/2017,Adult Social Care,ANCHOR,21/02/2017,"1,800.00",73373-RESIDENTIAL & NURSING CARE PLACEMENTS,OP COMMISSIONING,Third Party Payments,Revenue
Walsall Council,http://opendatacommunities.org/id/metropolitan-district-council/walsall,WC77-234,28/02/2017,Adult Social Care,ANCHOR,21/02/2017,"1,800.00",73373-RESIDENTIAL & NURSING CARE PLACEMENTS,OP COMMISSIONING,Third Party Payments,Revenue
Walsall Council,http://opendatacommunities.org/id/metropolitan-district-council/walsall,WC77-235,28/02/2017,Adult Social Care,ANCHOR,28/02/2017,"1,800.00",73373-RESIDENTIAL & NURSING CARE PLACEMENTS,OP COMMISSIONING,Third Party Payments,Revenue
Walsall Council,http://opendatacommunities.org/id/metropolitan-district-council/walsall,WC77-236,28/02/2017,Adult Social Care,ANCHOR,28/02/2017,"1,800.00",73373-RESIDENTIAL & NURSING CARE PLACEMENTS,OP COMMISSIONING,Third Party Payments,Revenue
Walsall Council,http://opendatacommunities.org/id/metropolitan-district-council/walsall,WC77-237,28/02/2017,Adult Social Care,ANCHOR,21/02/2017,"8,100.00",73373-RESIDENTIAL & NURSING CARE PLACEMENTS,OP COMMISSIONING,Third Party Payments,Revenue
Walsall Council,http://opendatacommunities.org/id/metropolitan-district-council/walsall,WC77-238,28/02/2017,Childrens,REDACTED,01/02/2017,810.32,74006-HOLIDAY/CHRISTMAS ALLOWANCE-FOSTER CARERS-OTH AGENCY PROVISION,INTERNAL FOSTER CARE PROVISION,Third Party Payments,Revenue
Walsall Council,http://opendatacommunities.org/id/metropolitan-district-council/walsall,WC77-239,28/02/2017,Childrens,REDACTED,27/02/2017,"1,165.06",62515-MISCELLANEOUS SUPPLIES,INTERNAL FOSTER CARE PROVISION,Supplies & Services,Revenue
Walsall Council,http://opendatacommunities.org/id/metropolitan-district-council/walsall,WC77-240,28/02/2017,Adult Social Care,REDACTED,06/02/2017,378.00,76422-DIRECT PAYMENTS TO SOCIAL SERVICES CLIENTS,PD COMMISSIONING,Transfer Payments,Revenue
Walsall Council,http://opendatacommunities.org/id/metropolitan-district-council/walsall,WC77-241,28/02/2017,Adult Social Care,ANGEL COURT RESIDENTIAL CARE HOME,14/02/2017,"1,272.86",73373-RESIDENTIAL & NURSING CARE PLACEMENTS,OP COMMISSIONING,Third Party Payments,Revenue
Walsall Council,http://opendatacommunities.org/id/metropolitan-district-council/walsall,WC77-242,28/02/2017,Adult Social Care,ANGEL COURT RESIDENTIAL CARE HOME,14/02/2017,"1,873.16",73373-RESIDENTIAL & NURSING CARE PLACEMENTS,OP COMMISSIONING,Third Party Payments,Revenue
Walsall Council,http://opendatacommunities.org/id/metropolitan-district-council/walsall,WC77-243,28/02/2017,Adult Social Care,ANGEL COURT RESIDENTIAL CARE HOME,14/02/2017,"1,942.00",73373-RESIDENTIAL & NURSING CARE PLACEMENTS,OP COMMISSIONING,Third Party Payments,Revenue
Walsall Council,http://opendatacommunities.org/id/metropolitan-district-council/walsall,WC77-244,28/02/2017,Childrens,REDACTED,13/02/2017,"1,309.21",74006-HOLIDAY/CHRISTMAS ALLOWANCE-FOSTER CARERS-OTH AGENCY PROVISION,INTERNAL FOSTER CARE PROVISION,Third Party Payments,Revenue
Walsall Council,http://opendatacommunities.org/id/metropolitan-district-council/walsall,WC77-245,28/02/2017,Childrens,REDACTED,13/02/2017,349.16,74006-HOLIDAY/CHRISTMAS ALLOWANCE-FOSTER CARERS-OTH AGENCY PROVISION,INTERNAL FOSTER CARE PROVISION,Third Party Payments,Revenue
Walsall Council,http://opendatacommunities.org/id/metropolitan-district-council/walsall,WC77-246,28/02/2017,Adult Social Care,REDACTED,06/02/2017,344.00,76422-DIRECT PAYMENTS TO SOCIAL SERVICES CLIENTS,LD COMMISSIONING,Transfer Payments,Revenue
Walsall Council,http://opendatacommunities.org/id/metropolitan-district-council/walsall,WC77-247,28/02/2017,Adult Social Care,ANSON COURT RESIDENTIAL HOME,14/02/2017,"1,800.00",73373-RESIDENTIAL & NURSING CARE PLACEMENTS,OP COMMISSIONING,Third Party Payments,Revenue
Walsall Council,http://opendatacommunities.org/id/metropolitan-district-council/walsall,WC77-248,28/02/2017,Adult Social Care,ANSON COURT RESIDENTIAL HOME,14/02/2017,"1,800.00",73373-RESIDENTIAL & NURSING CARE PLACEMENTS,OP COMMISSIONING,Third Party Payments,Revenue
Walsall Council,http://opendatacommunities.org/id/metropolitan-district-council/walsall,WC77-249,28/02/2017,Adult Social Care,ANSON COURT RESIDENTIAL HOME,14/02/2017,"1,800.00",73373-RESIDENTIAL & NURSING CARE PLACEMENTS,MH COMMISSIONING,Third Party Payments,Revenue
Walsall Council,http://opendatacommunities.org/id/metropolitan-district-council/walsall,WC77-250,28/02/2017,Adult Social Care,ANSON COURT RESIDENTIAL HOME,14/02/2017,"1,800.00",73373-RESIDENTIAL & NURSING CARE PLACEMENTS,OP COMMISSIONING,Third Party Payments,Revenue
Walsall Council,http://opendatacommunities.org/id/metropolitan-district-council/walsall,WC77-251,28/02/2017,Adult Social Care,ANSON COURT RESIDENTIAL HOME,14/02/2017,"1,800.00",73373-RESIDENTIAL & NURSING CARE PLACEMENTS,OP COMMISSIONING,Third Party Payments,Revenue
Walsall Council,http://opendatacommunities.org/id/metropolitan-district-council/walsall,WC77-252,28/02/2017,Adult Social Care,ANSON COURT RESIDENTIAL HOME,14/02/2017,"1,800.00",73373-RESIDENTIAL & NURSING CARE PLACEMENTS,OP COMMISSIONING,Third Party Payments,Revenue
Walsall Council,http://opendatacommunities.org/id/metropolitan-district-council/walsall,WC77-253,28/02/2017,Adult Social Care,ANSON COURT RESIDENTIAL HOME,14/02/2017,"1,800.00",73373-RESIDENTIAL & NURSING CARE PLACEMENTS,MH COMMISSIONING,Third Party Payments,Revenue
Walsall Council,http://opendatacommunities.org/id/metropolitan-district-council/walsall,WC77-254,28/02/2017,Adult Social Care,ANSON COURT RESIDENTIAL HOME,14/02/2017,"1,800.00",73373-RESIDENTIAL & NURSING CARE PLACEMENTS,OP COMMISSIONING,Third Party Payments,Revenue
Walsall Council,http://opendatacommunities.org/id/metropolitan-district-council/walsall,WC77-255,28/02/2017,Adult Social Care,ANSON COURT RESIDENTIAL HOME,14/02/2017,"1,800.00",73373-RESIDENTIAL & NURSING CARE PLACEMENTS,MH COMMISSIONING,Third Party Payments,Revenue
Walsall Council,http://opendatacommunities.org/id/metropolitan-district-council/walsall,WC77-256,28/02/2017,Adult Social Care,ANSON COURT RESIDENTIAL HOME,14/02/2017,"1,800.00",73373-RESIDENTIAL & NURSING CARE PLACEMENTS,OP COMMISSIONING,Third Party Payments,Revenue
Walsall Council,http://opendatacommunities.org/id/metropolitan-district-council/walsall,WC77-257,28/02/2017,Adult Social Care,ANSON COURT RESIDENTIAL HOME,14/02/2017,"1,800.00",73373-RESIDENTIAL & NURSING CARE PLACEMENTS,MH COMMISSIONING,Third Party Payments,Revenue
Walsall Council,http://opendatacommunities.org/id/metropolitan-district-council/walsall,WC77-258,28/02/2017,Adult Social Care,ANSON COURT RESIDENTIAL HOME,14/02/2017,"1,800.00",73373-RESIDENTIAL & NURSING CARE PLACEMENTS,OP COMMISSIONING,Third Party Payments,Revenue
Walsall Council,http://opendatacommunities.org/id/metropolitan-district-council/walsall,WC77-259,28/02/2017,Adult Social Care,ANSON COURT RESIDENTIAL HOME,14/02/2017,"1,800.00",73373-RESIDENTIAL & NURSING CARE PLACEMENTS,OP COMMISSIONING,Third Party Payments,Revenue
Walsall Council,http://opendatacommunities.org/id/metropolitan-district-council/walsall,WC77-260,28/02/2017,Adult Social Care,ANSON COURT RESIDENTIAL HOME,14/02/2017,"1,800.00",73373-RESIDENTIAL & NURSING CARE PLACEMENTS,OP COMMISSIONING,Third Party Payments,Revenue
Walsall Council,http://opendatacommunities.org/id/metropolitan-district-council/walsall,WC77-261,28/02/2017,Adult Social Care,ANSON COURT RESIDENTIAL HOME,14/02/2017,"1,800.00",73373-RESIDENTIAL & NURSING CARE PLACEMENTS,OP COMMISSIONING,Third Party Payments,Revenue
Walsall Council,http://opendatacommunities.org/id/metropolitan-district-council/walsall,WC77-262,28/02/2017,Adult Social Care,ANSON COURT RESIDENTIAL HOME,14/02/2017,"1,800.00",73373-RESIDENTIAL & NURSING CARE PLACEMENTS,OP COMMISSIONING,Third Party Payments,Revenue
Walsall Council,http://opendatacommunities.org/id/metropolitan-district-council/walsall,WC77-263,28/02/2017,Adult Social Care,ANSON COURT RESIDENTIAL HOME,14/02/2017,"1,800.00",73373-RESIDENTIAL & NURSING CARE PLACEMENTS,OP COMMISSIONING,Third Party Payments,Revenue
Walsall Council,http://opendatacommunities.org/id/metropolitan-district-council/walsall,WC77-264,28/02/2017,Adult Social Care,ANSON COURT RESIDENTIAL HOME,14/02/2017,"1,800.00",73373-RESIDENTIAL & NURSING CARE PLACEMENTS,OP COMMISSIONING,Third Party Payments,Revenue
Walsall Council,http://opendatacommunities.org/id/metropolitan-district-council/walsall,WC77-265,28/02/2017,Adult Social Care,ANSON COURT RESIDENTIAL HOME,14/02/2017,"1,800.00",73373-RESIDENTIAL & NURSING CARE PLACEMENTS,OP COMMISSIONING,Third Party Payments,Revenue
Walsall Council,http://opendatacommunities.org/id/metropolitan-district-council/walsall,WC77-266,28/02/2017,Adult Social Care,ANSON COURT RESIDENTIAL HOME,14/02/2017,"1,800.00",73373-RESIDENTIAL & NURSING CARE PLACEMENTS,OP COMMISSIONING,Third Party Payments,Revenue
Walsall Council,http://opendatacommunities.org/id/metropolitan-district-council/walsall,WC77-267,28/02/2017,Adult Social Care,ANSON COURT RESIDENTIAL HOME,14/02/2017,"1,880.00",73373-RESIDENTIAL & NURSING CARE PLACEMENTS,OP COMMISSIONING,Third Party Payments,Revenue
Walsall Council,http://opendatacommunities.org/id/metropolitan-district-council/walsall,WC77-268,28/02/2017,Adult Social Care,ANSON COURT RESIDENTIAL HOME,14/02/2017,"2,828.57",73373-RESIDENTIAL & NURSING CARE PLACEMENTS,OP COMMISSIONING,Third Party Payments,Revenue
Walsall Council,http://opendatacommunities.org/id/metropolitan-district-council/walsall,WC77-269,28/02/2017,Adult Social Care,ANSON COURT RESIDENTIAL HOME,14/02/2017,"3,342.86",73373-RESIDENTIAL & NURSING CARE PLACEMENTS,MH COMMISSIONING,Third Party Payments,Revenue
Walsall Council,http://opendatacommunities.org/id/metropolitan-district-council/walsall,WC77-270,28/02/2017,Adult Social Care,ANSON COURT RESIDENTIAL HOME,14/02/2017,"4,880.00",73373-RESIDENTIAL & NURSING CARE PLACEMENTS,MH COMMISSIONING,Third Party Payments,Revenue
Walsall Council,http://opendatacommunities.org/id/metropolitan-district-council/walsall,WC77-271,28/02/2017,Childrens,ANSON PRIMARY SCHOOL,10/02/2017,"1,600.00",77300-ISB-FORMULA ALLOCATION,OUT OF BOROUGH SCHOOLS,Transfer Payments,Revenue
Walsall Council,http://opendatacommunities.org/id/metropolitan-district-council/walsall,WC77-272,28/02/2017,Childrens,REDACTED,13/02/2017,669.32,74006-HOLIDAY/CHRISTMAS ALLOWANCE-FOSTER CARERS-OTH AGENCY PROVISION,INTERNAL FOSTER CARE PROVISION,Third Party Payments,Revenue
Walsall Council,http://opendatacommunities.org/id/metropolitan-district-council/walsall,WC77-273,28/02/2017,Childrens,REDACTED,13/02/2017,312.76,74006-HOLIDAY/CHRISTMAS ALLOWANCE-FOSTER CARERS-OTH AGENCY PROVISION,INTERNAL FOSTER CARE PROVISION,Third Party Payments,Revenue
Walsall Council,http://opendatacommunities.org/id/metropolitan-district-council/walsall,WC77-274,28/02/2017,Economy & Environment,APCOA PARKING SERVICES (UK) LTD,09/02/2017,"46,289.69",63000-PROFESSIONAL FEES AND SERVICES,PARKING SERVICES OFF-STREET,Supplies & Services,Revenue
Walsall Council,http://opendatacommunities.org/id/metropolitan-district-council/walsall,WC77-275,28/02/2017,Adult Social Care,APNA HOUSE LTD,07/02/2017,"5,586.96",73373-RESIDENTIAL & NURSING CARE PLACEMENTS,OP COMMISSIONING,Third Party Payments,Revenue
Walsall Council,http://opendatacommunities.org/id/metropolitan-district-council/walsall,WC77-276,28/02/2017,Adult Social Care,APNA HOUSE LTD,14/02/2017,"5,586.96",73373-RESIDENTIAL & NURSING CARE PLACEMENTS,OP COMMISSIONING,Third Party Payments,Revenue
Walsall Council,http://opendatacommunities.org/id/metropolitan-district-council/walsall,WC77-277,28/02/2017,Economy & Environment,AQUALYMPIC,20/02/2017,375.00,34305-AGENCY STAFF-EMPLOYEES,OAK PARK,Employees,Revenue
Walsall Council,http://opendatacommunities.org/id/metropolitan-district-council/walsall,WC77-278,28/02/2017,Economy & Environment,AQUALYMPIC,20/02/2017,667.50,34305-AGENCY STAFF-EMPLOYEES,OAK PARK,Employees,Revenue
Walsall Council,http://opendatacommunities.org/id/metropolitan-district-council/walsall,WC77-279,28/02/2017,Economy & Environment,AQUALYMPIC,02/02/2017,840.00,34305-AGENCY STAFF-EMPLOYEES,OAK PARK,Employees,Revenue
Walsall Council,http://opendatacommunities.org/id/metropolitan-district-council/walsall,WC77-280,28/02/2017,Economy & Environment,AQUALYMPIC,02/02/2017,930.00,34305-AGENCY STAFF-EMPLOYEES,OAK PARK,Employees,Revenue
Walsall Council,http://opendatacommunities.org/id/metropolitan-district-council/walsall,WC77-281,28/02/2017,Economy & Environment,AQUAMO LTD,23/02/2017,"1,022.98",60007-REPAIR OF EQUIPMENT-EQUIPMENT,WALSALL GALA CENTRE,Supplies & Services,Revenue
Walsall Council,http://opendatacommunities.org/id/metropolitan-district-council/walsall,WC77-282,28/02/2017,Adult Social Care,ARBORETUM NURSING HOME.,14/02/2017,"-1,462.37",73373-RESIDENTIAL & NURSING CARE PLACEMENTS,OP COMMISSIONING,Third Party Payments,Revenue
Walsall Council,http://opendatacommunities.org/id/metropolitan-district-council/walsall,WC77-283,28/02/2017,Adult Social Care,ARBORETUM NURSING HOME.,07/02/2017,-568.70,73373-RESIDENTIAL & NURSING CARE PLACEMENTS,OP COMMISSIONING,Third Party Payments,Revenue
Walsall Council,http://opendatacommunities.org/id/metropolitan-district-council/walsall,WC77-284,28/02/2017,Adult Social Care,ARBORETUM NURSING HOME.,21/02/2017,568.70,73373-RESIDENTIAL & NURSING CARE PLACEMENTS,OP COMMISSIONING,Third Party Payments,Revenue
Walsall Council,http://opendatacommunities.org/id/metropolitan-district-council/walsall,WC77-285,28/02/2017,Adult Social Care,ARBORETUM NURSING HOME.,21/02/2017,"1,706.10",73373-RESIDENTIAL & NURSING CARE PLACEMENTS,OP COMMISSIONING,Third Party Payments,Revenue
Walsall Council,http://opendatacommunities.org/id/metropolitan-district-council/walsall,WC77-286,28/02/2017,Adult Social Care,ARBORETUM NURSING HOME.,02/02/2017,"2,274.80",73373-RESIDENTIAL & NURSING CARE PLACEMENTS,OP COMMISSIONING,Third Party Payments,Revenue
Walsall Council,http://opendatacommunities.org/id/metropolitan-district-council/walsall,WC77-287,28/02/2017,Adult Social Care,ARBORETUM NURSING HOME.,02/02/2017,"2,274.80",73373-RESIDENTIAL & NURSING CARE PLACEMENTS,OP COMMISSIONING,Third Party Payments,Revenue
Walsall Council,http://opendatacommunities.org/id/metropolitan-district-council/walsall,WC77-288,28/02/2017,Adult Social Care,ARBORETUM NURSING HOME.,02/02/2017,"2,274.80",73373-RESIDENTIAL & NURSING CARE PLACEMENTS,OP COMMISSIONING,Third Party Payments,Revenue
Walsall Council,http://opendatacommunities.org/id/metropolitan-district-council/walsall,WC77-289,28/02/2017,Adult Social Care,ARBORETUM NURSING HOME.,07/02/2017,"2,274.80",73373-RESIDENTIAL & NURSING CARE PLACEMENTS,OP COMMISSIONING,Third Party Payments,Revenue
Walsall Council,http://opendatacommunities.org/id/metropolitan-district-council/walsall,WC77-290,28/02/2017,Adult Social Care,ARBORETUM NURSING HOME.,07/02/2017,"2,274.80",73373-RESIDENTIAL & NURSING CARE PLACEMENTS,OP COMMISSIONING,Third Party Payments,Revenue
Walsall Council,http://opendatacommunities.org/id/metropolitan-district-council/walsall,WC77-291,28/02/2017,Adult Social Care,ARBORETUM NURSING HOME.,07/02/2017,"2,274.80",73373-RESIDENTIAL & NURSING CARE PLACEMENTS,OP COMMISSIONING,Third Party Payments,Revenue
Walsall Council,http://opendatacommunities.org/id/metropolitan-district-council/walsall,WC77-292,28/02/2017,Adult Social Care,ARBORETUM NURSING HOME.,07/02/2017,"2,274.80",73373-RESIDENTIAL & NURSING CARE PLACEMENTS,OP COMMISSIONING,Third Party Payments,Revenue
Walsall Council,http://opendatacommunities.org/id/metropolitan-district-council/walsall,WC77-293,28/02/2017,Adult Social Care,ARBORETUM NURSING HOME.,07/02/2017,"2,319.84",73373-RESIDENTIAL & NURSING CARE PLACEMENTS,OP COMMISSIONING,Third Party Payments,Revenue
Walsall Council,http://opendatacommunities.org/id/metropolitan-district-council/walsall,WC77-294,28/02/2017,Adult Social Care,ARBORETUM NURSING HOME.,28/02/2017,"2,319.84",73373-RESIDENTIAL & NURSING CARE PLACEMENTS,OP COMMISSIONING,Third Party Payments,Revenue
Walsall Council,http://opendatacommunities.org/id/metropolitan-district-council/walsall,WC77-295,28/02/2017,Adult Social Care,ARBORETUM NURSING HOME.,28/02/2017,"2,319.84",73373-RESIDENTIAL & NURSING CARE PLACEMENTS,OP COMMISSIONING,Third Party Payments,Revenue
Walsall Council,http://opendatacommunities.org/id/metropolitan-district-council/walsall,WC77-296,28/02/2017,Adult Social Care,ARBORETUM NURSING HOME.,02/02/2017,"2,319.88",73373-RESIDENTIAL & NURSING CARE PLACEMENTS,OP COMMISSIONING,Third Party Payments,Revenue
Walsall Council,http://opendatacommunities.org/id/metropolitan-district-council/walsall,WC77-297,28/02/2017,Adult Social Care,ARBORETUM NURSING HOME.,07/02/2017,"2,319.88",73373-RESIDENTIAL & NURSING CARE PLACEMENTS,OP COMMISSIONING,Third Party Payments,Revenue
Walsall Council,http://opendatacommunities.org/id/metropolitan-district-council/walsall,WC77-298,28/02/2017,Adult Social Care,ARBORETUM NURSING HOME.,28/02/2017,"2,333.56",73373-RESIDENTIAL & NURSING CARE PLACEMENTS,OP COMMISSIONING,Third Party Payments,Revenue
Walsall Council,http://opendatacommunities.org/id/metropolitan-district-council/walsall,WC77-299,28/02/2017,Adult Social Care,ARBORETUM NURSING HOME.,28/02/2017,"2,916.95",73373-RESIDENTIAL & NURSING CARE PLACEMENTS,OP COMMISSIONING,Third Party Payments,Revenue
Walsall Council,http://opendatacommunities.org/id/metropolitan-district-council/walsall,WC77-300,28/02/2017,Adult Social Care,ARBORETUM NURSING HOME.,08/02/2017,"14,900.00",73019-PSE'S-PRIV CONTRACTOR FEES,TRANSITIONAL CARE SUPPORT TEAM,Third Party Payments,Revenue
Walsall Council,http://opendatacommunities.org/id/metropolitan-district-council/walsall,WC77-301,28/02/2017,Economy & Environment,ARBURY WALSALL,15/02/2017,332.90,60500-GENERAL MATERIALS,FLEET,Supplies & Services,Revenue
Walsall Council,http://opendatacommunities.org/id/metropolitan-district-council/walsall,WC77-302,28/02/2017,Economy & Environment,ARCANE DIRECT MARKETING,01/02/2017,293.79,62511-DISTRIBUTION,NAG - ART GALLERY MARKETING,Supplies & Services,Revenue
Walsall Council,http://opendatacommunities.org/id/metropolitan-district-council/walsall,WC77-303,28/02/2017,Childrens,ARTHUR M GRIFFITHS & SON LTD,23/02/2017,"96,502.69",01006-SITE WORKS MAIN CONTRACTORS,CFR 929 KING CHARLES PRIMARY SIGNIFICANT ENLARGEMENT,Capital,Capital
Walsall Council,http://opendatacommunities.org/id/metropolitan-district-council/walsall,WC77-304,28/02/2017,Economy & Environment,ASA AWARDS,22/02/2017,357.65,60006-NEW-FURNITURE & EQUIPMENT,WALSALL GALA CENTRE,Supplies & Services,Revenue
Walsall Council,http://opendatacommunities.org/id/metropolitan-district-council/walsall,WC77-305,28/02/2017,Economy & Environment,ASDA PHARMACY,24/02/2017,192.91,71007-CONTRIBUTION TO PCT,PUBLIC HEALTH BUSINESS SUPPORT,Third Party Payments,Revenue
Walsall Council,http://opendatacommunities.org/id/metropolitan-district-council/walsall,WC77-306,28/02/2017,Economy & Environment,ASDA PHARMACY,24/02/2017,371.70,63000-PROFESSIONAL FEES AND SERVICES,SEXUAL HEALTH,Supplies & Services,Revenue
Walsall Council,http://opendatacommunities.org/id/metropolitan-district-council/walsall,WC77-307,28/02/2017,Adult Social Care,ASH GRANGE CARE HOME,14/02/2017,"-2,288.40",73373-RESIDENTIAL & NURSING CARE PLACEMENTS,OP COMMISSIONING,Third Party Payments,Revenue
Walsall Council,http://opendatacommunities.org/id/metropolitan-district-council/walsall,WC77-308,28/02/2017,Adult Social Care,ASH GRANGE CARE HOME,02/02/2017,"-1,157.14",73373-RESIDENTIAL & NURSING CARE PLACEMENTS,OP COMMISSIONING,Third Party Payments,Revenue
Walsall Council,http://opendatacommunities.org/id/metropolitan-district-council/walsall,WC77-309,28/02/2017,Adult Social Care,ASH GRANGE CARE HOME,21/02/2017,-572.10,73373-RESIDENTIAL & NURSING CARE PLACEMENTS,OP COMMISSIONING,Third Party Payments,Revenue
Walsall Council,http://opendatacommunities.org/id/metropolitan-district-council/walsall,WC77-310,28/02/2017,Adult Social Care,ASH GRANGE CARE HOME,28/02/2017,-558.20,73373-RESIDENTIAL & NURSING CARE PLACEMENTS,OP COMMISSIONING,Third Party Payments,Revenue
Walsall Council,http://opendatacommunities.org/id/metropolitan-district-council/walsall,WC77-311,28/02/2017,Adult Social Care,ASH GRANGE CARE HOME,14/02/2017,-408.64,73373-RESIDENTIAL & NURSING CARE PLACEMENTS,OP COMMISSIONING,Third Party Payments,Revenue
Walsall Council,http://opendatacommunities.org/id/metropolitan-district-council/walsall,WC77-312,28/02/2017,Adult Social Care,ASH GRANGE CARE HOME,21/02/2017,324.97,73373-RESIDENTIAL & NURSING CARE PLACEMENTS,OP COMMISSIONING,Third Party Payments,Revenue
Walsall Council,http://opendatacommunities.org/id/metropolitan-district-council/walsall,WC77-313,28/02/2017,Adult Social Care,ASH GRANGE CARE HOME,02/02/2017,341.77,73373-RESIDENTIAL & NURSING CARE PLACEMENTS,OP COMMISSIONING,Third Party Payments,Revenue
Walsall Council,http://opendatacommunities.org/id/metropolitan-district-council/walsall,WC77-314,28/02/2017,Adult Social Care,ASH GRANGE CARE HOME,21/02/2017,487.46,73373-RESIDENTIAL & NURSING CARE PLACEMENTS,OP COMMISSIONING,Third Party Payments,Revenue
Walsall Council,http://opendatacommunities.org/id/metropolitan-district-council/walsall,WC77-315,28/02/2017,Adult Social Care,ASH GRANGE CARE HOME,21/02/2017,568.70,73373-RESIDENTIAL & NURSING CARE PLACEMENTS,OP COMMISSIONING,Third Party Payments,Revenue
Walsall Council,http://opendatacommunities.org/id/metropolitan-district-council/walsall,WC77-316,28/02/2017,Adult Social Care,ASH GRANGE CARE HOME,02/02/2017,"1,005.10",73373-RESIDENTIAL & NURSING CARE PLACEMENTS,OP COMMISSIONING,Third Party Payments,Revenue
Walsall Council,http://opendatacommunities.org/id/metropolitan-district-council/walsall,WC77-317,28/02/2017,Adult Social Care,ASH GRANGE CARE HOME,02/02/2017,"1,199.83",73373-RESIDENTIAL & NURSING CARE PLACEMENTS,OP COMMISSIONING,Third Party Payments,Revenue
Walsall Council,http://opendatacommunities.org/id/metropolitan-district-council/walsall,WC77-318,28/02/2017,Adult Social Care,ASH GRANGE CARE HOME,21/02/2017,"1,381.13",73373-RESIDENTIAL & NURSING CARE PLACEMENTS,OP COMMISSIONING,Third Party Payments,Revenue
Walsall Council,http://opendatacommunities.org/id/metropolitan-district-council/walsall,WC77-319,28/02/2017,Adult Social Care,ASH GRANGE CARE HOME,02/02/2017,"1,620.00",73373-RESIDENTIAL & NURSING CARE PLACEMENTS,OP COMMISSIONING,Third Party Payments,Revenue
Walsall Council,http://opendatacommunities.org/id/metropolitan-district-council/walsall,WC77-320,28/02/2017,Adult Social Care,ASH GRANGE CARE HOME,02/02/2017,"1,620.00",73373-RESIDENTIAL & NURSING CARE PLACEMENTS,OP COMMISSIONING,Third Party Payments,Revenue
Walsall Council,http://opendatacommunities.org/id/metropolitan-district-council/walsall,WC77-321,28/02/2017,Adult Social Care,ASH GRANGE CARE HOME,28/02/2017,"1,620.00",73373-RESIDENTIAL & NURSING CARE PLACEMENTS,OP COMMISSIONING,Third Party Payments,Revenue
Walsall Council,http://opendatacommunities.org/id/metropolitan-district-council/walsall,WC77-322,28/02/2017,Adult Social Care,ASH GRANGE CARE HOME,28/02/2017,"1,620.00",73373-RESIDENTIAL & NURSING CARE PLACEMENTS,OP COMMISSIONING,Third Party Payments,Revenue
Walsall Council,http://opendatacommunities.org/id/metropolitan-district-council/walsall,WC77-323,28/02/2017,Adult Social Care,ASH GRANGE CARE HOME,07/02/2017,"1,733.61",73373-RESIDENTIAL & NURSING CARE PLACEMENTS,OP COMMISSIONING,Third Party Payments,Revenue
Walsall Council,http://opendatacommunities.org/id/metropolitan-district-council/walsall,WC77-324,28/02/2017,Adult Social Care,ASH GRANGE CARE HOME,02/02/2017,"1,863.40",73373-RESIDENTIAL & NURSING CARE PLACEMENTS,OP COMMISSIONING,Third Party Payments,Revenue
Walsall Council,http://opendatacommunities.org/id/metropolitan-district-council/walsall,WC77-325,28/02/2017,Adult Social Care,ASH GRANGE CARE HOME,28/02/2017,"1,863.40",73373-RESIDENTIAL & NURSING CARE PLACEMENTS,OP COMMISSIONING,Third Party Payments,Revenue
Walsall Council,http://opendatacommunities.org/id/metropolitan-district-council/walsall,WC77-326,28/02/2017,Adult Social Care,ASH GRANGE CARE HOME,02/02/2017,"2,274.80",73373-RESIDENTIAL & NURSING CARE PLACEMENTS,OP COMMISSIONING,Third Party Payments,Revenue
Walsall Council,http://opendatacommunities.org/id/metropolitan-district-council/walsall,WC77-327,28/02/2017,Adult Social Care,ASH GRANGE CARE HOME,21/02/2017,"2,274.80",73373-RESIDENTIAL & NURSING CARE PLACEMENTS,OP COMMISSIONING,Third Party Payments,Revenue
Walsall Council,http://opendatacommunities.org/id/metropolitan-district-council/walsall,WC77-328,28/02/2017,Adult Social Care,ASH GRANGE CARE HOME,21/02/2017,"2,274.80",73373-RESIDENTIAL & NURSING CARE PLACEMENTS,OP COMMISSIONING,Third Party Payments,Revenue
Walsall Council,http://opendatacommunities.org/id/metropolitan-district-council/walsall,WC77-329,28/02/2017,Adult Social Care,ASH GRANGE CARE HOME,28/02/2017,"2,274.80",73373-RESIDENTIAL & NURSING CARE PLACEMENTS,OP COMMISSIONING,Third Party Payments,Revenue
Walsall Council,http://opendatacommunities.org/id/metropolitan-district-council/walsall,WC77-330,28/02/2017,Adult Social Care,ASH GRANGE CARE HOME,02/02/2017,"2,288.40",73373-RESIDENTIAL & NURSING CARE PLACEMENTS,OP COMMISSIONING,Third Party Payments,Revenue
Walsall Council,http://opendatacommunities.org/id/metropolitan-district-council/walsall,WC77-331,28/02/2017,Adult Social Care,ASH GRANGE CARE HOME,02/02/2017,"2,288.40",73373-RESIDENTIAL & NURSING CARE PLACEMENTS,OP COMMISSIONING,Third Party Payments,Revenue
Walsall Council,http://opendatacommunities.org/id/metropolitan-district-council/walsall,WC77-332,28/02/2017,Adult Social Care,ASH GRANGE CARE HOME,02/02/2017,"2,288.40",73373-RESIDENTIAL & NURSING CARE PLACEMENTS,OP COMMISSIONING,Third Party Payments,Revenue
Walsall Council,http://opendatacommunities.org/id/metropolitan-district-council/walsall,WC77-333,28/02/2017,Adult Social Care,ASH GRANGE CARE HOME,02/02/2017,"2,288.40",73373-RESIDENTIAL & NURSING CARE PLACEMENTS,OP COMMISSIONING,Third Party Payments,Revenue
Walsall Council,http://opendatacommunities.org/id/metropolitan-district-council/walsall,WC77-334,28/02/2017,Adult Social Care,ASH GRANGE CARE HOME,02/02/2017,"2,288.40",73373-RESIDENTIAL & NURSING CARE PLACEMENTS,OP COMMISSIONING,Third Party Payments,Revenue
Walsall Council,http://opendatacommunities.org/id/metropolitan-district-council/walsall,WC77-335,28/02/2017,Adult Social Care,ASH GRANGE CARE HOME,02/02/2017,"2,288.40",73373-RESIDENTIAL & NURSING CARE PLACEMENTS,MH COMMISSIONING,Third Party Payments,Revenue
Walsall Council,http://opendatacommunities.org/id/metropolitan-district-council/walsall,WC77-336,28/02/2017,Adult Social Care,ASH GRANGE CARE HOME,02/02/2017,"2,288.40",73373-RESIDENTIAL & NURSING CARE PLACEMENTS,OP COMMISSIONING,Third Party Payments,Revenue
Walsall Council,http://opendatacommunities.org/id/metropolitan-district-council/walsall,WC77-337,28/02/2017,Adult Social Care,ASH GRANGE CARE HOME,02/02/2017,"2,288.40",73373-RESIDENTIAL & NURSING CARE PLACEMENTS,OP COMMISSIONING,Third Party Payments,Revenue
Walsall Council,http://opendatacommunities.org/id/metropolitan-district-council/walsall,WC77-338,28/02/2017,Adult Social Care,ASH GRANGE CARE HOME,02/02/2017,"2,288.40",73373-RESIDENTIAL & NURSING CARE PLACEMENTS,OP COMMISSIONING,Third Party Payments,Revenue
Walsall Council,http://opendatacommunities.org/id/metropolitan-district-council/walsall,WC77-339,28/02/2017,Adult Social Care,ASH GRANGE CARE HOME,07/02/2017,"2,288.40",73373-RESIDENTIAL & NURSING CARE PLACEMENTS,OP COMMISSIONING,Third Party Payments,Revenue
Walsall Council,http://opendatacommunities.org/id/metropolitan-district-council/walsall,WC77-340,28/02/2017,Adult Social Care,ASH GRANGE CARE HOME,28/02/2017,"2,288.40",73373-RESIDENTIAL & NURSING CARE PLACEMENTS,OP COMMISSIONING,Third Party Payments,Revenue
Walsall Council,http://opendatacommunities.org/id/metropolitan-district-council/walsall,WC77-341,28/02/2017,Adult Social Care,ASH GRANGE CARE HOME,28/02/2017,"2,288.40",73373-RESIDENTIAL & NURSING CARE PLACEMENTS,OP COMMISSIONING,Third Party Payments,Revenue
Walsall Council,http://opendatacommunities.org/id/metropolitan-district-council/walsall,WC77-342,28/02/2017,Adult Social Care,ASH GRANGE CARE HOME,28/02/2017,"2,288.40",73373-RESIDENTIAL & NURSING CARE PLACEMENTS,OP COMMISSIONING,Third Party Payments,Revenue
Walsall Council,http://opendatacommunities.org/id/metropolitan-district-council/walsall,WC77-343,28/02/2017,Adult Social Care,ASH GRANGE CARE HOME,28/02/2017,"2,288.40",73373-RESIDENTIAL & NURSING CARE PLACEMENTS,OP COMMISSIONING,Third Party Payments,Revenue
Walsall Council,http://opendatacommunities.org/id/metropolitan-district-council/walsall,WC77-344,28/02/2017,Adult Social Care,ASH GRANGE CARE HOME,28/02/2017,"2,288.40",73373-RESIDENTIAL & NURSING CARE PLACEMENTS,OP COMMISSIONING,Third Party Payments,Revenue
Walsall Council,http://opendatacommunities.org/id/metropolitan-district-council/walsall,WC77-345,28/02/2017,Adult Social Care,ASH GRANGE CARE HOME,28/02/2017,"2,288.40",73373-RESIDENTIAL & NURSING CARE PLACEMENTS,MH COMMISSIONING,Third Party Payments,Revenue
Walsall Council,http://opendatacommunities.org/id/metropolitan-district-council/walsall,WC77-346,28/02/2017,Adult Social Care,ASH GRANGE CARE HOME,28/02/2017,"2,288.40",73373-RESIDENTIAL & NURSING CARE PLACEMENTS,OP COMMISSIONING,Third Party Payments,Revenue
Walsall Council,http://opendatacommunities.org/id/metropolitan-district-council/walsall,WC77-347,28/02/2017,Adult Social Care,ASH GRANGE CARE HOME,28/02/2017,"2,288.40",73373-RESIDENTIAL & NURSING CARE PLACEMENTS,OP COMMISSIONING,Third Party Payments,Revenue
Walsall Council,http://opendatacommunities.org/id/metropolitan-district-council/walsall,WC77-348,28/02/2017,Adult Social Care,ASH GRANGE CARE HOME,28/02/2017,"2,288.40",73373-RESIDENTIAL & NURSING CARE PLACEMENTS,OP COMMISSIONING,Third Party Payments,Revenue
Walsall Council,http://opendatacommunities.org/id/metropolitan-district-council/walsall,WC77-349,28/02/2017,Adult Social Care,ASH GRANGE CARE HOME,02/02/2017,"2,372.04",73373-RESIDENTIAL & NURSING CARE PLACEMENTS,OP COMMISSIONING,Third Party Payments,Revenue
Walsall Council,http://opendatacommunities.org/id/metropolitan-district-council/walsall,WC77-350,28/02/2017,Adult Social Care,ASH GRANGE CARE HOME,28/02/2017,"2,372.04",73373-RESIDENTIAL & NURSING CARE PLACEMENTS,OP COMMISSIONING,Third Party Payments,Revenue
Walsall Council,http://opendatacommunities.org/id/metropolitan-district-council/walsall,WC77-351,28/02/2017,Adult Social Care,ASH GRANGE CARE HOME,02/02/2017,"2,488.40",73373-RESIDENTIAL & NURSING CARE PLACEMENTS,OP COMMISSIONING,Third Party Payments,Revenue
Walsall Council,http://opendatacommunities.org/id/metropolitan-district-council/walsall,WC77-352,28/02/2017,Adult Social Care,ASH GRANGE CARE HOME,28/02/2017,"2,488.40",73373-RESIDENTIAL & NURSING CARE PLACEMENTS,OP COMMISSIONING,Third Party Payments,Revenue
Walsall Council,http://opendatacommunities.org/id/metropolitan-district-council/walsall,WC77-353,28/02/2017,Adult Social Care,ASH GRANGE CARE HOME,02/02/2017,"2,504.40",73373-RESIDENTIAL & NURSING CARE PLACEMENTS,MH COMMISSIONING,Third Party Payments,Revenue
Walsall Council,http://opendatacommunities.org/id/metropolitan-district-council/walsall,WC77-354,28/02/2017,Adult Social Care,ASH GRANGE CARE HOME,28/02/2017,"2,504.40",73373-RESIDENTIAL & NURSING CARE PLACEMENTS,MH COMMISSIONING,Third Party Payments,Revenue
Walsall Council,http://opendatacommunities.org/id/metropolitan-district-council/walsall,WC77-355,28/02/2017,Adult Social Care,ASH GRANGE CARE HOME,02/02/2017,"3,120.72",73373-RESIDENTIAL & NURSING CARE PLACEMENTS,OP COMMISSIONING,Third Party Payments,Revenue
Walsall Council,http://opendatacommunities.org/id/metropolitan-district-council/walsall,WC77-356,28/02/2017,Adult Social Care,ASH GRANGE CARE HOME,28/02/2017,"3,120.72",73373-RESIDENTIAL & NURSING CARE PLACEMENTS,OP COMMISSIONING,Third Party Payments,Revenue
Walsall Council,http://opendatacommunities.org/id/metropolitan-district-council/walsall,WC77-357,28/02/2017,Adult Social Care,ASHBOURNE LODGE,21/02/2017,"2,173.99",73373-RESIDENTIAL & NURSING CARE PLACEMENTS,OP COMMISSIONING,Third Party Payments,Revenue
Walsall Council,http://opendatacommunities.org/id/metropolitan-district-council/walsall,WC77-358,28/02/2017,Adult Social Care,REDACTED,06/02/2017,493.00,76422-DIRECT PAYMENTS TO SOCIAL SERVICES CLIENTS,OP COMMISSIONING,Transfer Payments,Revenue
Walsall Council,http://opendatacommunities.org/id/metropolitan-district-council/walsall,WC77-359,28/02/2017,Childrens,A-STAT OFFICE TECHNOLOGY LTD,06/02/2017,642.78,60004-PHOTOGRAPHIC DEVELOPMENT/PRINTING-EQUIPMENT,EDGAR STAMMERS CHILDCARE SERVICE,Supplies & Services,Revenue
Walsall Council,http://opendatacommunities.org/id/metropolitan-district-council/walsall,WC77-360,28/02/2017,Economy & Environment,ATKINS LIMITED,21/02/2017,717.83,01001-OTHER CONSULTANTS FEES,CFR 1072 LEX - GROWTH DEAL,Capital,Capital
Walsall Council,http://opendatacommunities.org/id/metropolitan-district-council/walsall,WC77-361,28/02/2017,Change and Governance,AURORA GRAPHICS & DISPLAYS LTD,01/02/2017,219.00,62008-OUTWORK-PRINT ROOM,PRINTING SERVICES,Supplies & Services,Revenue
Walsall Council,http://opendatacommunities.org/id/metropolitan-district-council/walsall,WC77-362,28/02/2017,Adult Social Care,AUTISM WEST MIDLANDS,07/02/2017,"7,479.01",73373-RESIDENTIAL & NURSING CARE PLACEMENTS,LD COMMISSIONING,Third Party Payments,Revenue
Walsall Council,http://opendatacommunities.org/id/metropolitan-district-council/walsall,WC77-363,28/02/2017,Adult Social Care,AUTISM WEST MIDLANDS 001,07/02/2017,"4,999.33",73373-RESIDENTIAL & NURSING CARE PLACEMENTS,LD COMMISSIONING,Third Party Payments,Revenue
Walsall Council,http://opendatacommunities.org/id/metropolitan-district-council/walsall,WC77-364,28/02/2017,Change and Governance,AUTOQUENCH LIMITED,22/02/2017,"1,652.40",01045-PRIVATE GRANTS,CFR 826 DISABLED FACILITIES GRANTS (SOCIAL SERVICES),Capital,Capital
Walsall Council,http://opendatacommunities.org/id/metropolitan-district-council/walsall,WC77-365,28/02/2017,Economy & Environment,AVANTGARDE PHARMA LTD T/A AL-SHAFA PHARMACY,24/02/2017,394.50,71007-CONTRIBUTION TO PCT,PUBLIC HEALTH BUSINESS SUPPORT,Third Party Payments,Revenue
Walsall Council,http://opendatacommunities.org/id/metropolitan-district-council/walsall,WC77-366,28/02/2017,Change and Governance,AVENUES COMMUNITY ASSOCIATION,07/02/2017,800.00,62515-MISCELLANEOUS SUPPLIES,AREA 1 - BROWNHILLS,Supplies & Services,Revenue
Walsall Council,http://opendatacommunities.org/id/metropolitan-district-council/walsall,WC77-367,28/02/2017,Adult Social Care,AVERY MEWS CARE HOME,28/02/2017,"1,194.29",73373-RESIDENTIAL & NURSING CARE PLACEMENTS,MH COMMISSIONING,Third Party Payments,Revenue
Walsall Council,http://opendatacommunities.org/id/metropolitan-district-council/walsall,WC77-368,28/02/2017,Adult Social Care,AVERY MEWS CARE HOME,28/02/2017,"3,040.00",73373-RESIDENTIAL & NURSING CARE PLACEMENTS,MH COMMISSIONING,Third Party Payments,Revenue
Walsall Council,http://opendatacommunities.org/id/metropolitan-district-council/walsall,WC77-369,28/02/2017,Adult Social Care,AVERY MEWS CARE HOME,28/02/2017,"3,040.00",73373-RESIDENTIAL & NURSING CARE PLACEMENTS,MH COMMISSIONING,Third Party Payments,Revenue
Walsall Council,http://opendatacommunities.org/id/metropolitan-district-council/walsall,WC77-370,28/02/2017,Adult Social Care,REDACTED,06/02/2017,989.04,76422-DIRECT PAYMENTS TO SOCIAL SERVICES CLIENTS,OP COMMISSIONING,Transfer Payments,Revenue
Walsall Council,http://opendatacommunities.org/id/metropolitan-district-council/walsall,WC77-371,28/02/2017,Childrens,AXCIS EDUCATION RECRUITMENT,27/02/2017,485.00,66502-TOP UP FUNDING -GRANTS TO SCHOOLS,INDEPENDENT PROVIDERS - SPECIAL & AP,Third Party Payments,Revenue
Walsall Council,http://opendatacommunities.org/id/metropolitan-district-council/walsall,WC77-372,28/02/2017,Economy & Environment,AXIELL LIMITED,07/02/2017,503.30,63000-PROFESSIONAL FEES AND SERVICES,LIBRARY DEVELOPMENT 1,Supplies & Services,Revenue
Walsall Council,http://opendatacommunities.org/id/metropolitan-district-council/walsall,WC77-373,28/02/2017,Childrens,REDACTED,06/02/2017,"1,284.00",76422-DIRECT PAYMENTS TO SOCIAL SERVICES CLIENTS,FAMILY SUPPORT - DIRECT PAYMENTS,Transfer Payments,Revenue
Walsall Council,http://opendatacommunities.org/id/metropolitan-district-council/walsall,WC77-374,28/02/2017,Adult Social Care,REDACTED,06/02/2017,"2,808.00",76422-DIRECT PAYMENTS TO SOCIAL SERVICES CLIENTS,LD COMMISSIONING,Transfer Payments,Revenue
Walsall Council,http://opendatacommunities.org/id/metropolitan-district-council/walsall,WC77-375,28/02/2017,Childrens,REDACTED,13/02/2017,841.06,74006-HOLIDAY/CHRISTMAS ALLOWANCE-FOSTER CARERS-OTH AGENCY PROVISION,INTERNAL FOSTER CARE PROVISION,Third Party Payments,Revenue
Walsall Council,http://opendatacommunities.org/id/metropolitan-district-council/walsall,WC77-376,28/02/2017,Childrens,REDACTED,27/02/2017,906.76,62515-MISCELLANEOUS SUPPLIES,INTERNAL FOSTER CARE PROVISION,Supplies & Services,Revenue
Walsall Council,http://opendatacommunities.org/id/metropolitan-district-council/walsall,WC77-377,28/02/2017,Childrens,REDACTED,01/02/2017,985.76,74006-HOLIDAY/CHRISTMAS ALLOWANCE-FOSTER CARERS-OTH AGENCY PROVISION,INTERNAL FOSTER CARE PROVISION,Third Party Payments,Revenue
Walsall Council,http://opendatacommunities.org/id/metropolitan-district-council/walsall,WC77-378,28/02/2017,Childrens,REDACTED,14/02/2017,464.00,76000-TRANSFER PAYMENTS - SOCIAL SERVICES CLIENTS,TRANSITION AND LEAVING CARE,Transfer Payments,Revenue
Walsall Council,http://opendatacommunities.org/id/metropolitan-district-council/walsall,WC77-379,28/02/2017,Childrens,REDACTED,14/02/2017,464.00,76000-TRANSFER PAYMENTS - SOCIAL SERVICES CLIENTS,TRANSITION AND LEAVING CARE,Transfer Payments,Revenue
Walsall Council,http://opendatacommunities.org/id/metropolitan-district-council/walsall,WC77-380,28/02/2017,Childrens,REDACTED,28/02/2017,464.00,76000-TRANSFER PAYMENTS - SOCIAL SERVICES CLIENTS,TRANSITION AND LEAVING CARE,Transfer Payments,Revenue
Walsall Council,http://opendatacommunities.org/id/metropolitan-district-council/walsall,WC77-381,28/02/2017,Change and Governance,BADENOCH & CLARK 002,01/02/2017,"4,655.00",34305-AGENCY STAFF-EMPLOYEES,CORPORATE MANAGEMENT TEAM,Employees,Revenue
Walsall Council,http://opendatacommunities.org/id/metropolitan-district-council/walsall,WC77-382,28/02/2017,Change and Governance,BADENOCH & CLARK 002,03/02/2017,"4,655.00",34305-AGENCY STAFF-EMPLOYEES,CORPORATE MANAGEMENT TEAM,Employees,Revenue
Walsall Council,http://opendatacommunities.org/id/metropolitan-district-council/walsall,WC77-383,28/02/2017,Change and Governance,BADENOCH & CLARK 002,14/02/2017,"4,655.00",34305-AGENCY STAFF-EMPLOYEES,CORPORATE MANAGEMENT TEAM,Employees,Revenue
Walsall Council,http://opendatacommunities.org/id/metropolitan-district-council/walsall,WC77-384,28/02/2017,Change and Governance,BADENOCH & CLARK 002,17/02/2017,"4,655.00",34305-AGENCY STAFF-EMPLOYEES,CORPORATE MANAGEMENT TEAM,Employees,Revenue
Walsall Council,http://opendatacommunities.org/id/metropolitan-district-council/walsall,WC77-385,28/02/2017,Change and Governance,BADENOCH & CLARK 002,23/02/2017,"4,655.00",34305-AGENCY STAFF-EMPLOYEES,CORPORATE MANAGEMENT TEAM,Employees,Revenue
Walsall Council,http://opendatacommunities.org/id/metropolitan-district-council/walsall,WC77-386,28/02/2017,Economy & Environment,BADMINTON ENGLAND,02/02/2017,400.00,63124-FEES & LICENCES-SERVICES,OAK PARK,Supplies & Services,Revenue
Walsall Council,http://opendatacommunities.org/id/metropolitan-district-council/walsall,WC77-387,28/02/2017,Economy & Environment,BAKER HALL PARTNERSHIP,22/02/2017,"1,042.25",63000-PROFESSIONAL FEES AND SERVICES,BUILDING CONTROL REVENUE FUNDED,Supplies & Services,Revenue
Walsall Council,http://opendatacommunities.org/id/metropolitan-district-council/walsall,WC77-388,28/02/2017,Adult Social Care,REDACTED,06/02/2017,480.00,76422-DIRECT PAYMENTS TO SOCIAL SERVICES CLIENTS,MH COMMISSIONING,Transfer Payments,Revenue
Walsall Council,http://opendatacommunities.org/id/metropolitan-district-council/walsall,WC77-389,28/02/2017,Adult Social Care,REDACTED,06/02/2017,"2,849.92",76422-DIRECT PAYMENTS TO SOCIAL SERVICES CLIENTS,LD COMMISSIONING,Transfer Payments,Revenue
Walsall Council,http://opendatacommunities.org/id/metropolitan-district-council/walsall,WC77-390,28/02/2017,Adult Social Care,REDACTED,06/02/2017,800.00,76422-DIRECT PAYMENTS TO SOCIAL SERVICES CLIENTS,OP COMMISSIONING,Transfer Payments,Revenue
Walsall Council,http://opendatacommunities.org/id/metropolitan-district-council/walsall,WC77-391,28/02/2017,Change and Governance,BANNERBRIDGE PLC,21/02/2017,835.00,63000-PROFESSIONAL FEES AND SERVICES,HR DIRECT SERVICES,Supplies & Services,Revenue
Walsall Council,http://opendatacommunities.org/id/metropolitan-district-council/walsall,WC77-392,28/02/2017,Change and Governance,BANNERBRIDGE PLC,22/02/2017,835.00,63000-PROFESSIONAL FEES AND SERVICES,HR DIRECT SERVICES,Supplies & Services,Revenue
Walsall Council,http://opendatacommunities.org/id/metropolitan-district-council/walsall,WC77-393,28/02/2017,Adult Social Care,REDACTED,06/02/2017,"1,582.86",76422-DIRECT PAYMENTS TO SOCIAL SERVICES CLIENTS,OP COMMISSIONING,Transfer Payments,Revenue
Walsall Council,http://opendatacommunities.org/id/metropolitan-district-council/walsall,WC77-394,28/02/2017,Childrens,REDACTED,13/02/2017,571.44,74006-HOLIDAY/CHRISTMAS ALLOWANCE-FOSTER CARERS-OTH AGENCY PROVISION,INTERNAL FOSTER CARE PROVISION,Third Party Payments,Revenue
Walsall Council,http://opendatacommunities.org/id/metropolitan-district-council/walsall,WC77-395,28/02/2017,Adult Social Care,REDACTED,06/02/2017,849.64,76422-DIRECT PAYMENTS TO SOCIAL SERVICES CLIENTS,OP COMMISSIONING,Transfer Payments,Revenue
Walsall Council,http://opendatacommunities.org/id/metropolitan-district-council/walsall,WC77-396,28/02/2017,Adult Social Care,REDACTED,06/02/2017,490.40,76422-DIRECT PAYMENTS TO SOCIAL SERVICES CLIENTS,OP COMMISSIONING,Transfer Payments,Revenue
Walsall Council,http://opendatacommunities.org/id/metropolitan-district-council/walsall,WC77-397,28/02/2017,Economy & Environment,BAY MEDIA LIMITED,21/02/2017,"1,500.00",62000-EXTERNAL PRINTING SERVICES,NAG - EXTERNALLY FUNDED PROJECTS,Supplies & Services,Revenue
Walsall Council,http://opendatacommunities.org/id/metropolitan-district-council/walsall,WC77-398,28/02/2017,Childrens,REDACTED,01/02/2017,732.29,74006-HOLIDAY/CHRISTMAS ALLOWANCE-FOSTER CARERS-OTH AGENCY PROVISION,INTERNAL FOSTER CARE PROVISION,Third Party Payments,Revenue
Walsall Council,http://opendatacommunities.org/id/metropolitan-district-council/walsall,WC77-399,28/02/2017,Childrens,REDACTED,27/02/2017,842.79,62515-MISCELLANEOUS SUPPLIES,INTERNAL FOSTER CARE PROVISION,Supplies & Services,Revenue
Walsall Council,http://opendatacommunities.org/id/metropolitan-district-council/walsall,WC77-400,28/02/2017,Economy & Environment,BEARING SALES AND SERVICES LTD,13/02/2017,895.10,60514-MATERIALS TO STORES,FLEET PARTS STOCK ACCOUNT,Supplies & Services,Revenue
Walsall Council,http://opendatacommunities.org/id/metropolitan-district-council/walsall,WC77-401,28/02/2017,Adult Social Care,BEARWOOD NURSING HOME LTD,14/02/2017,"1,649.80",73373-RESIDENTIAL & NURSING CARE PLACEMENTS,OP COMMISSIONING,Third Party Payments,Revenue
Walsall Council,http://opendatacommunities.org/id/metropolitan-district-council/walsall,WC77-402,28/02/2017,Economy & Environment,BEECHWOOD TREES AND LANDSCAPES LTD,15/02/2017,365.00,73025-PROFESSIONAL SERVICES-PRIV CONTRACTOR & OTHER AGENCIES,SECTION 38 OF HIGHWAYS ACT - SUPERVISION,Third Party Payments,Revenue
Walsall Council,http://opendatacommunities.org/id/metropolitan-district-council/walsall,WC77-403,28/02/2017,Childrens,REDACTED,01/02/2017,571.44,74006-HOLIDAY/CHRISTMAS ALLOWANCE-FOSTER CARERS-OTH AGENCY PROVISION,INTERNAL FOSTER CARE PROVISION,Third Party Payments,Revenue
Walsall Council,http://opendatacommunities.org/id/metropolitan-district-council/walsall,WC77-404,28/02/2017,Childrens,REDACTED,27/02/2017,695.18,62515-MISCELLANEOUS SUPPLIES,INTERNAL FOSTER CARE PROVISION,Supplies & Services,Revenue
Walsall Council,http://opendatacommunities.org/id/metropolitan-district-council/walsall,WC77-405,28/02/2017,Economy & Environment,BELVEDERE SAFETY,01/02/2017,650.00,30030-EXTERNAL TRAINING,LEISURE - MANAGEMENT AND ADMIN,Employees,Revenue
Walsall Council,http://opendatacommunities.org/id/metropolitan-district-council/walsall,WC77-406,28/02/2017,Adult Social Care,BELVIDERE COURT,14/02/2017,"1,703.72",73373-RESIDENTIAL & NURSING CARE PLACEMENTS,MH COMMISSIONING,Third Party Payments,Revenue
Walsall Council,http://opendatacommunities.org/id/metropolitan-district-council/walsall,WC77-407,28/02/2017,Adult Social Care,BELVIDERE COURT,21/02/2017,"2,239.01",73373-RESIDENTIAL & NURSING CARE PLACEMENTS,OP COMMISSIONING,Third Party Payments,Revenue
Walsall Council,http://opendatacommunities.org/id/metropolitan-district-council/walsall,WC77-408,28/02/2017,Adult Social Care,BELVIDERE COURT,21/02/2017,"2,946.07",73373-RESIDENTIAL & NURSING CARE PLACEMENTS,OP COMMISSIONING,Third Party Payments,Revenue
Walsall Council,http://opendatacommunities.org/id/metropolitan-district-council/walsall,WC77-409,28/02/2017,Adult Social Care,BELVIDERE COURT,14/02/2017,"3,400.00",73373-RESIDENTIAL & NURSING CARE PLACEMENTS,MH COMMISSIONING,Third Party Payments,Revenue
Walsall Council,http://opendatacommunities.org/id/metropolitan-district-council/walsall,WC77-410,28/02/2017,Adult Social Care,BELVIDERE COURT,21/02/2017,"3,712.05",73373-RESIDENTIAL & NURSING CARE PLACEMENTS,OP COMMISSIONING,Third Party Payments,Revenue
Walsall Council,http://opendatacommunities.org/id/metropolitan-district-council/walsall,WC77-411,28/02/2017,Adult Social Care,REDACTED,06/02/2017,"2,310.00",76422-DIRECT PAYMENTS TO SOCIAL SERVICES CLIENTS,LD COMMISSIONING,Transfer Payments,Revenue
Walsall Council,http://opendatacommunities.org/id/metropolitan-district-council/walsall,WC77-412,28/02/2017,Adult Social Care,BENTLEY COURT PRIORY,21/02/2017,-691.97,73373-RESIDENTIAL & NURSING CARE PLACEMENTS,OP COMMISSIONING,Third Party Payments,Revenue
Walsall Council,http://opendatacommunities.org/id/metropolitan-district-council/walsall,WC77-413,28/02/2017,Adult Social Care,BENTLEY COURT PRIORY,21/02/2017,-691.97,73373-RESIDENTIAL & NURSING CARE PLACEMENTS,OP COMMISSIONING,Third Party Payments,Revenue
Walsall Council,http://opendatacommunities.org/id/metropolitan-district-council/walsall,WC77-414,28/02/2017,Adult Social Care,BENTLEY COURT PRIORY,21/02/2017,-691.97,73373-RESIDENTIAL & NURSING CARE PLACEMENTS,OP COMMISSIONING,Third Party Payments,Revenue
Walsall Council,http://opendatacommunities.org/id/metropolitan-district-council/walsall,WC77-415,28/02/2017,Adult Social Care,BENTLEY COURT PRIORY,21/02/2017,-691.97,73373-RESIDENTIAL & NURSING CARE PLACEMENTS,OP COMMISSIONING,Third Party Payments,Revenue
Walsall Council,http://opendatacommunities.org/id/metropolitan-district-council/walsall,WC77-416,28/02/2017,Adult Social Care,BENTLEY COURT PRIORY,21/02/2017,-691.97,73373-RESIDENTIAL & NURSING CARE PLACEMENTS,OP COMMISSIONING,Third Party Payments,Revenue
Walsall Council,http://opendatacommunities.org/id/metropolitan-district-council/walsall,WC77-417,28/02/2017,Adult Social Care,BENTLEY COURT PRIORY,21/02/2017,-669.65,73373-RESIDENTIAL & NURSING CARE PLACEMENTS,OP COMMISSIONING,Third Party Payments,Revenue
Walsall Council,http://opendatacommunities.org/id/metropolitan-district-council/walsall,WC77-418,28/02/2017,Adult Social Care,BENTLEY COURT PRIORY,21/02/2017,-669.65,73373-RESIDENTIAL & NURSING CARE PLACEMENTS,OP COMMISSIONING,Third Party Payments,Revenue
Walsall Council,http://opendatacommunities.org/id/metropolitan-district-council/walsall,WC77-419,28/02/2017,Adult Social Care,BENTLEY COURT PRIORY,21/02/2017,-669.65,73373-RESIDENTIAL & NURSING CARE PLACEMENTS,OP COMMISSIONING,Third Party Payments,Revenue
Walsall Council,http://opendatacommunities.org/id/metropolitan-district-council/walsall,WC77-420,28/02/2017,Adult Social Care,BENTLEY COURT PRIORY,21/02/2017,-468.75,73373-RESIDENTIAL & NURSING CARE PLACEMENTS,OP COMMISSIONING,Third Party Payments,Revenue
Walsall Council,http://opendatacommunities.org/id/metropolitan-district-council/walsall,WC77-421,28/02/2017,Adult Social Care,BENTLEY COURT PRIORY,21/02/2017,"1,649.80",73373-RESIDENTIAL & NURSING CARE PLACEMENTS,OP COMMISSIONING,Third Party Payments,Revenue
Walsall Council,http://opendatacommunities.org/id/metropolitan-district-council/walsall,WC77-422,28/02/2017,Adult Social Care,BENTLEY COURT PRIORY,02/02/2017,"1,988.65",73373-RESIDENTIAL & NURSING CARE PLACEMENTS,OP COMMISSIONING,Third Party Payments,Revenue
Walsall Council,http://opendatacommunities.org/id/metropolitan-district-council/walsall,WC77-423,28/02/2017,Adult Social Care,BENTLEY COURT PRIORY,02/02/2017,"2,070.98",73373-RESIDENTIAL & NURSING CARE PLACEMENTS,OP COMMISSIONING,Third Party Payments,Revenue
Walsall Council,http://opendatacommunities.org/id/metropolitan-district-council/walsall,WC77-424,28/02/2017,Adult Social Care,BENTLEY COURT PRIORY,02/02/2017,"2,109.24",73373-RESIDENTIAL & NURSING CARE PLACEMENTS,OP COMMISSIONING,Third Party Payments,Revenue
Walsall Council,http://opendatacommunities.org/id/metropolitan-district-council/walsall,WC77-425,28/02/2017,Adult Social Care,BENTLEY COURT PRIORY,28/02/2017,"2,269.42",73373-RESIDENTIAL & NURSING CARE PLACEMENTS,OP COMMISSIONING,Third Party Payments,Revenue
Walsall Council,http://opendatacommunities.org/id/metropolitan-district-council/walsall,WC77-426,28/02/2017,Adult Social Care,BENTLEY COURT PRIORY,02/02/2017,"2,518.53",73373-RESIDENTIAL & NURSING CARE PLACEMENTS,OP COMMISSIONING,Third Party Payments,Revenue
Walsall Council,http://opendatacommunities.org/id/metropolitan-district-council/walsall,WC77-427,28/02/2017,Adult Social Care,REDACTED,06/02/2017,912.00,76422-DIRECT PAYMENTS TO SOCIAL SERVICES CLIENTS,OP COMMISSIONING,Transfer Payments,Revenue
Walsall Council,http://opendatacommunities.org/id/metropolitan-district-council/walsall,WC77-428,28/02/2017,Childrens,REDACTED,01/02/2017,"1,142.88",74006-HOLIDAY/CHRISTMAS ALLOWANCE-FOSTER CARERS-OTH AGENCY PROVISION,INTERNAL FOSTER CARE PROVISION,Third Party Payments,Revenue
Walsall Council,http://opendatacommunities.org/id/metropolitan-district-council/walsall,WC77-429,28/02/2017,Childrens,REDACTED,27/02/2017,"1,445.32",62515-MISCELLANEOUS SUPPLIES,INTERNAL FOSTER CARE PROVISION,Supplies & Services,Revenue
Walsall Council,http://opendatacommunities.org/id/metropolitan-district-council/walsall,WC77-430,28/02/2017,Adult Social Care,REDACTED,06/02/2017,968.00,76422-DIRECT PAYMENTS TO SOCIAL SERVICES CLIENTS,OP COMMISSIONING,Transfer Payments,Revenue
Walsall Council,http://opendatacommunities.org/id/metropolitan-district-council/walsall,WC77-431,28/02/2017,Adult Social Care,BESCOT LODGE RESIDENTIAL CARE HOME,02/02/2017,835.71,73373-RESIDENTIAL & NURSING CARE PLACEMENTS,OP COMMISSIONING,Third Party Payments,Revenue
Walsall Council,http://opendatacommunities.org/id/metropolitan-district-council/walsall,WC77-432,28/02/2017,Adult Social Care,BESCOT LODGE RESIDENTIAL CARE HOME,21/02/2017,"1,620.00",73373-RESIDENTIAL & NURSING CARE PLACEMENTS,OP COMMISSIONING,Third Party Payments,Revenue
Walsall Council,http://opendatacommunities.org/id/metropolitan-district-council/walsall,WC77-433,28/02/2017,Adult Social Care,BESCOT LODGE RESIDENTIAL CARE HOME,21/02/2017,"1,620.00",73373-RESIDENTIAL & NURSING CARE PLACEMENTS,OP COMMISSIONING,Third Party Payments,Revenue
Walsall Council,http://opendatacommunities.org/id/metropolitan-district-council/walsall,WC77-434,28/02/2017,Adult Social Care,BESCOT LODGE RESIDENTIAL CARE HOME,21/02/2017,"1,800.00",73373-RESIDENTIAL & NURSING CARE PLACEMENTS,OP COMMISSIONING,Third Party Payments,Revenue
Walsall Council,http://opendatacommunities.org/id/metropolitan-district-council/walsall,WC77-435,28/02/2017,Adult Social Care,BESCOT LODGE RESIDENTIAL CARE HOME,21/02/2017,"1,800.00",73373-RESIDENTIAL & NURSING CARE PLACEMENTS,OP COMMISSIONING,Third Party Payments,Revenue
Walsall Council,http://opendatacommunities.org/id/metropolitan-district-council/walsall,WC77-436,28/02/2017,Adult Social Care,BESCOT LODGE RESIDENTIAL CARE HOME,02/02/2017,"1,992.86",73373-RESIDENTIAL & NURSING CARE PLACEMENTS,OP COMMISSIONING,Third Party Payments,Revenue
Walsall Council,http://opendatacommunities.org/id/metropolitan-district-council/walsall,WC77-437,28/02/2017,Adult Social Care,BESCOT LODGE RESIDENTIAL CARE HOME,02/02/2017,"1,992.86",73373-RESIDENTIAL & NURSING CARE PLACEMENTS,OP COMMISSIONING,Third Party Payments,Revenue
Walsall Council,http://opendatacommunities.org/id/metropolitan-district-council/walsall,WC77-438,28/02/2017,Adult Social Care,BESS CARE LIMITED,02/02/2017,437.50,73372-DOMICILIARY CARE,OP COMMISSIONING,Third Party Payments,Revenue
Walsall Council,http://opendatacommunities.org/id/metropolitan-district-council/walsall,WC77-439,28/02/2017,Adult Social Care,BESS CARE LIMITED,03/02/2017,500.00,73372-DOMICILIARY CARE,OP COMMISSIONING,Third Party Payments,Revenue
Walsall Council,http://opendatacommunities.org/id/metropolitan-district-council/walsall,WC77-440,28/02/2017,Adult Social Care,BESS CARE LIMITED,14/02/2017,500.00,73372-DOMICILIARY CARE,OP COMMISSIONING,Third Party Payments,Revenue
Walsall Council,http://opendatacommunities.org/id/metropolitan-district-council/walsall,WC77-441,28/02/2017,Adult Social Care,BESS CARE LIMITED,20/02/2017,550.00,73372-DOMICILIARY CARE,OP COMMISSIONING,Third Party Payments,Revenue
Walsall Council,http://opendatacommunities.org/id/metropolitan-district-council/walsall,WC77-442,28/02/2017,Adult Social Care,BETHPHAGE.,23/02/2017,812.50,73374-SUPPORTED & OTHER ACCOMMODATION,LD COMMISSIONING,Third Party Payments,Revenue
Walsall Council,http://opendatacommunities.org/id/metropolitan-district-council/walsall,WC77-443,28/02/2017,Adult Social Care,BETHPHAGE.,23/02/2017,"1,199.37",73374-SUPPORTED & OTHER ACCOMMODATION,LD COMMISSIONING,Third Party Payments,Revenue
Walsall Council,http://opendatacommunities.org/id/metropolitan-district-council/walsall,WC77-444,28/02/2017,Adult Social Care,BETHPHAGE.,23/02/2017,"1,269.90",73374-SUPPORTED & OTHER ACCOMMODATION,LD COMMISSIONING,Third Party Payments,Revenue
Walsall Council,http://opendatacommunities.org/id/metropolitan-district-council/walsall,WC77-445,28/02/2017,Adult Social Care,BETHPHAGE.,23/02/2017,"1,799.05",73374-SUPPORTED & OTHER ACCOMMODATION,LD COMMISSIONING,Third Party Payments,Revenue
Walsall Council,http://opendatacommunities.org/id/metropolitan-district-council/walsall,WC77-446,28/02/2017,Adult Social Care,REDACTED,06/02/2017,949.52,76422-DIRECT PAYMENTS TO SOCIAL SERVICES CLIENTS,MH COMMISSIONING,Transfer Payments,Revenue
Walsall Council,http://opendatacommunities.org/id/metropolitan-district-council/walsall,WC77-447,28/02/2017,Adult Social Care,REDACTED,06/02/2017,"2,767.84",76422-DIRECT PAYMENTS TO SOCIAL SERVICES CLIENTS,OP COMMISSIONING,Transfer Payments,Revenue
Walsall Council,http://opendatacommunities.org/id/metropolitan-district-council/walsall,WC77-448,28/02/2017,Change and Governance,BFA SAFETY TRAINING,08/02/2017,295.00,30030-EXTERNAL TRAINING,HEALTH & SAFETY,Employees,Revenue
Walsall Council,http://opendatacommunities.org/id/metropolitan-district-council/walsall,WC77-449,28/02/2017,Change and Governance,BFA SAFETY TRAINING,08/02/2017,495.00,30030-EXTERNAL TRAINING,HEALTH & SAFETY,Employees,Revenue
Walsall Council,http://opendatacommunities.org/id/metropolitan-district-council/walsall,WC77-450,28/02/2017,Change and Governance,BFA SAFETY TRAINING,21/02/2017,795.00,30030-EXTERNAL TRAINING,HEALTH & SAFETY,Employees,Revenue
Walsall Council,http://opendatacommunities.org/id/metropolitan-district-council/walsall,WC77-451,28/02/2017,Adult Social Care,REDACTED,06/02/2017,320.00,76422-DIRECT PAYMENTS TO SOCIAL SERVICES CLIENTS,OP COMMISSIONING,Transfer Payments,Revenue
Walsall Council,http://opendatacommunities.org/id/metropolitan-district-council/walsall,WC77-452,28/02/2017,Childrens,REDACTED,01/02/2017,912.00,52000-WITH DRIVER-HIRE OF VEHICLES,SCHOOL TRANSPORT,Transport,Revenue
Walsall Council,http://opendatacommunities.org/id/metropolitan-district-council/walsall,WC77-453,28/02/2017,Childrens,REDACTED,06/02/2017,487.72,76422-DIRECT PAYMENTS TO SOCIAL SERVICES CLIENTS,FAMILY SUPPORT - DIRECT PAYMENTS,Transfer Payments,Revenue
Walsall Council,http://opendatacommunities.org/id/metropolitan-district-council/walsall,WC77-454,28/02/2017,Childrens,REDACTED,06/02/2017,572.00,76422-DIRECT PAYMENTS TO SOCIAL SERVICES CLIENTS,FAMILY SUPPORT - DIRECT PAYMENTS,Transfer Payments,Revenue
Walsall Council,http://opendatacommunities.org/id/metropolitan-district-council/walsall,WC77-455,28/02/2017,Childrens,BIRCHILLS C OF E COMMUNITY ACADEMY,20/02/2017,273.88,66505-OTHER-GRANTS TO OTHER ORGS,EARLY YEARS - 3 YR OLDS,Third Party Payments,Revenue
Walsall Council,http://opendatacommunities.org/id/metropolitan-district-council/walsall,WC77-456,28/02/2017,Childrens,BIRCHILLS C OF E COMMUNITY ACADEMY,09/02/2017,"15,068.11",66502-TOP UP FUNDING -GRANTS TO SCHOOLS,BIRCHILLS CE COMMUNITY ACADEMY,Third Party Payments,Revenue
Walsall Council,http://opendatacommunities.org/id/metropolitan-district-council/walsall,WC77-457,28/02/2017,Childrens,BIRMINGHAM CITY COUNCIL,27/02/2017,"2,628.46",66502-TOP UP FUNDING -GRANTS TO SCHOOLS,MAINTAINED PROVIDERS,Third Party Payments,Revenue
Walsall Council,http://opendatacommunities.org/id/metropolitan-district-council/walsall,WC77-458,28/02/2017,Childrens,BIRMINGHAM CITY COUNCIL,27/02/2017,"3,880.04",66502-TOP UP FUNDING -GRANTS TO SCHOOLS,MAINTAINED PROVIDERS,Third Party Payments,Revenue
Walsall Council,http://opendatacommunities.org/id/metropolitan-district-council/walsall,WC77-459,28/02/2017,Childrens,BIRMINGHAM CITY COUNCIL,27/02/2017,"3,880.04",66502-TOP UP FUNDING -GRANTS TO SCHOOLS,MAINTAINED PROVIDERS,Third Party Payments,Revenue
Walsall Council,http://opendatacommunities.org/id/metropolitan-district-council/walsall,WC77-460,28/02/2017,Childrens,BIRMINGHAM CITY COUNCIL,27/02/2017,"3,880.04",66502-TOP UP FUNDING -GRANTS TO SCHOOLS,MAINTAINED PROVIDERS,Third Party Payments,Revenue
Walsall Council,http://opendatacommunities.org/id/metropolitan-district-council/walsall,WC77-461,28/02/2017,Childrens,BIRMINGHAM CITY COUNCIL,27/02/2017,"4,742.27",66502-TOP UP FUNDING -GRANTS TO SCHOOLS,MAINTAINED PROVIDERS,Third Party Payments,Revenue
Walsall Council,http://opendatacommunities.org/id/metropolitan-district-council/walsall,WC77-462,28/02/2017,Childrens,BIRMINGHAM CITY COUNCIL,27/02/2017,"4,742.27",66502-TOP UP FUNDING -GRANTS TO SCHOOLS,MAINTAINED PROVIDERS,Third Party Payments,Revenue
Walsall Council,http://opendatacommunities.org/id/metropolitan-district-council/walsall,WC77-463,28/02/2017,Childrens,BIRMINGHAM CITY COUNCIL,27/02/2017,"4,742.27",66502-TOP UP FUNDING -GRANTS TO SCHOOLS,MAINTAINED PROVIDERS,Third Party Payments,Revenue
Walsall Council,http://opendatacommunities.org/id/metropolitan-district-council/walsall,WC77-464,28/02/2017,Economy & Environment,BIRMINGHAM CITY COUNCIL,13/02/2017,"5,077.42",71000-PAYMENTS FOR SERVICES FROM OTHER LOCAL AUTHORITIES,PLANNING POLICY,Third Party Payments,Revenue
Walsall Council,http://opendatacommunities.org/id/metropolitan-district-council/walsall,WC77-465,28/02/2017,Economy & Environment,BIRMINGHAM CITY COUNCIL,13/02/2017,"10,154.83",71000-PAYMENTS FOR SERVICES FROM OTHER LOCAL AUTHORITIES,ROAD SAFETY & SUSTAINABLE TRAVEL,Third Party Payments,Revenue
Walsall Council,http://opendatacommunities.org/id/metropolitan-district-council/walsall,WC77-466,28/02/2017,Economy & Environment,BLACK COUNTRY CONSORTIUM LIMITED,07/02/2017,"128,053.00",01045-PRIVATE GRANTS,CFR 1072 CAPITALISATION OF PROJECT OFFICER COSTS,Capital,Capital
Walsall Council,http://opendatacommunities.org/id/metropolitan-district-council/walsall,WC77-467,28/02/2017,Adult Social Care,BLACK COUNTRY PARTNERSHIP NHS,21/02/2017,"13,718.00",73375-IN PATIENT BEDS,LD COMMISSIONING,Third Party Payments,Revenue
Walsall Council,http://opendatacommunities.org/id/metropolitan-district-council/walsall,WC77-468,28/02/2017,Adult Social Care,BLACK COUNTRY PARTNERSHIP NHS,21/02/2017,"16,100.00",73375-IN PATIENT BEDS,LD COMMISSIONING,Third Party Payments,Revenue
Walsall Council,http://opendatacommunities.org/id/metropolitan-district-council/walsall,WC77-469,28/02/2017,Adult Social Care,BLACK COUNTRY PARTNERSHIP NHS,21/02/2017,"17,825.00",73375-IN PATIENT BEDS,LD COMMISSIONING,Third Party Payments,Revenue
Walsall Council,http://opendatacommunities.org/id/metropolitan-district-council/walsall,WC77-470,28/02/2017,Childrens,BLAKENALL HEATH JMI SCHOOL,03/02/2017,"91,561.92",77300-ISB-FORMULA ALLOCATION,BLAKENALL HEATH JUNIOR SCHOOL,Transfer Payments,Revenue
Walsall Council,http://opendatacommunities.org/id/metropolitan-district-council/walsall,WC77-471,28/02/2017,Childrens,BLAKENALL HEATH JMI SCHOOL,24/02/2017,"91,561.92",77300-ISB-FORMULA ALLOCATION,BLAKENALL HEATH JUNIOR SCHOOL,Transfer Payments,Revenue
Walsall Council,http://opendatacommunities.org/id/metropolitan-district-council/walsall,WC77-472,28/02/2017,Childrens,BLOWERS GREEN PRIMARY SCHOOL,20/02/2017,"1,290.00",77300-ISB-FORMULA ALLOCATION,OUT OF BOROUGH SCHOOLS,Transfer Payments,Revenue
Walsall Council,http://opendatacommunities.org/id/metropolitan-district-council/walsall,WC77-473,28/02/2017,Childrens,BLOXWICH ACADEMY,20/02/2017,"1,756.95",66505-OTHER-GRANTS TO OTHER ORGS,EARLY YEARS - 3 YR OLDS,Third Party Payments,Revenue
Walsall Council,http://opendatacommunities.org/id/metropolitan-district-council/walsall,WC77-474,28/02/2017,Childrens,BLOXWICH ACADEMY,09/02/2017,"4,894.63",66502-TOP UP FUNDING -GRANTS TO SCHOOLS,BLOXWICH ACADEMY,Third Party Payments,Revenue
Walsall Council,http://opendatacommunities.org/id/metropolitan-district-council/walsall,WC77-475,28/02/2017,Change and Governance,BLOXWICH COMMUNITY PARTNERSHIP.,08/02/2017,285.51,62515-MISCELLANEOUS SUPPLIES,AREA 3 - NORTH WALSALL,Supplies & Services,Revenue
Walsall Council,http://opendatacommunities.org/id/metropolitan-district-council/walsall,WC77-476,28/02/2017,Adult Social Care,BLOXWICH COMMUNITY PARTNERSHIP.,02/02/2017,324.00,73374-SUPPORTED & OTHER ACCOMMODATION,MH COMMISSIONING,Third Party Payments,Revenue
Walsall Council,http://opendatacommunities.org/id/metropolitan-district-council/walsall,WC77-477,28/02/2017,Childrens,BLOXWICH RADIO TAXIS,02/02/2017,"2,220.00",52000-WITH DRIVER-HIRE OF VEHICLES,SCHOOL TRANSPORT,Transport,Revenue
Walsall Council,http://opendatacommunities.org/id/metropolitan-district-council/walsall,WC77-478,28/02/2017,Childrens,BLOXWICH RADIO TAXIS,02/02/2017,"3,600.00",52000-WITH DRIVER-HIRE OF VEHICLES,SCHOOL TRANSPORT,Transport,Revenue
Walsall Council,http://opendatacommunities.org/id/metropolitan-district-council/walsall,WC77-479,28/02/2017,Childrens,BLUE COAT CHURCH OF ENGLAND ACADEMY,27/02/2017,"3,000.00",73025-PROFESSIONAL SERVICES-PRIV CONTRACTOR & OTHER AGENCIES,SCHOOL IMPROVEMENT-CORE,Third Party Payments,Revenue
Walsall Council,http://opendatacommunities.org/id/metropolitan-district-council/walsall,WC77-480,28/02/2017,Adult Social Care,BLUEBIRD CARE (MID STAFFS),02/02/2017,504.00,73372-DOMICILIARY CARE,OP COMMISSIONING,Third Party Payments,Revenue
Walsall Council,http://opendatacommunities.org/id/metropolitan-district-council/walsall,WC77-481,28/02/2017,Adult Social Care,BLUEBIRD CARE (MID STAFFS),20/02/2017,648.00,73372-DOMICILIARY CARE,OP COMMISSIONING,Third Party Payments,Revenue
Walsall Council,http://opendatacommunities.org/id/metropolitan-district-council/walsall,WC77-482,28/02/2017,Adult Social Care,BLUEBIRD CARE (MID STAFFS),14/02/2017,684.00,73372-DOMICILIARY CARE,OP COMMISSIONING,Third Party Payments,Revenue
Walsall Council,http://opendatacommunities.org/id/metropolitan-district-council/walsall,WC77-483,28/02/2017,Economy & Environment,BME UNITED LTD,17/02/2017,"7,587.00",63000-PROFESSIONAL FEES AND SERVICES,SMOKING CESSATION,Supplies & Services,Revenue
Walsall Council,http://opendatacommunities.org/id/metropolitan-district-council/walsall,WC77-484,28/02/2017,Economy & Environment,BME UNITED LTD,20/02/2017,"10,435.00",63000-PROFESSIONAL FEES AND SERVICES,SMOKING CESSATION,Supplies & Services,Revenue
Walsall Council,http://opendatacommunities.org/id/metropolitan-district-council/walsall,WC77-485,28/02/2017,Economy & Environment,BONINGALE NURSERIES,14/02/2017,839.31,60500-GENERAL MATERIALS,SECTION 106,Supplies & Services,Revenue
Walsall Council,http://opendatacommunities.org/id/metropolitan-district-council/walsall,WC77-486,28/02/2017,Economy & Environment,BOOTS UK LIMITED,24/02/2017,90.94,71007-CONTRIBUTION TO PCT,PUBLIC HEALTH BUSINESS SUPPORT,Third Party Payments,Revenue
Walsall Council,http://opendatacommunities.org/id/metropolitan-district-council/walsall,WC77-487,28/02/2017,Economy & Environment,BOOTS UK LIMITED,24/02/2017,628.35,63000-PROFESSIONAL FEES AND SERVICES,SEXUAL HEALTH,Supplies & Services,Revenue
Walsall Council,http://opendatacommunities.org/id/metropolitan-district-council/walsall,WC77-488,28/02/2017,Childrens,BOULTON TRAVEL LIMITED,02/02/2017,"2,373.00",52000-WITH DRIVER-HIRE OF VEHICLES,SCHOOL TRANSPORT,Transport,Revenue
Walsall Council,http://opendatacommunities.org/id/metropolitan-district-council/walsall,WC77-489,28/02/2017,Childrens,BOULTON TRAVEL LIMITED,02/02/2017,"2,540.00",52000-WITH DRIVER-HIRE OF VEHICLES,SCHOOL TRANSPORT,Transport,Revenue
Walsall Council,http://opendatacommunities.org/id/metropolitan-district-council/walsall,WC77-490,28/02/2017,Adult Social Care,BOWDEN DERRA PARK,07/02/2017,"10,502.76",73373-RESIDENTIAL & NURSING CARE PLACEMENTS,LD COMMISSIONING,Third Party Payments,Revenue
Walsall Council,http://opendatacommunities.org/id/metropolitan-district-council/walsall,WC77-491,28/02/2017,Change and Governance,BPP PROFESSIONAL EDUCATION,13/02/2017,"1,420.81",30030-EXTERNAL TRAINING,FINANCE,Employees,Revenue
Walsall Council,http://opendatacommunities.org/id/metropolitan-district-council/walsall,WC77-492,28/02/2017,Change and Governance,BPP PROFESSIONAL EDUCATION,08/02/2017,"1,554.16",30030-EXTERNAL TRAINING,FINANCE,Employees,Revenue
Walsall Council,http://opendatacommunities.org/id/metropolitan-district-council/walsall,WC77-493,28/02/2017,Economy & Environment,BRADVALE LTD T/A INSPIRE HEALTHCARE SERVICES,02/02/2017,288.88,60008-MAINTENANCE-FURNITURE & EQUIPMENT,WALSALL GALA CENTRE,Supplies & Services,Revenue
Walsall Council,http://opendatacommunities.org/id/metropolitan-district-council/walsall,WC77-494,28/02/2017,Economy & Environment,BRADVALE LTD T/A INSPIRE HEALTHCARE SERVICES,13/02/2017,392.23,60008-MAINTENANCE-FURNITURE & EQUIPMENT,OAK PARK,Supplies & Services,Revenue
Walsall Council,http://opendatacommunities.org/id/metropolitan-district-council/walsall,WC77-495,28/02/2017,Economy & Environment,BRADVALE LTD T/A INSPIRE HEALTHCARE SERVICES,08/02/2017,555.51,60500-GENERAL MATERIALS,ARBORETUM VISITOR CENTRE,Supplies & Services,Revenue
Walsall Council,http://opendatacommunities.org/id/metropolitan-district-council/walsall,WC77-496,28/02/2017,Change and Governance,BRAMBLE HUB LIMITED,13/02/2017,"19,127.36",63800-COMPUTER EQUIPMENT AND SUPPLIES,FINANCIAL SYSTEMS,Supplies & Services,Revenue
Walsall Council,http://opendatacommunities.org/id/metropolitan-district-council/walsall,WC77-497,28/02/2017,Change and Governance,BRAMBLE HUB LIMITED,01/02/2017,"57,382.06",63800-COMPUTER EQUIPMENT AND SUPPLIES,FINANCIAL SYSTEMS,Supplies & Services,Revenue
Walsall Council,http://opendatacommunities.org/id/metropolitan-district-council/walsall,WC77-498,28/02/2017,Adult Social Care,BRAMBLES RESIDENTIAL CARE HOME,28/02/2017,428.57,73373-RESIDENTIAL & NURSING CARE PLACEMENTS,MH COMMISSIONING,Third Party Payments,Revenue
Walsall Council,http://opendatacommunities.org/id/metropolitan-district-council/walsall,WC77-499,28/02/2017,Adult Social Care,BRAMBLES RESIDENTIAL CARE HOME,21/02/2017,"1,928.00",73373-RESIDENTIAL & NURSING CARE PLACEMENTS,MH COMMISSIONING,Third Party Payments,Revenue
Walsall Council,http://opendatacommunities.org/id/metropolitan-district-council/walsall,WC77-500,28/02/2017,Adult Social Care,BRAMBLES RESIDENTIAL CARE HOME,28/02/2017,"2,142.86",73373-RESIDENTIAL & NURSING CARE PLACEMENTS,MH COMMISSIONING,Third Party Payments,Revenue
Walsall Council,http://opendatacommunities.org/id/metropolitan-district-council/walsall,WC77-501,28/02/2017,Adult Social Care,BRAMBLES RESIDENTIAL CARE HOME,21/02/2017,"2,214.29",73373-RESIDENTIAL & NURSING CARE PLACEMENTS,MH COMMISSIONING,Third Party Payments,Revenue
Walsall Council,http://opendatacommunities.org/id/metropolitan-district-council/walsall,WC77-502,28/02/2017,Adult Social Care,BRAMBLES RESIDENTIAL CARE HOME,21/02/2017,"2,214.29",73373-RESIDENTIAL & NURSING CARE PLACEMENTS,MH COMMISSIONING,Third Party Payments,Revenue
Walsall Council,http://opendatacommunities.org/id/metropolitan-district-council/walsall,WC77-503,28/02/2017,Adult Social Care,REDACTED,06/02/2017,440.00,76422-DIRECT PAYMENTS TO SOCIAL SERVICES CLIENTS,LD COMMISSIONING,Transfer Payments,Revenue
Walsall Council,http://opendatacommunities.org/id/metropolitan-district-council/walsall,WC77-504,28/02/2017,Childrens,REDACTED,27/02/2017,"1,445.32",62515-MISCELLANEOUS SUPPLIES,INTERNAL FOSTER CARE PROVISION,Supplies & Services,Revenue
Walsall Council,http://opendatacommunities.org/id/metropolitan-district-council/walsall,WC77-505,28/02/2017,Childrens,REDACTED,01/02/2017,"1,620.64",74006-HOLIDAY/CHRISTMAS ALLOWANCE-FOSTER CARERS-OTH AGENCY PROVISION,INTERNAL FOSTER CARE PROVISION,Third Party Payments,Revenue
Walsall Council,http://opendatacommunities.org/id/metropolitan-district-council/walsall,WC77-506,28/02/2017,Economy & Environment,BRENNTAG UK LIMITED,01/02/2017,339.73,60503-CHEMICALS & SCIENTIFIC MATS-MATERIALS,BLOXWICH LEISURE CENTRE,Supplies & Services,Revenue
Walsall Council,http://opendatacommunities.org/id/metropolitan-district-council/walsall,WC77-507,28/02/2017,Economy & Environment,BRENNTAG UK LIMITED,10/02/2017,364.50,60503-CHEMICALS & SCIENTIFIC MATS-MATERIALS,OAK PARK,Supplies & Services,Revenue
Walsall Council,http://opendatacommunities.org/id/metropolitan-district-council/walsall,WC77-508,28/02/2017,Economy & Environment,BRENNTAG UK LIMITED,03/02/2017,710.28,50301-FUEL-TRANSPORT RUN COSTS,FUEL STOCK ACCOUNT,Transport,Revenue
Walsall Council,http://opendatacommunities.org/id/metropolitan-district-council/walsall,WC77-509,28/02/2017,Adult Social Care,REDACTED,09/02/2017,"1,337.64",73374-SUPPORTED & OTHER ACCOMMODATION,LD COMMISSIONING,Third Party Payments,Revenue
Walsall Council,http://opendatacommunities.org/id/metropolitan-district-council/walsall,WC77-510,28/02/2017,Adult Social Care,REDACTED,09/02/2017,"1,597.60",73374-SUPPORTED & OTHER ACCOMMODATION,LD COMMISSIONING,Third Party Payments,Revenue
Walsall Council,http://opendatacommunities.org/id/metropolitan-district-council/walsall,WC77-511,28/02/2017,Adult Social Care,REDACTED,06/02/2017,"1,726.40",76422-DIRECT PAYMENTS TO SOCIAL SERVICES CLIENTS,OP COMMISSIONING,Transfer Payments,Revenue
Walsall Council,http://opendatacommunities.org/id/metropolitan-district-council/walsall,WC77-512,28/02/2017,Adult Social Care,REDACTED,06/02/2017,738.00,76422-DIRECT PAYMENTS TO SOCIAL SERVICES CLIENTS,OP COMMISSIONING,Transfer Payments,Revenue
Walsall Council,http://opendatacommunities.org/id/metropolitan-district-council/walsall,WC77-513,28/02/2017,Adult Social Care,BRIDGEWOOD HEALTH CARE LTD,07/02/2017,"5,513.72",73373-RESIDENTIAL & NURSING CARE PLACEMENTS,PD COMMISSIONING,Third Party Payments,Revenue
Walsall Council,http://opendatacommunities.org/id/metropolitan-district-council/walsall,WC77-514,28/02/2017,Childrens,BRIGHT HORIZONS (WISHING WILLOW),08/02/2017,"1,099.63",63120-CRECHE FACILITIES-SERVICES-FEES,FAMILY PLACEMENTS,Supplies & Services,Revenue
Walsall Council,http://opendatacommunities.org/id/metropolitan-district-council/walsall,WC77-515,28/02/2017,Economy & Environment,BRITANNIA APPRENTICESHIPS LTD,28/02/2017,"2,250.00",66500-GRANTS TO OTHER ORGS,RES-WALSALL WORKS,Third Party Payments,Revenue
Walsall Council,http://opendatacommunities.org/id/metropolitan-district-council/walsall,WC77-516,28/02/2017,Change and Governance,BRITISH GAS BUSINESS,22/02/2017,"-5,062.70",42000-GAS-ENERGY COSTS,CENTRALISED ENERGY,Premises,Revenue
Walsall Council,http://opendatacommunities.org/id/metropolitan-district-council/walsall,WC77-517,28/02/2017,Change and Governance,BRITISH GAS BUSINESS,22/02/2017,"-2,044.80",42000-GAS-ENERGY COSTS,CENTRAL OFFICE ACCOMMODATION,Premises,Revenue
Walsall Council,http://opendatacommunities.org/id/metropolitan-district-council/walsall,WC77-518,28/02/2017,Change and Governance,BRITISH GAS BUSINESS,22/02/2017,"-2,024.65",42000-GAS-ENERGY COSTS,CENTRAL OFFICE ACCOMMODATION,Premises,Revenue
Walsall Council,http://opendatacommunities.org/id/metropolitan-district-council/walsall,WC77-519,28/02/2017,Change and Governance,BRITISH GAS BUSINESS,22/02/2017,"-1,258.28",42000-GAS-ENERGY COSTS,CENTRAL OFFICE ACCOMMODATION,Premises,Revenue
Walsall Council,http://opendatacommunities.org/id/metropolitan-district-council/walsall,WC77-520,28/02/2017,Change and Governance,BRITISH GAS BUSINESS,22/02/2017,210.43,42000-GAS-ENERGY COSTS,CENTRALISED ENERGY,Premises,Revenue
Walsall Council,http://opendatacommunities.org/id/metropolitan-district-council/walsall,WC77-521,28/02/2017,Change and Governance,BRITISH GAS BUSINESS,22/02/2017,219.38,42000-GAS-ENERGY COSTS,REDUNDANT BUILDINGS,Premises,Revenue
Walsall Council,http://opendatacommunities.org/id/metropolitan-district-council/walsall,WC77-522,28/02/2017,Change and Governance,BRITISH GAS BUSINESS,22/02/2017,226.53,42000-GAS-ENERGY COSTS,CENTRALISED ENERGY,Premises,Revenue
Walsall Council,http://opendatacommunities.org/id/metropolitan-district-council/walsall,WC77-523,28/02/2017,Change and Governance,BRITISH GAS BUSINESS,22/02/2017,230.16,42000-GAS-ENERGY COSTS,CENTRALISED ENERGY,Premises,Revenue
Walsall Council,http://opendatacommunities.org/id/metropolitan-district-council/walsall,WC77-524,28/02/2017,Change and Governance,BRITISH GAS BUSINESS,22/02/2017,233.13,42000-GAS-ENERGY COSTS,CENTRALISED ENERGY,Premises,Revenue
Walsall Council,http://opendatacommunities.org/id/metropolitan-district-council/walsall,WC77-525,28/02/2017,Change and Governance,BRITISH GAS BUSINESS,22/02/2017,234.90,42000-GAS-ENERGY COSTS,CENTRALISED ENERGY,Premises,Revenue
Walsall Council,http://opendatacommunities.org/id/metropolitan-district-council/walsall,WC77-526,28/02/2017,Change and Governance,BRITISH GAS BUSINESS,22/02/2017,265.88,42000-GAS-ENERGY COSTS,CENTRAL OFFICE ACCOMMODATION,Premises,Revenue
Walsall Council,http://opendatacommunities.org/id/metropolitan-district-council/walsall,WC77-527,28/02/2017,Change and Governance,BRITISH GAS BUSINESS,22/02/2017,270.28,42000-GAS-ENERGY COSTS,CENTRALISED ENERGY,Premises,Revenue
Walsall Council,http://opendatacommunities.org/id/metropolitan-district-council/walsall,WC77-528,28/02/2017,Change and Governance,BRITISH GAS BUSINESS,22/02/2017,274.22,42000-GAS-ENERGY COSTS,CENTRALISED ENERGY,Premises,Revenue
Walsall Council,http://opendatacommunities.org/id/metropolitan-district-council/walsall,WC77-529,28/02/2017,Change and Governance,BRITISH GAS BUSINESS,22/02/2017,278.13,42000-GAS-ENERGY COSTS,CENTRALISED ENERGY,Premises,Revenue
Walsall Council,http://opendatacommunities.org/id/metropolitan-district-council/walsall,WC77-530,28/02/2017,Change and Governance,BRITISH GAS BUSINESS,22/02/2017,283.31,42000-GAS-ENERGY COSTS,REDUNDANT BUILDINGS,Premises,Revenue
Walsall Council,http://opendatacommunities.org/id/metropolitan-district-council/walsall,WC77-531,28/02/2017,Change and Governance,BRITISH GAS BUSINESS,22/02/2017,289.12,42000-GAS-ENERGY COSTS,CENTRALISED ENERGY,Premises,Revenue
Walsall Council,http://opendatacommunities.org/id/metropolitan-district-council/walsall,WC77-532,28/02/2017,Change and Governance,BRITISH GAS BUSINESS,22/02/2017,293.88,42000-GAS-ENERGY COSTS,CENTRALISED ENERGY,Premises,Revenue
Walsall Council,http://opendatacommunities.org/id/metropolitan-district-council/walsall,WC77-533,28/02/2017,Change and Governance,BRITISH GAS BUSINESS,22/02/2017,298.25,42000-GAS-ENERGY COSTS,CENTRALISED ENERGY,Premises,Revenue
Walsall Council,http://opendatacommunities.org/id/metropolitan-district-council/walsall,WC77-534,28/02/2017,Change and Governance,BRITISH GAS BUSINESS,22/02/2017,307.98,42000-GAS-ENERGY COSTS,CENTRALISED ENERGY,Premises,Revenue
Walsall Council,http://opendatacommunities.org/id/metropolitan-district-council/walsall,WC77-535,28/02/2017,Change and Governance,BRITISH GAS BUSINESS,22/02/2017,312.23,42000-GAS-ENERGY COSTS,CENTRAL OFFICE ACCOMMODATION,Premises,Revenue
Walsall Council,http://opendatacommunities.org/id/metropolitan-district-council/walsall,WC77-536,28/02/2017,Change and Governance,BRITISH GAS BUSINESS,22/02/2017,328.28,42000-GAS-ENERGY COSTS,CENTRALISED ENERGY,Premises,Revenue
Walsall Council,http://opendatacommunities.org/id/metropolitan-district-council/walsall,WC77-537,28/02/2017,Change and Governance,BRITISH GAS BUSINESS,22/02/2017,340.52,42000-GAS-ENERGY COSTS,CENTRALISED ENERGY,Premises,Revenue
Walsall Council,http://opendatacommunities.org/id/metropolitan-district-council/walsall,WC77-538,28/02/2017,Change and Governance,BRITISH GAS BUSINESS,22/02/2017,341.08,42000-GAS-ENERGY COSTS,CENTRALISED ENERGY,Premises,Revenue
Walsall Council,http://opendatacommunities.org/id/metropolitan-district-council/walsall,WC77-539,28/02/2017,Change and Governance,BRITISH GAS BUSINESS,22/02/2017,346.52,42000-GAS-ENERGY COSTS,CENTRALISED ENERGY,Premises,Revenue
Walsall Council,http://opendatacommunities.org/id/metropolitan-district-council/walsall,WC77-540,28/02/2017,Economy & Environment,BRITISH GAS BUSINESS,09/02/2017,353.84,42000-GAS-ENERGY COSTS,ARBORETUM VISITOR CENTRE,Premises,Revenue
Walsall Council,http://opendatacommunities.org/id/metropolitan-district-council/walsall,WC77-541,28/02/2017,Change and Governance,BRITISH GAS BUSINESS,22/02/2017,354.91,42000-GAS-ENERGY COSTS,RECHARGEABLE UTILITIES,Premises,Revenue
Walsall Council,http://opendatacommunities.org/id/metropolitan-district-council/walsall,WC77-542,28/02/2017,Childrens,BRITISH GAS BUSINESS,09/02/2017,369.47,42000-GAS-ENERGY COSTS,LOCALITY FAMILY SUPPORT-NORTH,Premises,Revenue
Walsall Council,http://opendatacommunities.org/id/metropolitan-district-council/walsall,WC77-543,28/02/2017,Childrens,BRITISH GAS BUSINESS,22/02/2017,371.32,42000-GAS-ENERGY COSTS,LOCALITY FAMILY SUPPORT-WEST,Premises,Revenue
Walsall Council,http://opendatacommunities.org/id/metropolitan-district-council/walsall,WC77-544,28/02/2017,Change and Governance,BRITISH GAS BUSINESS,22/02/2017,401.46,42000-GAS-ENERGY COSTS,CENTRALISED ENERGY,Premises,Revenue
Walsall Council,http://opendatacommunities.org/id/metropolitan-district-council/walsall,WC77-545,28/02/2017,Change and Governance,BRITISH GAS BUSINESS,22/02/2017,401.97,42000-GAS-ENERGY COSTS,CENTRALISED ENERGY,Premises,Revenue
Walsall Council,http://opendatacommunities.org/id/metropolitan-district-council/walsall,WC77-546,28/02/2017,Change and Governance,BRITISH GAS BUSINESS,22/02/2017,418.48,42000-GAS-ENERGY COSTS,CENTRALISED ENERGY,Premises,Revenue
Walsall Council,http://opendatacommunities.org/id/metropolitan-district-council/walsall,WC77-547,28/02/2017,Change and Governance,BRITISH GAS BUSINESS,22/02/2017,441.98,42000-GAS-ENERGY COSTS,CENTRALISED ENERGY,Premises,Revenue
Walsall Council,http://opendatacommunities.org/id/metropolitan-district-council/walsall,WC77-548,28/02/2017,Change and Governance,BRITISH GAS BUSINESS,22/02/2017,444.48,42000-GAS-ENERGY COSTS,CENTRAL OFFICE ACCOMMODATION,Premises,Revenue
Walsall Council,http://opendatacommunities.org/id/metropolitan-district-council/walsall,WC77-549,28/02/2017,Change and Governance,BRITISH GAS BUSINESS,22/02/2017,453.40,42000-GAS-ENERGY COSTS,CENTRALISED ENERGY,Premises,Revenue
Walsall Council,http://opendatacommunities.org/id/metropolitan-district-council/walsall,WC77-550,28/02/2017,Change and Governance,BRITISH GAS BUSINESS,22/02/2017,486.37,42000-GAS-ENERGY COSTS,CENTRAL OFFICE ACCOMMODATION,Premises,Revenue
Walsall Council,http://opendatacommunities.org/id/metropolitan-district-council/walsall,WC77-551,28/02/2017,Change and Governance,BRITISH GAS BUSINESS,22/02/2017,509.86,42000-GAS-ENERGY COSTS,CENTRALISED ENERGY,Premises,Revenue
Walsall Council,http://opendatacommunities.org/id/metropolitan-district-council/walsall,WC77-552,28/02/2017,Change and Governance,BRITISH GAS BUSINESS,22/02/2017,512.35,42000-GAS-ENERGY COSTS,CENTRAL OFFICE ACCOMMODATION,Premises,Revenue
Walsall Council,http://opendatacommunities.org/id/metropolitan-district-council/walsall,WC77-553,28/02/2017,Change and Governance,BRITISH GAS BUSINESS,01/02/2017,535.68,42000-GAS-ENERGY COSTS,CENTRALISED ENERGY,Premises,Revenue
Walsall Council,http://opendatacommunities.org/id/metropolitan-district-council/walsall,WC77-554,28/02/2017,Change and Governance,BRITISH GAS BUSINESS,22/02/2017,561.21,42000-GAS-ENERGY COSTS,CENTRALISED ENERGY,Premises,Revenue
Walsall Council,http://opendatacommunities.org/id/metropolitan-district-council/walsall,WC77-555,28/02/2017,Change and Governance,BRITISH GAS BUSINESS,22/02/2017,567.45,42000-GAS-ENERGY COSTS,CENTRAL OFFICE ACCOMMODATION,Premises,Revenue
Walsall Council,http://opendatacommunities.org/id/metropolitan-district-council/walsall,WC77-556,28/02/2017,Change and Governance,BRITISH GAS BUSINESS,22/02/2017,583.13,42000-GAS-ENERGY COSTS,CENTRALISED ENERGY,Premises,Revenue
Walsall Council,http://opendatacommunities.org/id/metropolitan-district-council/walsall,WC77-557,28/02/2017,Change and Governance,BRITISH GAS BUSINESS,22/02/2017,593.81,42000-GAS-ENERGY COSTS,CENTRALISED ENERGY,Premises,Revenue
Walsall Council,http://opendatacommunities.org/id/metropolitan-district-council/walsall,WC77-558,28/02/2017,Change and Governance,BRITISH GAS BUSINESS,22/02/2017,634.69,42000-GAS-ENERGY COSTS,CENTRALISED ENERGY,Premises,Revenue
Walsall Council,http://opendatacommunities.org/id/metropolitan-district-council/walsall,WC77-559,28/02/2017,Change and Governance,BRITISH GAS BUSINESS,22/02/2017,654.58,42000-GAS-ENERGY COSTS,CENTRAL OFFICE ACCOMMODATION,Premises,Revenue
Walsall Council,http://opendatacommunities.org/id/metropolitan-district-council/walsall,WC77-560,28/02/2017,Change and Governance,BRITISH GAS BUSINESS,22/02/2017,694.84,42000-GAS-ENERGY COSTS,CENTRALISED ENERGY,Premises,Revenue
Walsall Council,http://opendatacommunities.org/id/metropolitan-district-council/walsall,WC77-561,28/02/2017,Change and Governance,BRITISH GAS BUSINESS,22/02/2017,732.20,42000-GAS-ENERGY COSTS,REDUNDANT BUILDINGS,Premises,Revenue
Walsall Council,http://opendatacommunities.org/id/metropolitan-district-council/walsall,WC77-562,28/02/2017,Change and Governance,BRITISH GAS BUSINESS,22/02/2017,781.65,42000-GAS-ENERGY COSTS,REDUNDANT BUILDINGS,Premises,Revenue
Walsall Council,http://opendatacommunities.org/id/metropolitan-district-council/walsall,WC77-563,28/02/2017,Change and Governance,BRITISH GAS BUSINESS,22/02/2017,995.97,42000-GAS-ENERGY COSTS,CENTRALISED ENERGY,Premises,Revenue
Walsall Council,http://opendatacommunities.org/id/metropolitan-district-council/walsall,WC77-564,28/02/2017,Change and Governance,BRITISH GAS BUSINESS,22/02/2017,"1,093.31",42000-GAS-ENERGY COSTS,CENTRALISED ENERGY,Premises,Revenue
Walsall Council,http://opendatacommunities.org/id/metropolitan-district-council/walsall,WC77-565,28/02/2017,Change and Governance,BRITISH GAS BUSINESS,22/02/2017,"1,126.56",42000-GAS-ENERGY COSTS,RECHARGEABLE UTILITIES,Premises,Revenue
Walsall Council,http://opendatacommunities.org/id/metropolitan-district-council/walsall,WC77-566,28/02/2017,Change and Governance,BRITISH GAS BUSINESS,22/02/2017,"1,211.03",42000-GAS-ENERGY COSTS,RECHARGEABLE UTILITIES,Premises,Revenue
Walsall Council,http://opendatacommunities.org/id/metropolitan-district-council/walsall,WC77-567,28/02/2017,Change and Governance,BRITISH GAS BUSINESS,22/02/2017,"1,251.23",42000-GAS-ENERGY COSTS,RECHARGEABLE UTILITIES,Premises,Revenue
Walsall Council,http://opendatacommunities.org/id/metropolitan-district-council/walsall,WC77-568,28/02/2017,Change and Governance,BRITISH GAS BUSINESS,22/02/2017,"1,258.28",42000-GAS-ENERGY COSTS,CENTRAL OFFICE ACCOMMODATION,Premises,Revenue
Walsall Council,http://opendatacommunities.org/id/metropolitan-district-council/walsall,WC77-569,28/02/2017,Change and Governance,BRITISH GAS BUSINESS,01/02/2017,"1,276.22",42000-GAS-ENERGY COSTS,CENTRALISED ENERGY,Premises,Revenue
Walsall Council,http://opendatacommunities.org/id/metropolitan-district-council/walsall,WC77-570,28/02/2017,Change and Governance,BRITISH GAS BUSINESS,22/02/2017,"1,292.13",42000-GAS-ENERGY COSTS,DARLASTON TOWN HALL,Premises,Revenue
Walsall Council,http://opendatacommunities.org/id/metropolitan-district-council/walsall,WC77-571,28/02/2017,Change and Governance,BRITISH GAS BUSINESS,01/02/2017,"1,339.72",42000-GAS-ENERGY COSTS,CENTRALISED ENERGY,Premises,Revenue
Walsall Council,http://opendatacommunities.org/id/metropolitan-district-council/walsall,WC77-572,28/02/2017,Change and Governance,BRITISH GAS BUSINESS,22/02/2017,"1,378.02",42000-GAS-ENERGY COSTS,CENTRALISED ENERGY,Premises,Revenue
Walsall Council,http://opendatacommunities.org/id/metropolitan-district-council/walsall,WC77-573,28/02/2017,Change and Governance,BRITISH GAS BUSINESS,22/02/2017,"1,473.87",42000-GAS-ENERGY COSTS,RECHARGEABLE UTILITIES,Premises,Revenue
Walsall Council,http://opendatacommunities.org/id/metropolitan-district-council/walsall,WC77-574,28/02/2017,Change and Governance,BRITISH GAS BUSINESS,22/02/2017,"1,515.73",42000-GAS-ENERGY COSTS,CENTRALISED ENERGY,Premises,Revenue
Walsall Council,http://opendatacommunities.org/id/metropolitan-district-council/walsall,WC77-575,28/02/2017,Change and Governance,BRITISH GAS BUSINESS,22/02/2017,"1,536.13",42000-GAS-ENERGY COSTS,CENTRALISED ENERGY,Premises,Revenue
Walsall Council,http://opendatacommunities.org/id/metropolitan-district-council/walsall,WC77-576,28/02/2017,Change and Governance,BRITISH GAS BUSINESS,22/02/2017,"1,858.12",42000-GAS-ENERGY COSTS,CENTRAL OFFICE ACCOMMODATION,Premises,Revenue
Walsall Council,http://opendatacommunities.org/id/metropolitan-district-council/walsall,WC77-577,28/02/2017,Change and Governance,BRITISH GAS BUSINESS,22/02/2017,"1,870.18",42000-GAS-ENERGY COSTS,CENTRALISED ENERGY,Premises,Revenue
Walsall Council,http://opendatacommunities.org/id/metropolitan-district-council/walsall,WC77-578,28/02/2017,Change and Governance,BRITISH GAS BUSINESS,13/02/2017,"2,027.88",42000-GAS-ENERGY COSTS,CENTRALISED ENERGY,Premises,Revenue
Walsall Council,http://opendatacommunities.org/id/metropolitan-district-council/walsall,WC77-579,28/02/2017,Change and Governance,BRITISH GAS BUSINESS,22/02/2017,"2,029.55",42000-GAS-ENERGY COSTS,CENTRAL OFFICE ACCOMMODATION,Premises,Revenue
Walsall Council,http://opendatacommunities.org/id/metropolitan-district-council/walsall,WC77-580,28/02/2017,Change and Governance,BRITISH GAS BUSINESS,22/02/2017,"2,044.80",42000-GAS-ENERGY COSTS,CENTRAL OFFICE ACCOMMODATION,Premises,Revenue
Walsall Council,http://opendatacommunities.org/id/metropolitan-district-council/walsall,WC77-581,28/02/2017,Change and Governance,BRITISH GAS BUSINESS,22/02/2017,"2,113.00",42000-GAS-ENERGY COSTS,CHALLENGE BUILDING,Premises,Revenue
Walsall Council,http://opendatacommunities.org/id/metropolitan-district-council/walsall,WC77-582,28/02/2017,Change and Governance,BRITISH GAS BUSINESS,01/02/2017,"2,272.28",42000-GAS-ENERGY COSTS,CENTRALISED ENERGY,Premises,Revenue
Walsall Council,http://opendatacommunities.org/id/metropolitan-district-council/walsall,WC77-583,28/02/2017,Change and Governance,BRITISH GAS BUSINESS,01/02/2017,"2,398.80",42000-GAS-ENERGY COSTS,CENTRALISED ENERGY,Premises,Revenue
Walsall Council,http://opendatacommunities.org/id/metropolitan-district-council/walsall,WC77-584,28/02/2017,Change and Governance,BRITISH GAS BUSINESS,22/02/2017,"2,472.85",42000-GAS-ENERGY COSTS,CENTRAL OFFICE ACCOMMODATION,Premises,Revenue
Walsall Council,http://opendatacommunities.org/id/metropolitan-district-council/walsall,WC77-585,28/02/2017,Change and Governance,BRITISH GAS BUSINESS,01/02/2017,"2,953.51",42000-GAS-ENERGY COSTS,CENTRALISED ENERGY,Premises,Revenue
Walsall Council,http://opendatacommunities.org/id/metropolitan-district-council/walsall,WC77-586,28/02/2017,Change and Governance,BRITISH GAS BUSINESS,22/02/2017,"3,717.68",42000-GAS-ENERGY COSTS,CENTRALISED ENERGY,Premises,Revenue
Walsall Council,http://opendatacommunities.org/id/metropolitan-district-council/walsall,WC77-587,28/02/2017,Change and Governance,BRITISH GAS BUSINESS,22/02/2017,"4,776.53",42000-GAS-ENERGY COSTS,WALSALL TOWN HALL,Premises,Revenue
Walsall Council,http://opendatacommunities.org/id/metropolitan-district-council/walsall,WC77-588,28/02/2017,Change and Governance,BRITISH GAS BUSINESS,22/02/2017,"4,833.03",42000-GAS-ENERGY COSTS,CENTRALISED ENERGY,Premises,Revenue
Walsall Council,http://opendatacommunities.org/id/metropolitan-district-council/walsall,WC77-589,28/02/2017,Change and Governance,BRITISH GAS BUSINESS,22/02/2017,"5,062.70",42000-GAS-ENERGY COSTS,CENTRALISED ENERGY,Premises,Revenue
Walsall Council,http://opendatacommunities.org/id/metropolitan-district-council/walsall,WC77-590,28/02/2017,Change and Governance,BRITISH GAS BUSINESS,22/02/2017,"7,055.90",42000-GAS-ENERGY COSTS,CENTRAL OFFICE ACCOMMODATION,Premises,Revenue
Walsall Council,http://opendatacommunities.org/id/metropolitan-district-council/walsall,WC77-591,28/02/2017,Change and Governance,BRITISH GAS BUSINESS,22/02/2017,"7,329.82",42000-GAS-ENERGY COSTS,CENTRALISED ENERGY,Premises,Revenue
Walsall Council,http://opendatacommunities.org/id/metropolitan-district-council/walsall,WC77-592,28/02/2017,Change and Governance,BRITISH GAS BUSINESS,22/02/2017,"7,701.65",42000-GAS-ENERGY COSTS,CENTRALISED ENERGY,Premises,Revenue
Walsall Council,http://opendatacommunities.org/id/metropolitan-district-council/walsall,WC77-593,28/02/2017,Change and Governance,BRITISH GAS BUSINESS,22/02/2017,"7,910.45",42000-GAS-ENERGY COSTS,RECHARGEABLE UTILITIES,Premises,Revenue
Walsall Council,http://opendatacommunities.org/id/metropolitan-district-council/walsall,WC77-594,28/02/2017,Change and Governance,BRITISH GAS TRADING LIMITED 002,23/02/2017,71.57,42003-ELECTRICITY-ENERGY COSTS,REDUNDANT BUILDINGS,Premises,Revenue
Walsall Council,http://opendatacommunities.org/id/metropolitan-district-council/walsall,WC77-595,28/02/2017,Change and Governance,BRITISH GAS TRADING LIMITED 002,23/02/2017,198.25,42000-GAS-ENERGY COSTS,REDUNDANT BUILDINGS,Premises,Revenue
Walsall Council,http://opendatacommunities.org/id/metropolitan-district-council/walsall,WC77-596,28/02/2017,Economy & Environment,BRITISH PARKING ASSOCIATON,08/02/2017,644.00,63000-PROFESSIONAL FEES AND SERVICES,PARKING SERVICES OFF-STREET,Supplies & Services,Revenue
Walsall Council,http://opendatacommunities.org/id/metropolitan-district-council/walsall,WC77-597,28/02/2017,Economy & Environment,BROADWAY PHARMACY,24/02/2017,35.40,63000-PROFESSIONAL FEES AND SERVICES,SEXUAL HEALTH,Supplies & Services,Revenue
Walsall Council,http://opendatacommunities.org/id/metropolitan-district-council/walsall,WC77-598,28/02/2017,Economy & Environment,BROADWAY PHARMACY,24/02/2017,580.90,71007-CONTRIBUTION TO PCT,PUBLIC HEALTH BUSINESS SUPPORT,Third Party Payments,Revenue
Walsall Council,http://opendatacommunities.org/id/metropolitan-district-council/walsall,WC77-599,28/02/2017,Holding Accounts,BROWNE JACOBSON SOLICITORS,09/02/2017,"1,727.00",67001-MISC INSURANCES - PAYMENT OF CLAIMS,PUBLIC LIABILITY,Supplies & Services,Revenue
Walsall Council,http://opendatacommunities.org/id/metropolitan-district-council/walsall,WC77-600,28/02/2017,Economy & Environment,BROWNHILLS ASPHALT & TARMAC LIMITED,22/02/2017,520.00,60500-GENERAL MATERIALS,CEMETERIES CENTRAL ADMINISTRATION,Supplies & Services,Revenue
Walsall Council,http://opendatacommunities.org/id/metropolitan-district-council/walsall,WC77-601,28/02/2017,Economy & Environment,BROWNHILLS ASPHALT & TARMAC LIMITED,27/02/2017,"1,135.00",60006-NEW-FURNITURE & EQUIPMENT,DEPOT,Supplies & Services,Revenue
Walsall Council,http://opendatacommunities.org/id/metropolitan-district-council/walsall,WC77-602,28/02/2017,Economy & Environment,BROWNHILLS ASPHALT & TARMAC LIMITED,15/02/2017,"17,250.00",60006-NEW-FURNITURE & EQUIPMENT,DEPOT,Supplies & Services,Revenue
Walsall Council,http://opendatacommunities.org/id/metropolitan-district-council/walsall,WC77-603,28/02/2017,Adult Social Care,REDACTED,06/02/2017,"1,530.00",76422-DIRECT PAYMENTS TO SOCIAL SERVICES CLIENTS,LD COMMISSIONING,Transfer Payments,Revenue
Walsall Council,http://opendatacommunities.org/id/metropolitan-district-council/walsall,WC77-604,28/02/2017,Economy & Environment,REDACTED,02/02/2017,600.00,62527-VISUAL ARTS,NAG - TEMPORARY EXHIBITIONS,Supplies & Services,Revenue
Walsall Council,http://opendatacommunities.org/id/metropolitan-district-council/walsall,WC77-605,28/02/2017,Economy & Environment,REDACTED,03/02/2017,"2,081.25",63000-PROFESSIONAL FEES AND SERVICES,EXTL FUNDED CREATIVE PROJECT MANAGEMENT,Supplies & Services,Revenue
Walsall Council,http://opendatacommunities.org/id/metropolitan-district-council/walsall,WC77-606,28/02/2017,Childrens,REDACTED,14/02/2017,"20,778.86",74036-EXTERNAL RESIDENTIAL CARE-OTH AGENCY PROVISION,INDEPENDENT RESIDENTIAL HOMES,Third Party Payments,Revenue
Walsall Council,http://opendatacommunities.org/id/metropolitan-district-council/walsall,WC77-607,28/02/2017,Economy & Environment,B-SURE SECURITY SERVICES LTD,09/02/2017,446.00,62001-STATIONERY & GENERAL SUPPLIES-OFFICE EXP,CENTRALISED STATIONERY,Supplies & Services,Revenue
Walsall Council,http://opendatacommunities.org/id/metropolitan-district-council/walsall,WC77-608,28/02/2017,Economy & Environment,B-SURE SECURITY SERVICES LTD,16/02/2017,"3,870.00",01006-SITE WORKS MAIN CONTRACTORS,CFR 791 SMARTER WORKPLACES - PROPERTY INVESTMENT,Capital,Capital
Walsall Council,http://opendatacommunities.org/id/metropolitan-district-council/walsall,WC77-609,28/02/2017,Change and Governance,BT,01/02/2017,835.00,63603-COST OF CALLS-TELEPHONES,PROCESSING,Supplies & Services,Revenue
Walsall Council,http://opendatacommunities.org/id/metropolitan-district-council/walsall,WC77-610,28/02/2017,Change and Governance,BT,02/02/2017,"1,383.07",63601-COSTS (NOT INTERNAL RECHARGES)-TELEPHONES,CENTRAL COMMUNICATIONS RECHARGES,Supplies & Services,Revenue
Walsall Council,http://opendatacommunities.org/id/metropolitan-district-council/walsall,WC77-611,28/02/2017,Economy & Environment,BT,03/02/2017,"9,222.00",63601-COSTS (NOT INTERNAL RECHARGES)-TELEPHONES,TRAFFIC CONTROL,Supplies & Services,Revenue
Walsall Council,http://opendatacommunities.org/id/metropolitan-district-council/walsall,WC77-612,28/02/2017,Childrens,BT PLC,22/02/2017,358.09,63603-COST OF CALLS-TELEPHONES,LOCALITY FAMILY SUPPORT-WEST,Supplies & Services,Revenue
Walsall Council,http://opendatacommunities.org/id/metropolitan-district-council/walsall,WC77-613,28/02/2017,Change and Governance,BT PLC,01/02/2017,"1,268.35",63601-COSTS (NOT INTERNAL RECHARGES)-TELEPHONES,RECHARGEABLE EQUIPMENT,Supplies & Services,Revenue
Walsall Council,http://opendatacommunities.org/id/metropolitan-district-council/walsall,WC77-614,28/02/2017,Change and Governance,BT PLC,08/02/2017,"1,603.10",63601-COSTS (NOT INTERNAL RECHARGES)-TELEPHONES,CENTRAL COMMUNICATIONS RECHARGES,Supplies & Services,Revenue
Walsall Council,http://opendatacommunities.org/id/metropolitan-district-council/walsall,WC77-615,28/02/2017,Change and Governance,BT PLC,20/02/2017,"15,767.89",63601-COSTS (NOT INTERNAL RECHARGES)-TELEPHONES,CENTRAL COMMUNICATIONS RECHARGES,Supplies & Services,Revenue
Walsall Council,http://opendatacommunities.org/id/metropolitan-district-council/walsall,WC77-616,28/02/2017,Adult Social Care,BUPA CARE HOMES (CFHCARE) LTD,07/02/2017,"1,649.80",73373-RESIDENTIAL & NURSING CARE PLACEMENTS,OP COMMISSIONING,Third Party Payments,Revenue
Walsall Council,http://opendatacommunities.org/id/metropolitan-district-council/walsall,WC77-617,28/02/2017,Adult Social Care,BUPA CARE HOMES (CFHCARE) LTD,28/02/2017,"2,001.24",73373-RESIDENTIAL & NURSING CARE PLACEMENTS,OP COMMISSIONING,Third Party Payments,Revenue
Walsall Council,http://opendatacommunities.org/id/metropolitan-district-council/walsall,WC77-618,28/02/2017,Adult Social Care,BUPA CARE HOMES (CFHCARE) LTD,07/02/2017,"3,380.20",73373-RESIDENTIAL & NURSING CARE PLACEMENTS,OP COMMISSIONING,Third Party Payments,Revenue
Walsall Council,http://opendatacommunities.org/id/metropolitan-district-council/walsall,WC77-619,28/02/2017,Adult Social Care,BUPA TRENEWYDD CARE HOME,14/02/2017,"3,454.29",73373-RESIDENTIAL & NURSING CARE PLACEMENTS,OP COMMISSIONING,Third Party Payments,Revenue
Walsall Council,http://opendatacommunities.org/id/metropolitan-district-council/walsall,WC77-620,28/02/2017,Economy & Environment,BURTON ADDICTION CENTRE,17/02/2017,"1,350.00",63000-PROFESSIONAL FEES AND SERVICES,ALCOHOL & DRUGS MISUSE,Supplies & Services,Revenue
Walsall Council,http://opendatacommunities.org/id/metropolitan-district-council/walsall,WC77-621,28/02/2017,Adult Social Care,BUSH HOME LTD,28/02/2017,810.00,73373-RESIDENTIAL & NURSING CARE PLACEMENTS,OP COMMISSIONING,Third Party Payments,Revenue
Walsall Council,http://opendatacommunities.org/id/metropolitan-district-council/walsall,WC77-622,28/02/2017,Adult Social Care,BUSH HOME LTD,21/02/2017,"1,493.24",73373-RESIDENTIAL & NURSING CARE PLACEMENTS,OP COMMISSIONING,Third Party Payments,Revenue
Walsall Council,http://opendatacommunities.org/id/metropolitan-district-council/walsall,WC77-623,28/02/2017,Adult Social Care,BUSH HOME LTD,07/02/2017,"1,620.00",73373-RESIDENTIAL & NURSING CARE PLACEMENTS,OP COMMISSIONING,Third Party Payments,Revenue
Walsall Council,http://opendatacommunities.org/id/metropolitan-district-council/walsall,WC77-624,28/02/2017,Adult Social Care,BUSH HOME LTD,07/02/2017,"1,620.00",73373-RESIDENTIAL & NURSING CARE PLACEMENTS,OP COMMISSIONING,Third Party Payments,Revenue
Walsall Council,http://opendatacommunities.org/id/metropolitan-district-council/walsall,WC77-625,28/02/2017,Adult Social Care,BUSH HOME LTD,07/02/2017,"1,620.00",73373-RESIDENTIAL & NURSING CARE PLACEMENTS,OP COMMISSIONING,Third Party Payments,Revenue
Walsall Council,http://opendatacommunities.org/id/metropolitan-district-council/walsall,WC77-626,28/02/2017,Adult Social Care,BUSH HOME LTD,07/02/2017,"1,620.00",73373-RESIDENTIAL & NURSING CARE PLACEMENTS,OP COMMISSIONING,Third Party Payments,Revenue
Walsall Council,http://opendatacommunities.org/id/metropolitan-district-council/walsall,WC77-627,28/02/2017,Adult Social Care,BUSH HOME LTD,07/02/2017,"1,620.00",73373-RESIDENTIAL & NURSING CARE PLACEMENTS,OP COMMISSIONING,Third Party Payments,Revenue
Walsall Council,http://opendatacommunities.org/id/metropolitan-district-council/walsall,WC77-628,28/02/2017,Adult Social Care,BUSH HOME LTD,07/02/2017,"1,620.00",73373-RESIDENTIAL & NURSING CARE PLACEMENTS,OP COMMISSIONING,Third Party Payments,Revenue
Walsall Council,http://opendatacommunities.org/id/metropolitan-district-council/walsall,WC77-629,28/02/2017,Adult Social Care,BUSH HOME LTD,07/02/2017,"1,799.99",73373-RESIDENTIAL & NURSING CARE PLACEMENTS,MH COMMISSIONING,Third Party Payments,Revenue
Walsall Council,http://opendatacommunities.org/id/metropolitan-district-council/walsall,WC77-630,28/02/2017,Adult Social Care,BUSH HOME LTD,07/02/2017,"1,800.00",73373-RESIDENTIAL & NURSING CARE PLACEMENTS,OP COMMISSIONING,Third Party Payments,Revenue
Walsall Council,http://opendatacommunities.org/id/metropolitan-district-council/walsall,WC77-631,28/02/2017,Adult Social Care,BUSH HOME LTD,07/02/2017,"1,800.00",73373-RESIDENTIAL & NURSING CARE PLACEMENTS,OP COMMISSIONING,Third Party Payments,Revenue
Walsall Council,http://opendatacommunities.org/id/metropolitan-district-council/walsall,WC77-632,28/02/2017,Adult Social Care,BUSH HOME LTD,07/02/2017,"1,800.00",73373-RESIDENTIAL & NURSING CARE PLACEMENTS,OP COMMISSIONING,Third Party Payments,Revenue
Walsall Council,http://opendatacommunities.org/id/metropolitan-district-council/walsall,WC77-633,28/02/2017,Adult Social Care,BUSH HOME LTD,07/02/2017,"1,800.00",73373-RESIDENTIAL & NURSING CARE PLACEMENTS,OP COMMISSIONING,Third Party Payments,Revenue
Walsall Council,http://opendatacommunities.org/id/metropolitan-district-council/walsall,WC77-634,28/02/2017,Adult Social Care,BUSH HOME LTD,07/02/2017,"1,800.00",73373-RESIDENTIAL & NURSING CARE PLACEMENTS,OP COMMISSIONING,Third Party Payments,Revenue
Walsall Council,http://opendatacommunities.org/id/metropolitan-district-council/walsall,WC77-635,28/02/2017,Adult Social Care,BUSH HOME LTD,07/02/2017,"1,800.00",73373-RESIDENTIAL & NURSING CARE PLACEMENTS,OP COMMISSIONING,Third Party Payments,Revenue
Walsall Council,http://opendatacommunities.org/id/metropolitan-district-council/walsall,WC77-636,28/02/2017,Adult Social Care,BUSH HOME LTD,07/02/2017,"1,800.00",73373-RESIDENTIAL & NURSING CARE PLACEMENTS,OP COMMISSIONING,Third Party Payments,Revenue
Walsall Council,http://opendatacommunities.org/id/metropolitan-district-council/walsall,WC77-637,28/02/2017,Adult Social Care,BUSH HOME LTD,07/02/2017,"1,800.00",73373-RESIDENTIAL & NURSING CARE PLACEMENTS,OP COMMISSIONING,Third Party Payments,Revenue
Walsall Council,http://opendatacommunities.org/id/metropolitan-district-council/walsall,WC77-638,28/02/2017,Adult Social Care,BUSH HOME LTD,07/02/2017,"1,800.00",73373-RESIDENTIAL & NURSING CARE PLACEMENTS,OP COMMISSIONING,Third Party Payments,Revenue
Walsall Council,http://opendatacommunities.org/id/metropolitan-district-council/walsall,WC77-639,28/02/2017,Adult Social Care,BUSH HOME LTD,07/02/2017,"1,800.00",73373-RESIDENTIAL & NURSING CARE PLACEMENTS,OP COMMISSIONING,Third Party Payments,Revenue
Walsall Council,http://opendatacommunities.org/id/metropolitan-district-council/walsall,WC77-640,28/02/2017,Adult Social Care,BUSH HOME LTD,07/02/2017,"1,800.00",73373-RESIDENTIAL & NURSING CARE PLACEMENTS,OP COMMISSIONING,Third Party Payments,Revenue
Walsall Council,http://opendatacommunities.org/id/metropolitan-district-council/walsall,WC77-641,28/02/2017,Adult Social Care,BUSH HOME LTD,07/02/2017,"1,800.00",73373-RESIDENTIAL & NURSING CARE PLACEMENTS,OP COMMISSIONING,Third Party Payments,Revenue
Walsall Council,http://opendatacommunities.org/id/metropolitan-district-council/walsall,WC77-642,28/02/2017,Childrens,BY THE BRIDGE,03/02/2017,"-2,394.64",74037-INDEPENDENT FOSTER CARE-OTH AGENCY PROVISION,EXTERNAL FOSTER CARE PROVISION,Third Party Payments,Revenue
Walsall Council,http://opendatacommunities.org/id/metropolitan-district-council/walsall,WC77-643,28/02/2017,Childrens,BY THE BRIDGE,03/02/2017,"2,745.20",74037-INDEPENDENT FOSTER CARE-OTH AGENCY PROVISION,EXTERNAL FOSTER CARE PROVISION,Third Party Payments,Revenue
Walsall Council,http://opendatacommunities.org/id/metropolitan-district-council/walsall,WC77-644,28/02/2017,Childrens,BY THE BRIDGE,03/02/2017,"2,846.20",74037-INDEPENDENT FOSTER CARE-OTH AGENCY PROVISION,EXTERNAL FOSTER CARE PROVISION,Third Party Payments,Revenue
Walsall Council,http://opendatacommunities.org/id/metropolitan-district-council/walsall,WC77-645,28/02/2017,Childrens,BY THE BRIDGE,03/02/2017,"3,100.00",74037-INDEPENDENT FOSTER CARE-OTH AGENCY PROVISION,EXTERNAL FOSTER CARE PROVISION,Third Party Payments,Revenue
Walsall Council,http://opendatacommunities.org/id/metropolitan-district-council/walsall,WC77-646,28/02/2017,Adult Social Care,C & V ORCHARD MANOR LTD,07/02/2017,578.57,73373-RESIDENTIAL & NURSING CARE PLACEMENTS,OP COMMISSIONING,Third Party Payments,Revenue
Walsall Council,http://opendatacommunities.org/id/metropolitan-district-council/walsall,WC77-647,28/02/2017,Adult Social Care,C & V ORCHARD MANOR LTD,07/02/2017,"1,041.43",73373-RESIDENTIAL & NURSING CARE PLACEMENTS,OP COMMISSIONING,Third Party Payments,Revenue
Walsall Council,http://opendatacommunities.org/id/metropolitan-district-council/walsall,WC77-648,28/02/2017,Adult Social Care,C & V ORCHARD MANOR LTD,02/02/2017,"1,215.00",73373-RESIDENTIAL & NURSING CARE PLACEMENTS,OP COMMISSIONING,Third Party Payments,Revenue
Walsall Council,http://opendatacommunities.org/id/metropolitan-district-council/walsall,WC77-649,28/02/2017,Adult Social Care,C & V ORCHARD MANOR LTD,07/02/2017,"1,620.00",73373-RESIDENTIAL & NURSING CARE PLACEMENTS,OP COMMISSIONING,Third Party Payments,Revenue
Walsall Council,http://opendatacommunities.org/id/metropolitan-district-council/walsall,WC77-650,28/02/2017,Adult Social Care,C & V ORCHARD MANOR LTD,07/02/2017,"1,620.00",73373-RESIDENTIAL & NURSING CARE PLACEMENTS,LD COMMISSIONING,Third Party Payments,Revenue
Walsall Council,http://opendatacommunities.org/id/metropolitan-district-council/walsall,WC77-651,28/02/2017,Adult Social Care,C & V ORCHARD MANOR LTD,07/02/2017,"1,620.00",73373-RESIDENTIAL & NURSING CARE PLACEMENTS,OP COMMISSIONING,Third Party Payments,Revenue
Walsall Council,http://opendatacommunities.org/id/metropolitan-district-council/walsall,WC77-652,28/02/2017,Adult Social Care,C & V ORCHARD MANOR LTD,07/02/2017,"1,620.00",73373-RESIDENTIAL & NURSING CARE PLACEMENTS,MH COMMISSIONING,Third Party Payments,Revenue
Walsall Council,http://opendatacommunities.org/id/metropolitan-district-council/walsall,WC77-653,28/02/2017,Adult Social Care,C & V ORCHARD MANOR LTD,07/02/2017,"1,620.00",73373-RESIDENTIAL & NURSING CARE PLACEMENTS,MH COMMISSIONING,Third Party Payments,Revenue
Walsall Council,http://opendatacommunities.org/id/metropolitan-district-council/walsall,WC77-654,28/02/2017,Adult Social Care,C & V ORCHARD MANOR LTD,07/02/2017,"1,620.60",73373-RESIDENTIAL & NURSING CARE PLACEMENTS,OP COMMISSIONING,Third Party Payments,Revenue
Walsall Council,http://opendatacommunities.org/id/metropolitan-district-council/walsall,WC77-655,28/02/2017,Adult Social Care,C & V ORCHARD MANOR LTD,07/02/2017,"1,800.00",73373-RESIDENTIAL & NURSING CARE PLACEMENTS,OP COMMISSIONING,Third Party Payments,Revenue
Walsall Council,http://opendatacommunities.org/id/metropolitan-district-council/walsall,WC77-656,28/02/2017,Adult Social Care,C & V ORCHARD MANOR LTD,07/02/2017,"1,800.00",73373-RESIDENTIAL & NURSING CARE PLACEMENTS,OP COMMISSIONING,Third Party Payments,Revenue
Walsall Council,http://opendatacommunities.org/id/metropolitan-district-council/walsall,WC77-657,28/02/2017,Adult Social Care,C & V ORCHARD MANOR LTD,07/02/2017,"1,800.00",73373-RESIDENTIAL & NURSING CARE PLACEMENTS,MH COMMISSIONING,Third Party Payments,Revenue
Walsall Council,http://opendatacommunities.org/id/metropolitan-district-council/walsall,WC77-658,28/02/2017,Adult Social Care,C & V ORCHARD MANOR LTD,07/02/2017,"1,800.00",73373-RESIDENTIAL & NURSING CARE PLACEMENTS,MH COMMISSIONING,Third Party Payments,Revenue
Walsall Council,http://opendatacommunities.org/id/metropolitan-district-council/walsall,WC77-659,28/02/2017,Adult Social Care,C & V ORCHARD MANOR LTD,07/02/2017,"1,800.00",73373-RESIDENTIAL & NURSING CARE PLACEMENTS,OP COMMISSIONING,Third Party Payments,Revenue
Walsall Council,http://opendatacommunities.org/id/metropolitan-district-council/walsall,WC77-660,28/02/2017,Adult Social Care,C & V ORCHARD MANOR LTD,14/02/2017,"2,352.96",73373-RESIDENTIAL & NURSING CARE PLACEMENTS,MH COMMISSIONING,Third Party Payments,Revenue
Walsall Council,http://opendatacommunities.org/id/metropolitan-district-council/walsall,WC77-661,28/02/2017,Adult Social Care,C & V ORCHARD RESIDENTIAL LTD,07/02/2017,"1,620.00",73373-RESIDENTIAL & NURSING CARE PLACEMENTS,OP COMMISSIONING,Third Party Payments,Revenue
Walsall Council,http://opendatacommunities.org/id/metropolitan-district-council/walsall,WC77-662,28/02/2017,Adult Social Care,C & V ORCHARD RESIDENTIAL LTD,07/02/2017,"1,799.96",73373-RESIDENTIAL & NURSING CARE PLACEMENTS,OP COMMISSIONING,Third Party Payments,Revenue
Walsall Council,http://opendatacommunities.org/id/metropolitan-district-council/walsall,WC77-663,28/02/2017,Adult Social Care,C & V ORCHARD RESIDENTIAL LTD,07/02/2017,"1,800.00",73373-RESIDENTIAL & NURSING CARE PLACEMENTS,OP COMMISSIONING,Third Party Payments,Revenue
Walsall Council,http://opendatacommunities.org/id/metropolitan-district-council/walsall,WC77-664,28/02/2017,Adult Social Care,C & V ORCHARD RESIDENTIAL LTD,07/02/2017,"1,800.00",73373-RESIDENTIAL & NURSING CARE PLACEMENTS,OP COMMISSIONING,Third Party Payments,Revenue
Walsall Council,http://opendatacommunities.org/id/metropolitan-district-council/walsall,WC77-665,28/02/2017,Adult Social Care,C & V ORCHARD RESIDENTIAL LTD,07/02/2017,"1,800.00",73373-RESIDENTIAL & NURSING CARE PLACEMENTS,OP COMMISSIONING,Third Party Payments,Revenue
Walsall Council,http://opendatacommunities.org/id/metropolitan-district-council/walsall,WC77-666,28/02/2017,Adult Social Care,C & V ORCHARD RESIDENTIAL LTD,07/02/2017,"1,800.00",73373-RESIDENTIAL & NURSING CARE PLACEMENTS,OP COMMISSIONING,Third Party Payments,Revenue
Walsall Council,http://opendatacommunities.org/id/metropolitan-district-council/walsall,WC77-667,28/02/2017,Adult Social Care,C & V ORCHARD RESIDENTIAL LTD,07/02/2017,"1,800.00",73373-RESIDENTIAL & NURSING CARE PLACEMENTS,OP COMMISSIONING,Third Party Payments,Revenue
Walsall Council,http://opendatacommunities.org/id/metropolitan-district-council/walsall,WC77-668,28/02/2017,Adult Social Care,C & V ORCHARD RESIDENTIAL LTD,07/02/2017,"1,800.00",73373-RESIDENTIAL & NURSING CARE PLACEMENTS,OP COMMISSIONING,Third Party Payments,Revenue
Walsall Council,http://opendatacommunities.org/id/metropolitan-district-council/walsall,WC77-669,28/02/2017,Adult Social Care,C & V ORCHARD RESIDENTIAL LTD,07/02/2017,"1,800.00",73373-RESIDENTIAL & NURSING CARE PLACEMENTS,OP COMMISSIONING,Third Party Payments,Revenue
Walsall Council,http://opendatacommunities.org/id/metropolitan-district-council/walsall,WC77-670,28/02/2017,Adult Social Care,C & V ORCHARD RESIDENTIAL LTD,28/02/2017,"1,800.00",73373-RESIDENTIAL & NURSING CARE PLACEMENTS,OP COMMISSIONING,Third Party Payments,Revenue
Walsall Council,http://opendatacommunities.org/id/metropolitan-district-council/walsall,WC77-671,28/02/2017,Economy & Environment,C ART ART TRANSPORT LTD,08/02/2017,240.00,73032-TRANSPORTATION-PRIV CONTRACTOR FEES,NAG - TEMPORARY EXHIBITIONS,Third Party Payments,Revenue
Walsall Council,http://opendatacommunities.org/id/metropolitan-district-council/walsall,WC77-672,28/02/2017,Economy & Environment,C ART ART TRANSPORT LTD,08/02/2017,275.00,73032-TRANSPORTATION-PRIV CONTRACTOR FEES,NAG - TEMPORARY EXHIBITIONS,Third Party Payments,Revenue
Walsall Council,http://opendatacommunities.org/id/metropolitan-district-council/walsall,WC77-673,28/02/2017,Economy & Environment,C ART ART TRANSPORT LTD,22/02/2017,285.00,73032-TRANSPORTATION-PRIV CONTRACTOR FEES,NAG - TEMPORARY EXHIBITIONS,Third Party Payments,Revenue
Walsall Council,http://opendatacommunities.org/id/metropolitan-district-council/walsall,WC77-674,28/02/2017,Economy & Environment,C ART ART TRANSPORT LTD,03/02/2017,515.00,73032-TRANSPORTATION-PRIV CONTRACTOR FEES,NAG - TEMPORARY EXHIBITIONS,Third Party Payments,Revenue
Walsall Council,http://opendatacommunities.org/id/metropolitan-district-council/walsall,WC77-675,28/02/2017,Economy & Environment,C ART ART TRANSPORT LTD,03/02/2017,"2,830.00",73032-TRANSPORTATION-PRIV CONTRACTOR FEES,NAG - TEMPORARY EXHIBITIONS,Third Party Payments,Revenue
Walsall Council,http://opendatacommunities.org/id/metropolitan-district-council/walsall,WC77-676,28/02/2017,Economy & Environment,C ART ART TRANSPORT LTD,03/02/2017,"2,990.00",73032-TRANSPORTATION-PRIV CONTRACTOR FEES,NAG - TEMPORARY EXHIBITIONS,Third Party Payments,Revenue
Walsall Council,http://opendatacommunities.org/id/metropolitan-district-council/walsall,WC77-677,28/02/2017,Childrens,REDACTED,27/02/2017,"4,317.64",62515-MISCELLANEOUS SUPPLIES,INTERNAL FOSTER CARE PROVISION,Supplies & Services,Revenue
Walsall Council,http://opendatacommunities.org/id/metropolitan-district-council/walsall,WC77-678,28/02/2017,Childrens,REDACTED,01/02/2017,"5,212.80",74006-HOLIDAY/CHRISTMAS ALLOWANCE-FOSTER CARERS-OTH AGENCY PROVISION,INTERNAL FOSTER CARE PROVISION,Third Party Payments,Revenue
Walsall Council,http://opendatacommunities.org/id/metropolitan-district-council/walsall,WC77-679,28/02/2017,Childrens,REDACTED,27/02/2017,"1,445.32",62515-MISCELLANEOUS SUPPLIES,INTERNAL FOSTER CARE PROVISION,Supplies & Services,Revenue
Walsall Council,http://opendatacommunities.org/id/metropolitan-district-council/walsall,WC77-680,28/02/2017,Childrens,REDACTED,01/02/2017,"1,620.64",74006-HOLIDAY/CHRISTMAS ALLOWANCE-FOSTER CARERS-OTH AGENCY PROVISION,INTERNAL FOSTER CARE PROVISION,Third Party Payments,Revenue
Walsall Council,http://opendatacommunities.org/id/metropolitan-district-council/walsall,WC77-681,28/02/2017,Economy & Environment,C P DAVIDSON & SONS LTD,02/02/2017,598.66,60500-GENERAL MATERIALS,FLEET,Supplies & Services,Revenue
Walsall Council,http://opendatacommunities.org/id/metropolitan-district-council/walsall,WC77-682,28/02/2017,Economy & Environment,C P DAVIDSON & SONS LTD,14/02/2017,"1,147.52",60500-GENERAL MATERIALS,FLEET,Supplies & Services,Revenue
Walsall Council,http://opendatacommunities.org/id/metropolitan-district-council/walsall,WC77-683,28/02/2017,Childrens,REDACTED,13/02/2017,"1,222.36",74006-HOLIDAY/CHRISTMAS ALLOWANCE-FOSTER CARERS-OTH AGENCY PROVISION,INTERNAL FOSTER CARE PROVISION,Third Party Payments,Revenue
Walsall Council,http://opendatacommunities.org/id/metropolitan-district-council/walsall,WC77-684,28/02/2017,Adult Social Care,CALDENE  REST HOME,02/02/2017,405.00,73373-RESIDENTIAL & NURSING CARE PLACEMENTS,OP COMMISSIONING,Third Party Payments,Revenue
Walsall Council,http://opendatacommunities.org/id/metropolitan-district-council/walsall,WC77-685,28/02/2017,Adult Social Care,CALDENE  REST HOME,28/02/2017,"1,215.00",73373-RESIDENTIAL & NURSING CARE PLACEMENTS,OP COMMISSIONING,Third Party Payments,Revenue
Walsall Council,http://opendatacommunities.org/id/metropolitan-district-council/walsall,WC77-686,28/02/2017,Adult Social Care,CALDENE  REST HOME,02/02/2017,"1,620.00",73373-RESIDENTIAL & NURSING CARE PLACEMENTS,OP COMMISSIONING,Third Party Payments,Revenue
Walsall Council,http://opendatacommunities.org/id/metropolitan-district-council/walsall,WC77-687,28/02/2017,Adult Social Care,CALDENE  REST HOME,14/02/2017,"1,620.00",73373-RESIDENTIAL & NURSING CARE PLACEMENTS,OP COMMISSIONING,Third Party Payments,Revenue
Walsall Council,http://opendatacommunities.org/id/metropolitan-district-council/walsall,WC77-688,28/02/2017,Adult Social Care,CALDMORE AREA HOUSING ASS LTD,28/02/2017,633.26,73373-RESIDENTIAL & NURSING CARE PLACEMENTS,MH COMMISSIONING,Third Party Payments,Revenue
Walsall Council,http://opendatacommunities.org/id/metropolitan-district-council/walsall,WC77-689,28/02/2017,Adult Social Care,CALDMORE AREA HOUSING ASS LTD,08/02/2017,868.92,73374-SUPPORTED & OTHER ACCOMMODATION,MH COMMISSIONING,Third Party Payments,Revenue
Walsall Council,http://opendatacommunities.org/id/metropolitan-district-council/walsall,WC77-690,28/02/2017,Adult Social Care,CALDMORE AREA HOUSING ASS LTD,14/02/2017,868.96,73374-SUPPORTED & OTHER ACCOMMODATION,MH COMMISSIONING,Third Party Payments,Revenue
Walsall Council,http://opendatacommunities.org/id/metropolitan-district-council/walsall,WC77-691,28/02/2017,Adult Social Care,CALDMORE AREA HOUSING ASS LTD,02/02/2017,925.59,73374-SUPPORTED & OTHER ACCOMMODATION,MH COMMISSIONING,Third Party Payments,Revenue
Walsall Council,http://opendatacommunities.org/id/metropolitan-district-council/walsall,WC77-692,28/02/2017,Adult Social Care,CALDMORE AREA HOUSING ASS LTD,03/02/2017,"1,086.15",73374-SUPPORTED & OTHER ACCOMMODATION,MH COMMISSIONING,Third Party Payments,Revenue
Walsall Council,http://opendatacommunities.org/id/metropolitan-district-council/walsall,WC77-693,28/02/2017,Adult Social Care,CALDMORE AREA HOUSING ASS LTD,01/02/2017,"1,161.74",73374-SUPPORTED & OTHER ACCOMMODATION,MH COMMISSIONING,Third Party Payments,Revenue
Walsall Council,http://opendatacommunities.org/id/metropolitan-district-council/walsall,WC77-694,28/02/2017,Adult Social Care,CALDMORE AREA HOUSING ASS LTD,01/02/2017,"1,303.40",73374-SUPPORTED & OTHER ACCOMMODATION,MH COMMISSIONING,Third Party Payments,Revenue
Walsall Council,http://opendatacommunities.org/id/metropolitan-district-council/walsall,WC77-695,28/02/2017,Adult Social Care,CALDMORE AREA HOUSING ASS LTD,01/02/2017,"1,303.40",73374-SUPPORTED & OTHER ACCOMMODATION,MH COMMISSIONING,Third Party Payments,Revenue
Walsall Council,http://opendatacommunities.org/id/metropolitan-district-council/walsall,WC77-696,28/02/2017,Adult Social Care,CALDMORE AREA HOUSING ASS LTD,01/02/2017,"1,303.40",73374-SUPPORTED & OTHER ACCOMMODATION,MH COMMISSIONING,Third Party Payments,Revenue
Walsall Council,http://opendatacommunities.org/id/metropolitan-district-council/walsall,WC77-697,28/02/2017,Adult Social Care,CALDMORE AREA HOUSING ASS LTD,01/02/2017,"1,303.40",73374-SUPPORTED & OTHER ACCOMMODATION,MH COMMISSIONING,Third Party Payments,Revenue
Walsall Council,http://opendatacommunities.org/id/metropolitan-district-council/walsall,WC77-698,28/02/2017,Adult Social Care,CALDMORE AREA HOUSING ASS LTD,01/02/2017,"1,303.41",73374-SUPPORTED & OTHER ACCOMMODATION,MH COMMISSIONING,Third Party Payments,Revenue
Walsall Council,http://opendatacommunities.org/id/metropolitan-district-council/walsall,WC77-699,28/02/2017,Adult Social Care,CALDMORE AREA HOUSING ASS LTD,01/02/2017,"1,303.41",73374-SUPPORTED & OTHER ACCOMMODATION,MH COMMISSIONING,Third Party Payments,Revenue
Walsall Council,http://opendatacommunities.org/id/metropolitan-district-council/walsall,WC77-700,28/02/2017,Adult Social Care,CALDMORE AREA HOUSING ASS LTD,01/02/2017,"1,400.46",73374-SUPPORTED & OTHER ACCOMMODATION,MH COMMISSIONING,Third Party Payments,Revenue
Walsall Council,http://opendatacommunities.org/id/metropolitan-district-council/walsall,WC77-701,28/02/2017,Adult Social Care,CALDMORE AREA HOUSING ASS LTD,01/02/2017,"1,416.75",73374-SUPPORTED & OTHER ACCOMMODATION,MH COMMISSIONING,Third Party Payments,Revenue
Walsall Council,http://opendatacommunities.org/id/metropolitan-district-council/walsall,WC77-702,28/02/2017,Adult Social Care,CALDMORE AREA HOUSING ASS LTD,01/02/2017,"1,416.75",73374-SUPPORTED & OTHER ACCOMMODATION,MH COMMISSIONING,Third Party Payments,Revenue
Walsall Council,http://opendatacommunities.org/id/metropolitan-district-council/walsall,WC77-703,28/02/2017,Adult Social Care,CALDMORE AREA HOUSING ASS LTD,07/02/2017,"1,416.75",73374-SUPPORTED & OTHER ACCOMMODATION,MH COMMISSIONING,Third Party Payments,Revenue
Walsall Council,http://opendatacommunities.org/id/metropolitan-district-council/walsall,WC77-704,28/02/2017,Adult Social Care,CALDMORE AREA HOUSING ASS LTD,01/02/2017,"1,445.09",73374-SUPPORTED & OTHER ACCOMMODATION,MH COMMISSIONING,Third Party Payments,Revenue
Walsall Council,http://opendatacommunities.org/id/metropolitan-district-council/walsall,WC77-705,28/02/2017,Adult Social Care,CALDMORE AREA HOUSING ASS LTD,01/02/2017,"1,567.84",73374-SUPPORTED & OTHER ACCOMMODATION,MH COMMISSIONING,Third Party Payments,Revenue
Walsall Council,http://opendatacommunities.org/id/metropolitan-district-council/walsall,WC77-706,28/02/2017,Adult Social Care,CALDMORE AREA HOUSING ASS LTD,01/02/2017,"1,567.84",73374-SUPPORTED & OTHER ACCOMMODATION,MH COMMISSIONING,Third Party Payments,Revenue
Walsall Council,http://opendatacommunities.org/id/metropolitan-district-council/walsall,WC77-707,28/02/2017,Adult Social Care,CALDMORE AREA HOUSING ASS LTD,01/02/2017,"1,567.84",73374-SUPPORTED & OTHER ACCOMMODATION,MH COMMISSIONING,Third Party Payments,Revenue
Walsall Council,http://opendatacommunities.org/id/metropolitan-district-council/walsall,WC77-708,28/02/2017,Adult Social Care,CALDMORE AREA HOUSING ASS LTD,01/02/2017,"1,567.84",73374-SUPPORTED & OTHER ACCOMMODATION,MH COMMISSIONING,Third Party Payments,Revenue
Walsall Council,http://opendatacommunities.org/id/metropolitan-district-council/walsall,WC77-709,28/02/2017,Adult Social Care,CALDMORE AREA HOUSING ASS LTD,02/02/2017,"1,567.84",73374-SUPPORTED & OTHER ACCOMMODATION,MH COMMISSIONING,Third Party Payments,Revenue
Walsall Council,http://opendatacommunities.org/id/metropolitan-district-council/walsall,WC77-710,28/02/2017,Adult Social Care,CALDMORE AREA HOUSING ASS LTD,01/02/2017,"1,629.25",73374-SUPPORTED & OTHER ACCOMMODATION,MH COMMISSIONING,Third Party Payments,Revenue
Walsall Council,http://opendatacommunities.org/id/metropolitan-district-council/walsall,WC77-711,28/02/2017,Adult Social Care,CALDMORE AREA HOUSING ASS LTD,01/02/2017,"1,629.25",73374-SUPPORTED & OTHER ACCOMMODATION,MH COMMISSIONING,Third Party Payments,Revenue
Walsall Council,http://opendatacommunities.org/id/metropolitan-district-council/walsall,WC77-712,28/02/2017,Adult Social Care,CALDMORE AREA HOUSING ASS LTD,01/02/2017,"1,629.26",73374-SUPPORTED & OTHER ACCOMMODATION,MH COMMISSIONING,Third Party Payments,Revenue
Walsall Council,http://opendatacommunities.org/id/metropolitan-district-council/walsall,WC77-713,28/02/2017,Adult Social Care,CALDMORE AREA HOUSING ASS LTD,01/02/2017,"1,709.55",73374-SUPPORTED & OTHER ACCOMMODATION,MH COMMISSIONING,Third Party Payments,Revenue
Walsall Council,http://opendatacommunities.org/id/metropolitan-district-council/walsall,WC77-714,28/02/2017,Adult Social Care,CALDMORE AREA HOUSING ASS LTD,01/02/2017,"1,770.94",73374-SUPPORTED & OTHER ACCOMMODATION,MH COMMISSIONING,Third Party Payments,Revenue
Walsall Council,http://opendatacommunities.org/id/metropolitan-district-council/walsall,WC77-715,28/02/2017,Adult Social Care,CALDMORE AREA HOUSING ASS LTD,01/02/2017,"1,770.94",73374-SUPPORTED & OTHER ACCOMMODATION,MH COMMISSIONING,Third Party Payments,Revenue
Walsall Council,http://opendatacommunities.org/id/metropolitan-district-council/walsall,WC77-716,28/02/2017,Adult Social Care,CALDMORE AREA HOUSING ASS LTD,01/02/2017,"1,959.80",73374-SUPPORTED & OTHER ACCOMMODATION,MH COMMISSIONING,Third Party Payments,Revenue
Walsall Council,http://opendatacommunities.org/id/metropolitan-district-council/walsall,WC77-717,28/02/2017,Adult Social Care,CALDMORE AREA HOUSING ASS LTD,01/02/2017,"1,959.80",73374-SUPPORTED & OTHER ACCOMMODATION,MH COMMISSIONING,Third Party Payments,Revenue
Walsall Council,http://opendatacommunities.org/id/metropolitan-district-council/walsall,WC77-718,28/02/2017,Adult Social Care,CALDMORE AREA HOUSING ASS LTD,14/02/2017,"1,959.80",73374-SUPPORTED & OTHER ACCOMMODATION,MH COMMISSIONING,Third Party Payments,Revenue
Walsall Council,http://opendatacommunities.org/id/metropolitan-district-council/walsall,WC77-719,28/02/2017,Adult Social Care,CALDMORE AREA HOUSING ASS LTD,02/02/2017,"2,533.04",73373-RESIDENTIAL & NURSING CARE PLACEMENTS,MH COMMISSIONING,Third Party Payments,Revenue
Walsall Council,http://opendatacommunities.org/id/metropolitan-district-council/walsall,WC77-720,28/02/2017,Adult Social Care,CALDMORE AREA HOUSING ASS LTD,02/02/2017,"2,533.04",73373-RESIDENTIAL & NURSING CARE PLACEMENTS,MH COMMISSIONING,Third Party Payments,Revenue
Walsall Council,http://opendatacommunities.org/id/metropolitan-district-council/walsall,WC77-721,28/02/2017,Adult Social Care,CALDMORE AREA HOUSING ASS LTD,02/02/2017,"2,533.04",73373-RESIDENTIAL & NURSING CARE PLACEMENTS,MH COMMISSIONING,Third Party Payments,Revenue
Walsall Council,http://opendatacommunities.org/id/metropolitan-district-council/walsall,WC77-722,28/02/2017,Adult Social Care,CALDMORE AREA HOUSING ASS LTD,02/02/2017,"2,533.04",73373-RESIDENTIAL & NURSING CARE PLACEMENTS,MH COMMISSIONING,Third Party Payments,Revenue
Walsall Council,http://opendatacommunities.org/id/metropolitan-district-council/walsall,WC77-723,28/02/2017,Adult Social Care,CALDMORE AREA HOUSING ASS LTD,02/02/2017,"2,533.04",73373-RESIDENTIAL & NURSING CARE PLACEMENTS,MH COMMISSIONING,Third Party Payments,Revenue
Walsall Council,http://opendatacommunities.org/id/metropolitan-district-council/walsall,WC77-724,28/02/2017,Adult Social Care,CALDMORE AREA HOUSING ASS LTD,02/02/2017,"2,533.04",73373-RESIDENTIAL & NURSING CARE PLACEMENTS,MH COMMISSIONING,Third Party Payments,Revenue
Walsall Council,http://opendatacommunities.org/id/metropolitan-district-council/walsall,WC77-725,28/02/2017,Adult Social Care,CALDMORE AREA HOUSING ASS LTD,02/02/2017,"2,533.04",73373-RESIDENTIAL & NURSING CARE PLACEMENTS,MH COMMISSIONING,Third Party Payments,Revenue
Walsall Council,http://opendatacommunities.org/id/metropolitan-district-council/walsall,WC77-726,28/02/2017,Adult Social Care,CALDMORE AREA HOUSING ASS LTD,02/02/2017,"2,533.04",73373-RESIDENTIAL & NURSING CARE PLACEMENTS,MH COMMISSIONING,Third Party Payments,Revenue
Walsall Council,http://opendatacommunities.org/id/metropolitan-district-council/walsall,WC77-727,28/02/2017,Change and Governance,CALDMORE VILLAGE FESTIVAL GROUP,21/02/2017,"5,000.00",66500-GRANTS TO OTHER ORGS,COHESION,Third Party Payments,Revenue
Walsall Council,http://opendatacommunities.org/id/metropolitan-district-council/walsall,WC77-728,28/02/2017,Change and Governance,CALDMORE VILLAGE FESTIVAL GROUP,27/02/2017,"5,000.00",66500-GRANTS TO OTHER ORGS,COHESION,Third Party Payments,Revenue
Walsall Council,http://opendatacommunities.org/id/metropolitan-district-council/walsall,WC77-729,28/02/2017,Childrens,REDACTED,13/02/2017,372.84,74006-HOLIDAY/CHRISTMAS ALLOWANCE-FOSTER CARERS-OTH AGENCY PROVISION,INTERNAL FOSTER CARE PROVISION,Third Party Payments,Revenue
Walsall Council,http://opendatacommunities.org/id/metropolitan-district-council/walsall,WC77-730,28/02/2017,Childrens,REDACTED,06/02/2017,315.00,76422-DIRECT PAYMENTS TO SOCIAL SERVICES CLIENTS,FAMILY SUPPORT - DIRECT PAYMENTS,Transfer Payments,Revenue
Walsall Council,http://opendatacommunities.org/id/metropolitan-district-council/walsall,WC77-731,28/02/2017,Childrens,CAMBIAN CHILDCARE LIMITED,20/02/2017,"-6,938.55",74036-EXTERNAL RESIDENTIAL CARE-OTH AGENCY PROVISION,INDEPENDENT RESIDENTIAL HOMES,Third Party Payments,Revenue
Walsall Council,http://opendatacommunities.org/id/metropolitan-district-council/walsall,WC77-732,28/02/2017,Childrens,CAMBIAN CHILDCARE LIMITED,20/02/2017,"-1,285.65",74036-EXTERNAL RESIDENTIAL CARE-OTH AGENCY PROVISION,INDEPENDENT RESIDENTIAL HOMES,Third Party Payments,Revenue
Walsall Council,http://opendatacommunities.org/id/metropolitan-district-council/walsall,WC77-733,28/02/2017,Childrens,CAMBIAN CHILDCARE LIMITED,20/02/2017,"2,571.30",74036-EXTERNAL RESIDENTIAL CARE-OTH AGENCY PROVISION,INDEPENDENT RESIDENTIAL HOMES,Third Party Payments,Revenue
Walsall Council,http://opendatacommunities.org/id/metropolitan-district-council/walsall,WC77-734,28/02/2017,Childrens,CAMBIAN CHILDCARE LIMITED,20/02/2017,"13,877.10",74036-EXTERNAL RESIDENTIAL CARE-OTH AGENCY PROVISION,INDEPENDENT RESIDENTIAL HOMES,Third Party Payments,Revenue
Walsall Council,http://opendatacommunities.org/id/metropolitan-district-council/walsall,WC77-735,28/02/2017,Adult Social Care,CAMBIAN HEALTHCARE LTD,08/02/2017,"12,404.84",73375-IN PATIENT BEDS,LD COMMISSIONING,Third Party Payments,Revenue
Walsall Council,http://opendatacommunities.org/id/metropolitan-district-council/walsall,WC77-736,28/02/2017,Adult Social Care,CAMBIAN LEARNING DISABILITES MIDLANDS LIMITED,08/02/2017,"10,109.40",73375-IN PATIENT BEDS,LD COMMISSIONING,Third Party Payments,Revenue
Walsall Council,http://opendatacommunities.org/id/metropolitan-district-council/walsall,WC77-737,28/02/2017,Economy & Environment,CAMPBELL ASSOCIATES,16/02/2017,749.00,60008-MAINTENANCE-FURNITURE & EQUIPMENT,POLLUTION DIVISION,Supplies & Services,Revenue
Walsall Council,http://opendatacommunities.org/id/metropolitan-district-council/walsall,WC77-738,28/02/2017,Childrens,CAMPION SCHOOL,10/02/2017,300.00,77300-ISB-FORMULA ALLOCATION,OUT OF BOROUGH SCHOOLS,Transfer Payments,Revenue
Walsall Council,http://opendatacommunities.org/id/metropolitan-district-council/walsall,WC77-739,28/02/2017,Childrens,CAMPION SCHOOL,27/02/2017,834.00,66502-TOP UP FUNDING -GRANTS TO SCHOOLS,ACADEMIES,Third Party Payments,Revenue
Walsall Council,http://opendatacommunities.org/id/metropolitan-district-council/walsall,WC77-740,28/02/2017,Childrens,CAMPION SCHOOL,27/02/2017,849.00,66502-TOP UP FUNDING -GRANTS TO SCHOOLS,ACADEMIES,Third Party Payments,Revenue
Walsall Council,http://opendatacommunities.org/id/metropolitan-district-council/walsall,WC77-741,28/02/2017,Economy & Environment,CANAL & RIVER TRUST,22/02/2017,"41,785.83",01006-SITE WORKS MAIN CONTRACTORS,CFR 1121 MANAGING SHORT TRIPS,Capital,Capital
Walsall Council,http://opendatacommunities.org/id/metropolitan-district-council/walsall,WC77-742,28/02/2017,Economy & Environment,CANNOCK TACHOGRAPH CENTRE LTD,07/02/2017,350.80,73025-PROFESSIONAL SERVICES-PRIV CONTRACTOR & OTHER AGENCIES,FLEET,Third Party Payments,Revenue
Walsall Council,http://opendatacommunities.org/id/metropolitan-district-council/walsall,WC77-743,28/02/2017,Change and Governance,CAPITA BUSINESS SERVICES LTD 001,15/02/2017,"17,795.35",63820-RECHARGE FOR MAINTENANCE/APPLICATION COSTS-COMPUTER,APPLICATIONS,Supplies & Services,Revenue
Walsall Council,http://opendatacommunities.org/id/metropolitan-district-council/walsall,WC77-744,28/02/2017,Change and Governance,CAPITA SPECIALIST INSURANCE SOLUTIONS,01/02/2017,627.29,67000-MISC INSURANCES - INSURANCE PREMIUMS,INSURANCE & LOSS CONTROL,Supplies & Services,Revenue
Walsall Council,http://opendatacommunities.org/id/metropolitan-district-council/walsall,WC77-745,28/02/2017,Economy & Environment,CAPITA TREASURY SOLUTIONS LIMITED,17/02/2017,723.40,52003-OPERATING LEASES-VEHICLES,TARMAC,Central,Revenue
Walsall Council,http://opendatacommunities.org/id/metropolitan-district-council/walsall,WC77-746,28/02/2017,Childrens,CAPSTONE FOSTER CARE (SOUTH EAST) LIMITED,21/02/2017,"2,855.60",74037-INDEPENDENT FOSTER CARE-OTH AGENCY PROVISION,EXTERNAL FOSTER CARE PROVISION,Third Party Payments,Revenue
Walsall Council,http://opendatacommunities.org/id/metropolitan-district-council/walsall,WC77-747,28/02/2017,Childrens,CAPSTONE FOSTER CARE (SOUTH EAST) LIMITED,21/02/2017,"2,975.32",74037-INDEPENDENT FOSTER CARE-OTH AGENCY PROVISION,EXTERNAL FOSTER CARE PROVISION,Third Party Payments,Revenue
Walsall Council,http://opendatacommunities.org/id/metropolitan-district-council/walsall,WC77-748,28/02/2017,Childrens,CAPSTONE FOSTER CARE (SOUTH EAST) LIMITED,21/02/2017,"3,193.96",74037-INDEPENDENT FOSTER CARE-OTH AGENCY PROVISION,EXTERNAL FOSTER CARE PROVISION,Third Party Payments,Revenue
Walsall Council,http://opendatacommunities.org/id/metropolitan-district-council/walsall,WC77-749,28/02/2017,Childrens,CAPSTONE FOSTER CARE (SOUTH EAST) LIMITED,21/02/2017,"3,193.96",74037-INDEPENDENT FOSTER CARE-OTH AGENCY PROVISION,EXTERNAL FOSTER CARE PROVISION,Third Party Payments,Revenue
Walsall Council,http://opendatacommunities.org/id/metropolitan-district-council/walsall,WC77-750,28/02/2017,Childrens,CAPSTONE FOSTER CARE (SOUTH EAST) LIMITED,21/02/2017,"3,260.04",74037-INDEPENDENT FOSTER CARE-OTH AGENCY PROVISION,EXTERNAL FOSTER CARE PROVISION,Third Party Payments,Revenue
Walsall Council,http://opendatacommunities.org/id/metropolitan-district-council/walsall,WC77-751,28/02/2017,Adult Social Care,CARE FIRST MANAGEMENT SERVICES LTD,09/02/2017,780.00,73372-DOMICILIARY CARE,PD COMMISSIONING,Third Party Payments,Revenue
Walsall Council,http://opendatacommunities.org/id/metropolitan-district-council/walsall,WC77-752,28/02/2017,Childrens,CARE LEAVERS,10/02/2017,"2,348.23",76010-ACCOMMODATION AND RELATED COSTS-ASSISTANCE TO S/S CLIENTS,TRANSITION AND LEAVING CARE,Transfer Payments,Revenue
Walsall Council,http://opendatacommunities.org/id/metropolitan-district-council/walsall,WC77-753,28/02/2017,Childrens,CARE LEAVERS,10/02/2017,"3,768.47",74500-CARE LEAVERS MTCE PAYMENTS,TRANSITION AND LEAVING CARE,Third Party Payments,Revenue
Walsall Council,http://opendatacommunities.org/id/metropolitan-district-council/walsall,WC77-754,28/02/2017,Childrens,CARE LEAVERS,10/02/2017,"3,816.99",64002-OTHER EXPENSES-EXPENSES,TRANSITION AND LEAVING CARE,Supplies & Services,Revenue
Walsall Council,http://opendatacommunities.org/id/metropolitan-district-council/walsall,WC77-755,28/02/2017,Childrens,CARE LEAVERS,10/02/2017,"4,020.74",76400-RESIDENTS PERSONAL EXPENSES-ALLOWANCES TO S/S CLIENTS,TRANSITION AND LEAVING CARE,Transfer Payments,Revenue
Walsall Council,http://opendatacommunities.org/id/metropolitan-district-council/walsall,WC77-756,28/02/2017,Adult Social Care,CARE SHOP,17/02/2017,13.82,60539-CLEANING MATERIALS,REABLEMENT TEAM - HOLLY BANK,Supplies & Services,Revenue
Walsall Council,http://opendatacommunities.org/id/metropolitan-district-council/walsall,WC77-757,28/02/2017,Adult Social Care,CARE SHOP,02/02/2017,353.40,60539-CLEANING MATERIALS,COMMUNITY INTERMEDIATE CARE,Supplies & Services,Revenue
Walsall Council,http://opendatacommunities.org/id/metropolitan-district-council/walsall,WC77-758,28/02/2017,Adult Social Care,CARE SHOP,17/02/2017,442.20,60539-CLEANING MATERIALS,COMMUNITY INTERMEDIATE CARE,Supplies & Services,Revenue
Walsall Council,http://opendatacommunities.org/id/metropolitan-district-council/walsall,WC77-759,28/02/2017,Adult Social Care,CARE SHOP,17/02/2017,527.73,60539-CLEANING MATERIALS,REABLEMENT TEAM - HOLLY BANK,Supplies & Services,Revenue
Walsall Council,http://opendatacommunities.org/id/metropolitan-district-council/walsall,WC77-760,28/02/2017,Adult Social Care,CARE SHOP,03/02/2017,913.51,60539-CLEANING MATERIALS,REABLEMENT TEAM - HOLLY BANK,Supplies & Services,Revenue
Walsall Council,http://opendatacommunities.org/id/metropolitan-district-council/walsall,WC77-761,28/02/2017,Adult Social Care,CARE SHOP,20/02/2017,913.51,60539-CLEANING MATERIALS,REABLEMENT TEAM - HOLLY BANK,Supplies & Services,Revenue
Walsall Council,http://opendatacommunities.org/id/metropolitan-district-council/walsall,WC77-762,28/02/2017,Adult Social Care,CARETECH COMMUNITY SERVICE,10/02/2017,797.68,73374-SUPPORTED & OTHER ACCOMMODATION,LD COMMISSIONING,Third Party Payments,Revenue
Walsall Council,http://opendatacommunities.org/id/metropolitan-district-council/walsall,WC77-763,28/02/2017,Adult Social Care,CARETECH COMMUNITY SERVICE,01/02/2017,"2,394.96",73374-SUPPORTED & OTHER ACCOMMODATION,LD COMMISSIONING,Third Party Payments,Revenue
Walsall Council,http://opendatacommunities.org/id/metropolitan-district-council/walsall,WC77-764,28/02/2017,Adult Social Care,CARETECH COMMUNITY SERVICE,20/02/2017,"4,410.00",73374-SUPPORTED & OTHER ACCOMMODATION,LD COMMISSIONING,Third Party Payments,Revenue
Walsall Council,http://opendatacommunities.org/id/metropolitan-district-council/walsall,WC77-765,28/02/2017,Adult Social Care,CARETECH COMMUNITY SERVICE,20/02/2017,"4,560.00",73374-SUPPORTED & OTHER ACCOMMODATION,OP COMMISSIONING,Third Party Payments,Revenue
Walsall Council,http://opendatacommunities.org/id/metropolitan-district-council/walsall,WC77-766,28/02/2017,Adult Social Care,CAREVIEW SERVICES LTD,14/02/2017,"6,144.47",73373-RESIDENTIAL & NURSING CARE PLACEMENTS,LD COMMISSIONING,Third Party Payments,Revenue
Walsall Council,http://opendatacommunities.org/id/metropolitan-district-council/walsall,WC77-767,28/02/2017,Economy & Environment,CARILLION COMMUNICATIONS LIMITED,16/02/2017,578.00,60000-FURNITURE & EQUIPMENT,NAG - FAMILY GALLERY,Supplies & Services,Revenue
Walsall Council,http://opendatacommunities.org/id/metropolitan-district-council/walsall,WC77-768,28/02/2017,Adult Social Care,CARING CARE LIMITED,01/02/2017,468.00,73372-DOMICILIARY CARE,OP COMMISSIONING,Third Party Payments,Revenue
Walsall Council,http://opendatacommunities.org/id/metropolitan-district-council/walsall,WC77-769,28/02/2017,Adult Social Care,REDACTED,16/02/2017,"1,637.40",73374-SUPPORTED & OTHER ACCOMMODATION,LD COMMISSIONING,Third Party Payments,Revenue
Walsall Council,http://opendatacommunities.org/id/metropolitan-district-council/walsall,WC77-770,28/02/2017,Adult Social Care,REDACTED,16/02/2017,"1,637.40",73374-SUPPORTED & OTHER ACCOMMODATION,LD COMMISSIONING,Third Party Payments,Revenue
Walsall Council,http://opendatacommunities.org/id/metropolitan-district-council/walsall,WC77-771,28/02/2017,Adult Social Care,REDACTED,06/02/2017,450.00,76422-DIRECT PAYMENTS TO SOCIAL SERVICES CLIENTS,PD COMMISSIONING,Transfer Payments,Revenue
Walsall Council,http://opendatacommunities.org/id/metropolitan-district-council/walsall,WC77-772,28/02/2017,Childrens,REDACTED,01/02/2017,470.96,74006-HOLIDAY/CHRISTMAS ALLOWANCE-FOSTER CARERS-OTH AGENCY PROVISION,INTERNAL FOSTER CARE PROVISION,Third Party Payments,Revenue
Walsall Council,http://opendatacommunities.org/id/metropolitan-district-council/walsall,WC77-773,28/02/2017,Childrens,REDACTED,27/02/2017,540.20,62515-MISCELLANEOUS SUPPLIES,INTERNAL FOSTER CARE PROVISION,Supplies & Services,Revenue
Walsall Council,http://opendatacommunities.org/id/metropolitan-district-council/walsall,WC77-774,28/02/2017,Childrens,REDACTED,13/02/2017,361.12,74006-HOLIDAY/CHRISTMAS ALLOWANCE-FOSTER CARERS-OTH AGENCY PROVISION,INTERNAL FOSTER CARE PROVISION,Third Party Payments,Revenue
Walsall Council,http://opendatacommunities.org/id/metropolitan-district-council/walsall,WC77-775,28/02/2017,Childrens,CARRINGTON PRIMARY AND NURSERY SCHOOL,10/02/2017,302.00,77300-ISB-FORMULA ALLOCATION,OUT OF BOROUGH SCHOOLS,Transfer Payments,Revenue
Walsall Council,http://opendatacommunities.org/id/metropolitan-district-council/walsall,WC77-776,28/02/2017,Economy & Environment,CARTER SYNERGY LTD,14/02/2017,270.60,"40000-REPAIRS,ALTERATIONS & MAINTENANCE-PREM",NAG - MAINTENANCE,Premises,Revenue
Walsall Council,http://opendatacommunities.org/id/metropolitan-district-council/walsall,WC77-777,28/02/2017,Economy & Environment,CARTER SYNERGY LTD,14/02/2017,304.35,"40000-REPAIRS,ALTERATIONS & MAINTENANCE-PREM",NAG - MAINTENANCE,Premises,Revenue
Walsall Council,http://opendatacommunities.org/id/metropolitan-district-council/walsall,WC77-778,28/02/2017,Economy & Environment,CARWOOD MOTOR UNITS LIMITED,15/02/2017,888.80,73025-PROFESSIONAL SERVICES-PRIV CONTRACTOR & OTHER AGENCIES,FLEET,Third Party Payments,Revenue
Walsall Council,http://opendatacommunities.org/id/metropolitan-district-council/walsall,WC77-779,28/02/2017,Childrens,CASTLE BUSINESS AND ENTERPRISE COLLEGE,10/02/2017,"8,825.26",63000-PROFESSIONAL FEES AND SERVICES,DIRECTLY COMMISSIONED NURSING SERVICES,Supplies & Services,Revenue
Walsall Council,http://opendatacommunities.org/id/metropolitan-district-council/walsall,WC77-780,28/02/2017,Childrens,CASTLECARE CYMRU LIMITED,20/02/2017,"17,767.43",74036-EXTERNAL RESIDENTIAL CARE-OTH AGENCY PROVISION,INDEPENDENT RESIDENTIAL HOMES,Third Party Payments,Revenue
Walsall Council,http://opendatacommunities.org/id/metropolitan-district-council/walsall,WC77-781,28/02/2017,Economy & Environment,CATCHER MEDIA SOCIAL CIC,17/02/2017,500.00,63000-PROFESSIONAL FEES AND SERVICES,EXTL FUNDED ARTS AND YOUNG PEOPLE,Supplies & Services,Revenue
